{"text_format":"1","workbook":"xlsx","n_sheets":3,"sheets":["Spielplan","Daten","Info"],"not_rendered":{"charts":0,"images":3,"macros":1,"external_links":0,"defined_names":55,"comments":1,"pivot_tables":0},"unopened":[],"bounds":{"document_bytes":16777216,"sheet_cells":100000,"rows_first":2000,"rows_last":500,"rows_between":2000,"halvings":0,"cell_chars":16384,"cell_head_chars":4096},"cells_cut":0,"cells_raw":0,"read":"whole","date_system":"1900"}

{"sheet":"Spielplan","index":0,"n_rows":275,"n_cols":151,"rows_kept":275,"cut":false,"hidden":false,"merged":[[34,42,39,51],[2,65,3,71],[2,45,3,60],[32,9,32,10],[31,9,31,10],[19,9,19,11],[20,9,20,10],[9,20,9,21],[7,27,7,28],[2,9,3,21],[9,11,9,12],[7,13,7,14],[8,13,8,14],[7,9,7,10],[7,18,7,19],[7,40,7,41],[8,40,8,41],[4,2,4,4],[2,2,2,4],[19,2,19,4],[32,3,32,4],[31,3,31,4],[20,3,20,4],[7,22,7,23],[8,22,8,23],[8,27,8,28],[16,5,32,5],[5,2,5,4],[2,29,3,35],[7,31,7,32],[8,31,8,32],[19,27,19,29],[19,54,19,56],[20,54,20,55],[7,54,7,55],[7,58,7,59],[8,58,8,59],[9,56,9,57],[8,49,8,50],[7,63,7,64],[7,67,7,68],[8,67,8,68],[9,65,9,66],[8,54,8,55],[7,49,7,50],[7,76,7,77],[8,76,8,77],[19,63,19,65],[20,63,20,64],[19,72,19,74],[20,72,20,73],[9,74,9,75],[8,63,8,64],[7,72,7,73],[7,45,7,46],[19,45,19,47],[20,45,20,46],[33,5,41,5],[9,47,9,48],[8,45,8,46],[20,18,20,19],[33,18,33,19],[34,18,34,19],[19,18,19,20],[9,38,9,39],[7,36,7,37],[8,36,8,37],[9,29,9,30],[35,36,35,37],[36,36,36,37],[20,27,20,28],[19,36,19,38],[34,27,34,28],[35,27,35,28],[20,36,20,37]]}
[]
[]
[null,null,{"$f":"IF(H146>H144,\"EM 2021 ist vorbei:\",IF(H146>H145,IF(H146<H144,\"EM läuft seit\"),\"Zeit bis zur EM 2024:\"))","v":"EM läuft seit"},null,null,null,null,null,null,"Fußball - Europameisterschaft 2024",null,null,null,null,null,null,null,null,null,null,null,null,null,null,null,null,null,null,null,"EM - SPIELPLAN",null,null,null,null,null,null,null,null,null,null,null,null,null,null,null,"Fußball - Europameisterschaft 2021 ",null,null,null,null,null,null,null,null,null,null,null,null,null,null,null,null,null,null,null,"WM - SPIELPLAN"]
[null,null,{"$f":"IF(H146>H144,H146-H144,IF(H146>H145,H146-H145,H145-H146))","v":5.6216907407433609},"Tage / Std:Min",{"$f":"IF(H146>H145,H146-H145,H145-H146)","v":5.6216907407433609}]
[null,null,"Aktuelles Datum:",null,null,null,null,null,null,null,{"$f":"IF($S$5<>\"\",\"          Fußballeuropameister 2021  =\",\"\")","v":""},null,null,null,null,null,null,null,{"$f":"IF($AO$39=\"\",\"\",IF($AO$39>$AP$39,$AK$39,$AL$39))","v":""},null,null,null,null,null,null,null,null,null,{"$f":"IF($S$5<>\"\",\" Fussballeuropameister 2021   =\",\"\")","v":""},null,null,null,null,null,null,{"$f":"IF($AO$39=\"\",\"\",IF($AO$39>$AP$39,$AK$39,$AL$39))","v":""},null,null,null,null,null,null,null,null,null,null,{"$f":"IF($S$5<>\"\",\"    Fußballeuropameister 2021     =\",\"\")","v":""},null,null,null,null,null,null,null,{"$f":"IF($AO$39=\"\",\"\",IF($AO$39>$AP$39,$AK$39,$AL$39))","v":""},null,null,null,null,null,null,null,null,null,{"$f":"IF($S$5<>\"\",\"         Fussballweltmeister 2018 =\",\"\")","v":""},null,null,null,null,null,null,{"$f":"IF($AX$39=\"\",\"\",IF($AX$39>AY39,AT39,AU39))","v":""}]
[null,null,{"$f":"TODAY()","v":"2024-06-20"}]
[]
[null,null,null,null,null,null,null,"      ",null,"Gruppe A",null,null,null," Punkte ",null,null,"      ",null,"Gruppe B",null,null,null," Punkte ",null,null,"      ",null,"Gruppe C",null,null,null," Punkte ",null,null,"      ",null,"Gruppe D",null,null,null," Punkte ",null,null,"      ",null,"Gruppe E",null,null,null," Punkte ",null,null,"      ",null,"Gruppe F",null,null,null," Punkte ",null,null,"      ",null,"Gruppe G",null,null,null," Punkte ",null,null,"      ",null,"Gruppe H",null,null,null," Punkte "]
[null,null,null,null,null,null,null,null,null,"                      Partie",null,null,null,"für Land:",null,null,null,null,"                      Partie",null,null,null,"für Land:",null,null,null,null,"Partie",null,null,null,"für Land:",null,null,null,null,"Partie",null,null,null,"für Land:",null,null,null,null,"Partie",null,null,null,"für Land:",null,null,null,null,"Partie",null,null,null,"für Land:",null,null,null,null,"Partie",null,null,null,"für Land:",null,null,null,null,"                       Partie",null,null,null,"für Land:"]
[null,null,null,null,null,null,null,"Datum","Uhrzeit:","Land A","  Land B","Ergebnis",null," A:"," B:",null,"Datum","Uhrzeit","Land A","  Land B","Ergebnis",null," A:"," B:",null,"Datum","Uhrzeit","Land A","  Land B","Ergebnis",null," A:"," B:",null,"Datum","Uhrzeit","Land A","  Land B","Ergebnis",null," A:"," B:",null,"Datum","Uhrzeit","Land A","  Land B","Ergebnis",null," A:"," B:",null,"Datum","Uhrzeit","Land A","  Land B","Ergebnis",null," A:"," B:",null,"Datum","Uhrzeit","Land A","  Land B","Ergebnis",null," A:"," B:",null,"Datum","Uhrzeit","Land A","  Land B","Ergebnis",null," A:"," B:",null,null,"            Gruppe A",null,null,null,null,null,null,null,null,"            Gruppe B",null,null,null,null,null,null,null,null,"            Gruppe C",null,null,null,null,null,null,null,null,"            Gruppe D",null,null,null,null,null,null,null,null,"            Gruppe E",null,null,null,null,null,null,null,null,"            Gruppe F",null,null,null,null,null,null,null,null,"            Gruppe G",null,null,null,null,null,null,null,null,"            Gruppe H"]
[null,null,null,null,null,null,null,"2024-06-14","21:00:00",{"$f":"Daten!$C$3","v":"Deutschland"},{"$f":"Daten!C4","v":"Schottland"},null,null,{"$f":"IF(L11=\"\",\"\",IF(L11>M11,3,IF(L11=M11,1,0)))","v":""},{"$f":"IF(M11=\"\",\"\",IF(M11>L11,3,IF(M11=L11,1,0)))","v":""},null,"2024-06-15","18:00:00",{"$f":"Daten!$C$7","v":"Spanien"},{"$f":"Daten!$C$8","v":"Kroatien"},null,null,{"$f":"IF(U11=\"\",\"\",IF(U11>V11,3,IF(U11=V11,1,0)))","v":""},{"$f":"IF(V11=\"\",\"\",IF(V11>U11,3,IF(V11=U11,1,0)))","v":""},null,"2024-06-16","18:00:00",{"$f":"Daten!$C$11","v":"Slowenien"},{"$f":"Daten!$C$12","v":"Dänemark"},null,null,{"$f":"IF(AD11=\"\",\"\",IF(AD11>AE11,3,IF(AD11=AE11,1,0)))","v":""},{"$f":"IF(AE11=\"\",\"\",IF(AE11>AD11,3,IF(AE11=AD11,1,0)))","v":""},null,"2024-06-16","15:00:00",{"$f":"Daten!$C$15","v":"Polen"},{"$f":"Daten!$C$16","v":"Niederlande"},null,null,{"$f":"IF(AM11=\"\",\"\",IF(AM11>AN11,3,IF(AM11=AN11,1,0)))","v":""},{"$f":"IF(AN11=\"\",\"\",IF(AN11>AM11,3,IF(AN11=AM11,1,0)))","v":""},null,"2024-06-17","15:00:00",{"$f":"Daten!$C$19","v":"Rumänien"},{"$f":"Daten!$C$20","v":"Ukraine"},null,null,{"$f":"IF(AV11=\"\",\"\",IF(AV11>AW11,3,IF(AV11=AW11,1,0)))","v":""},{"$f":"IF(AW11=\"\",\"\",IF(AW11>AV11,3,IF(AW11=AV11,1,0)))","v":""},null,"2024-06-18","21:00:00",{"$f":"Daten!$C$23","v":"Türkei"},{"$f":"Daten!$C$24","v":"Georgien"},null,null,{"$f":"IF(BE11=\"\",\"\",IF(BE11>BF11,3,IF(BE11=BF11,1,0)))","v":""},{"$f":"IF(BF11=\"\",\"\",IF(BF11>BE11,3,IF(BF11=BE11,1,0)))","v":""},null,"2018-06-18","17:00:00",{"$f":"Daten!$C$27","v":"00:00:00"},{"$f":"Daten!$C$28","v":"00:00:00"},null,null,{"$f":"IF(BN11=\"\",\"\",IF(BN11>BO11,3,IF(BN11=BO11,1,0)))","v":""},{"$f":"IF(BO11=\"\",\"\",IF(BO11>BN11,3,IF(BO11=BN11,1,0)))","v":""},null,"2018-06-19","14:00:00",{"$f":"Daten!$C$31","v":"00:00:00"},{"$f":"Daten!$C$32","v":"00:00:00"},null,null,{"$f":"IF(BW11=\"\",\"\",IF(BW11>BX11,3,IF(BW11=BX11,1,0)))","v":""},{"$f":"IF(BX11=\"\",\"\",IF(BX11>BW11,3,IF(BX11=BW11,1,0)))","v":""},null,{"$f":"Daten!C3","v":"Deutschland"},{"$f":"IF(N11=\"\",0,IF(N13=\"\",N11,IF(O15=\"\",N11+N13,N11+N13+O15)))","v":0},{"$f":"IF((L11+L13+M15)-(M11+M13+L15)=0,(L11+L13+M15),(L11+L13+M15)-(M11+M13+L15))","v":0},{"$f":"CC11+CD11","v":0},null,null,null,null,null,{"$f":"Daten!C7","v":"Spanien"},{"$f":"IF(W11=\"\",0,IF(W13=\"\",W11,IF(X15=\"\",W11+W13,W11+W13+X15)))","v":0},{"$f":"IF((U11+U13+V15)-(V11+V13+U15)=0,(U11+U13+V15),(U11+U13+V15)-(V11+V13+U15))","v":0},{"$f":"CL11+CM11","v":0},null,null,null,null,null,{"$f":"Daten!C11","v":"Slowenien"},{"$f":"IF(AF11=\"\",0,IF(AF13=\"\",AF11,IF(AG15=\"\",AF11+AF13,AF11+AF13+AG15)))","v":0},{"$f":"IF((AD11+AD13+AE15)-(AE11+AE13+AD15)=0,(AD11+AD13+AE15),(AD11+AD13+AE15)-(AE11+AE13+AD15))","v":0},{"$f":"CU11+CV11","v":0},null,null,null,null,null,{"$f":"Daten!C15","v":"Polen"},{"$f":"IF(AO11=\"\",0,IF(AO13=\"\",AO11,IF(AP15=\"\",AO11+AO13,AO11+AO13+AP15)))","v":0},{"$f":"IF((AM11+AM13+AN15)-(AN11+AN13+AM15)=0,(AM11+AM13+AN15),(AM11+AM13+AN15)-(AN11+AN13+AM15))","v":0},{"$f":"DD11+DE11","v":0},null,null,null,null,null,{"$f":"Daten!C19","v":"Rumänien"},{"$f":"IF(AX11=\"\",0,IF(AX13=\"\",AX11,IF(AY15=\"\",AX11+AX13,AX11+AX13+AY15)))","v":0},{"$f":"IF((AV11+AV13+AW15)-(AW11+AW13+AV15)=0,(AV11+AV13+AW15),(AV11+AV13+AW15)-(AW11+AW13+AV15))","v":0},{"$f":"DM11+DN11","v":0},null,null,null,null,null,{"$f":"Daten!C23","v":"Türkei"},{"$f":"IF(BG11=\"\",0,IF(BG13=\"\",BG11,IF(BH15=\"\",BG11+BG13,BG11+BG13+BH15)))","v":0},{"$f":"IF((BE11+BE13+BF15)-(BF11+BF13+BE15)=0,(BE11+BE13+BF15),(BE11+BE13+BF15)-(BF11+BF13+BE15))","v":0},{"$f":"DV11+DW11","v":0},null,null,null,null,null,{"$f":"Daten!C27","v":0},{"$f":"IF(BP11=\"\",0,IF(BP13=\"\",BP11,IF(BQ15=\"\",BP11+BP13,BP11+BP13+BQ15)))","v":0},{"$f":"IF((BN11+BN13+BO15)-(BO11+BO13+BN15)=0,(BN11+BN13+BO15),(BN11+BN13+BO15)-(BO11+BO13+BN15))","v":0},{"$f":"EE11+EF11","v":0},null,null,null,null,null,{"$f":"Daten!C31","v":0},{"$f":"IF(BY11=\"\",0,IF(BY13=\"\",BY11,IF(BZ15=\"\",BY11+BY13,BY11+BY13+BZ15)))","v":0},{"$f":"IF((BW11+BW13+BX15)-(BX11+BX13+BW15)=0,(BW11+BW13+BX15),(BW11+BW13+BX15)-(BX11+BX13+BW15))","v":0},{"$f":"EN11+EO11","v":0}]
[null,null,null,null,null,null,null,"2024-06-15","15:00:00",{"$f":"Daten!$C$5","v":"Ungarn"},{"$f":"Daten!$C$6","v":"Schweiz"},null,null,"","",null,"2024-06-15","21:00:00",{"$f":"Daten!$C$9","v":"Italien"},{"$f":"Daten!$C$10","v":"Albanien"},null,null,"","",null,"2024-06-16","21:00:00",{"$f":"Daten!$C$13","v":"Serbien"},{"$f":"Daten!$C$14","v":"England"},null,null,"","",null,"2024-06-17","21:00:00",{"$f":"Daten!$C$17","v":"Österreich"},{"$f":"Daten!$C$18","v":"Frankreich"},null,null,"","",null,"2024-06-17","18:00:00",{"$f":"Daten!$C$21","v":"Belgien"},{"$f":"Daten!$C$22","v":"Slowakei"},null,null,"","",null,"2021-06-18","18:00:00",{"$f":"Daten!$C$25","v":"Portugal"},{"$f":"Daten!$C$26","v":"Tschechien"},null,null,"","",null,"2018-06-18","20:00:00",{"$f":"Daten!$C$29","v":"00:00:00"},{"$f":"Daten!$C$30","v":"00:00:00"},null,null,"","",null,"2018-06-19","17:00:00",{"$f":"Daten!$C$33","v":"00:00:00"},{"$f":"Daten!$C$34","v":"00:00:00"},null,null,"","",null,{"$f":"Daten!C4","v":"Schottland"},{"$f":"IF(O11=\"\",0,IF(O14=\"\",O11,IF(N16=\"\",O11+O14,O11+O14+N16)))","v":0},{"$f":"IF((M11+M14+L16)-(L11+L14+M16)=0,(M11+M14+L16),(M11+M14+L16)-(L11+L14+M16))","v":0},{"$f":"CC12+CD12","v":0},null,null,null,null,null,{"$f":"Daten!C8","v":"Kroatien"},{"$f":"IF(X11=\"\",0,IF(X14=\"\",X11,IF(W16=\"\",X11+X14,X11+X14+W16)))","v":0},{"$f":"IF((V11+V14+U16)-(U11+U14+V16)=0,(V11+V14+U16),(V11+V14+U16)-(U11+U14+V16))","v":0},{"$f":"CL12+CM12","v":0},null,null,null,null,null,{"$f":"Daten!C12","v":"Dänemark"},{"$f":"IF(AG11=\"\",0,IF(AG14=\"\",AG11,IF(AF16=\"\",AG11+AG14,AG11+AG14+AF16)))","v":0},{"$f":"IF((AE11+AE14+AD16)-(AD11+AD14+AE16)=0,(AE11+AE14+AD16),(AE11+AE14+AD16)-(AD11+AD14+AE16))","v":0},{"$f":"CU12+CV12","v":0},null,null,null,null,null,{"$f":"Daten!C16","v":"Niederlande"},{"$f":"IF(AP11=\"\",0,IF(AP14=\"\",AP11,IF(AO16=\"\",AP11+AP14,AP11+AP14+AO16)))","v":0},{"$f":"IF((AN11+AN14+AM16)-(AM11+AM14+AN16)=0,(AN11+AN14+AM16),(AN11+AN14+AM16)-(AM11+AM14+AN16))","v":0},{"$f":"DD12+DE12","v":0},null,null,null,null,null,{"$f":"Daten!C20","v":"Ukraine"},{"$f":"IF(AY11=\"\",0,IF(AY14=\"\",AY11,IF(AX16=\"\",AY11+AY14,AY11+AY14+AX16)))","v":0},{"$f":"IF((AW11+AW14+AV16)-(AV11+AV14+AW16)=0,(AW11+AW14+AV16),(AW11+AW14+AV16)-(AV11+AV14+AW16))","v":0},{"$f":"DM12+DN12","v":0},null,null,null,null,null,{"$f":"Daten!C24","v":"Georgien"},{"$f":"IF(BH11=\"\",0,IF(BH14=\"\",BH11,IF(BG16=\"\",BH11+BH14,BH11+BH14+BG16)))","v":0},{"$f":"IF((BF11+BF14+BE16)-(BE11+BE14+BF16)=0,(BF11+BF14+BE16),(BF11+BF14+BE16)-(BE11+BE14+BF16))","v":0},{"$f":"DV12+DW12","v":0},null,null,null,null,null,{"$f":"Daten!C28","v":0},{"$f":"IF(BQ11=\"\",0,IF(BQ14=\"\",BQ11,IF(BP16=\"\",BQ11+BQ14,BQ11+BQ14+BP16)))","v":0},{"$f":"IF((BO11+BO14+BN16)-(BN11+BN14+BO16)=0,(BO11+BO14+BN16),(BO11+BO14+BN16)-(BN11+BN14+BO16))","v":0},{"$f":"EE12+EF12","v":0},null,null,null,null,null,{"$f":"Daten!C32","v":0},{"$f":"IF(BZ11=\"\",0,IF(BZ14=\"\",BZ11,IF(BY16=\"\",BZ11+BZ14,BZ11+BZ14+BY16)))","v":0},{"$f":"IF((BX11+BX14+BW16)-(BW11+BW14+BX16)=0,(BX11+BX14+BW16),(BX11+BX14+BW16)-(BW11+BW14+BX16))","v":0},{"$f":"EN12+EO12","v":0}]
[null,null,null,null,null,null,null,"2024-06-19","18:00:00",{"$f":"Daten!$C$3","v":"Deutschland"},{"$f":"Daten!$C$5","v":"Ungarn"},null,null,"","",null,"2024-06-20","21:00:00",{"$f":"Daten!$C$7","v":"Spanien"},{"$f":"Daten!$C$9","v":"Italien"},null,null,"","",null,"2024-06-20","15:00:00",{"$f":"Daten!$C$11","v":"Slowenien"},{"$f":"Daten!$C$13","v":"Serbien"},null,null,"","",null,"2024-06-21","18:00:00",{"$f":"Daten!$C$15","v":"Polen"},{"$f":"Daten!$C$17","v":"Österreich"},null,null,"","",null,"2024-06-22","21:00:00",{"$f":"Daten!$C$19","v":"Rumänien"},{"$f":"Daten!$C$21","v":"Belgien"},null,null,"","",null,"2024-06-22","18:00:00",{"$f":"Daten!$C$23","v":"Türkei"},{"$f":"Daten!$C$25","v":"Portugal"},null,null,"","",null,"2018-06-23","14:00:00",{"$f":"Daten!$C$27","v":"00:00:00"},{"$f":"Daten!$C$29","v":"00:00:00"},null,null,"","",null,"2018-06-24","20:00:00",{"$f":"Daten!$C$31","v":"00:00:00"},{"$f":"Daten!$C$33","v":"00:00:00"},null,null,"","",null,{"$f":"Daten!C5","v":"Ungarn"},{"$f":"IF(N12=\"\",0,IF(O13=\"\",N12,IF(O16=\"\",N12+O13,N12+O13+O16)))","v":0},{"$f":"IF((L12+M13+M16)-(M12+L13+L16)=0,(L12+M13+M16),(L12+M13+M16)-(M12+L13+L16))","v":0},{"$f":"CC13+CD13","v":0},null,null,null,null,null,{"$f":"Daten!C9","v":"Italien"},{"$f":"IF(W12=\"\",0,IF(X13=\"\",W12,IF(X16=\"\",W12+X13,W12+X13+X16)))","v":0},{"$f":"IF((U12+V13+V16)-(V12+U13+U16)=0,(U12+V13+V16),(U12+V13+V16)-(V12+U13+U16))","v":0},{"$f":"CL13+CM13","v":0},null,null,null,null,null,{"$f":"Daten!C13","v":"Serbien"},{"$f":"IF(AF12=\"\",0,IF(AG13=\"\",AF12,IF(AG16=\"\",AF12+AG13,AF12+AG13+AG16)))","v":0},{"$f":"IF((AD12+AE13+AE16)-(AE12+AD13+AD16)=0,(AD12+AE13+AE16),(AD12+AE13+AE16)-(AE12+AD13+AD16))","v":0},{"$f":"CU13+CV13","v":0},null,null,null,null,null,{"$f":"Daten!C17","v":"Österreich"},{"$f":"IF(AO12=\"\",0,IF(AP13=\"\",AO12,IF(AP16=\"\",AO12+AP13,AO12+AP13+AP16)))","v":0},{"$f":"IF((AM12+AN13+AN16)-(AN12+AM13+AM16)=0,(AM12+AN13+AN16),(AM12+AN13+AN16)-(AN12+AM13+AM16))","v":0},{"$f":"DD13+DE13","v":0},null,null,null,null,null,{"$f":"Daten!C21","v":"Belgien"},{"$f":"IF(AX12=\"\",0,IF(AY13=\"\",AX12,IF(AY16=\"\",AX12+AY13,AX12+AY13+AY16)))","v":0},{"$f":"IF((AV12+AW13+AW16)-(AW12+AV13+AV16)=0,(AV12+AW13+AW16),(AV12+AW13+AW16)-(AW12+AV13+AV16))","v":0},{"$f":"DM13+DN13","v":0},null,null,null,null,null,{"$f":"Daten!C25","v":"Portugal"},{"$f":"IF(BG12=\"\",0,IF(BH13=\"\",BG12,IF(BH16=\"\",BG12+BH13,BG12+BH13+BH16)))","v":0},{"$f":"IF((BE12+BF13+BF16)-(BF12+BE13+BE16)=0,(BE12+BF13+BF16),(BE12+BF13+BF16)-(BF12+BE13+BE16))","v":0},{"$f":"DV13+DW13","v":0},null,null,null,null,null,{"$f":"Daten!C29","v":0},{"$f":"IF(BP12=\"\",0,IF(BQ13=\"\",BP12,IF(BQ16=\"\",BP12+BQ13,BP12+BQ13+BQ16)))","v":0},{"$f":"IF((BN12+BO13+BO16)-(BO12+BN13+BN16)=0,(BN12+BO13+BO16),(BN12+BO13+BO16)-(BO12+BN13+BN16))","v":0},{"$f":"EE13+EF13","v":0},null,null,null,null,null,{"$f":"Daten!C33","v":0},{"$f":"IF(BY12=\"\",0,IF(BZ13=\"\",BY12,IF(BZ16=\"\",BY12+BZ13,BY12+BZ13+BZ16)))","v":0},{"$f":"IF((BW12+BX13+BX16)-(BX12+BW13+BW16)=0,(BW12+BX13+BX16),(BW12+BX13+BX16)-(BX12+BW13+BW16))","v":0},{"$f":"EN13+EO13","v":0}]
[null,null,null,null,null,null,null,"2024-06-19","21:00:00",{"$f":"Daten!$C$6","v":"Schweiz"},{"$f":"Daten!$C$4","v":"Schottland"},null,null,"","",null,"2024-06-19","15:00:00",{"$f":"Daten!$C$10","v":"Albanien"},{"$f":"Daten!$C$8","v":"Kroatien"},null,null,"","",null,"2024-06-20","18:00:00",{"$f":"Daten!$C$14","v":"England"},{"$f":"Daten!$C$12","v":"Dänemark"},null,null,"","",null,"2024-06-21","21:00:00",{"$f":"Daten!$C$18","v":"Frankreich"},{"$f":"Daten!$C$16","v":"Niederlande"},null,null,"","",null,"2024-06-21","15:00:00",{"$f":"Daten!$C$22","v":"Slowakei"},{"$f":"Daten!$C$20","v":"Ukraine"},null,null,"","",null,"2024-06-22","15:00:00",{"$f":"Daten!$C$26","v":"Tschechien"},{"$f":"Daten!$C$24","v":"Georgien"},null,null,"","",null,"2018-06-24","14:00:00",{"$f":"Daten!$C$30","v":"00:00:00"},{"$f":"Daten!$C$28","v":"00:00:00"},null,null,"","",null,"2018-06-24","17:00:00",{"$f":"Daten!$C$34","v":"00:00:00"},{"$f":"Daten!$C$32","v":"00:00:00"},null,null,"","",null,{"$f":"Daten!C6","v":"Schweiz"},{"$f":"IF(O12=\"\",0,IF(N14=\"\",O12,IF(N15=\"\",O12+N14,O12+N14+N15)))","v":0},{"$f":"IF((M12+L14+L15)-(L12+M14+M15)=0,(M12+L14+L15),(M12+L14+L15)-(L12+M14+M15))","v":0},{"$f":"CC14+CD14","v":0},null,null,null,null,null,{"$f":"Daten!C10","v":"Albanien"},{"$f":"IF(X12=\"\",0,IF(W14=\"\",X12,IF(W15=\"\",X12+W14,X12+W14+W15)))","v":0},{"$f":"IF((V12+U14+U15)-(U12+V14+V15)=0,(V12+U14+U15),(V12+U14+U15)-(U12+V14+V15))","v":0},{"$f":"CL14+CM14","v":0},null,null,null,null,null,{"$f":"Daten!C14","v":"England"},{"$f":"IF(AG12=\"\",0,IF(AF14=\"\",AG12,IF(AF15=\"\",AG12+AF14,AG12+AF14+AF15)))","v":0},{"$f":"IF((AE12+AD14+AD15)-(AD12+AE14+AE15)=0,(AE12+AD14+AD15),(AE12+AD14+AD15)-(AD12+AE14+AE15))","v":0},{"$f":"CU14+CV14","v":0},null,null,null,null,null,{"$f":"Daten!C18","v":"Frankreich"},{"$f":"IF(AP12=\"\",0,IF(AO14=\"\",AP12,IF(AO15=\"\",AP12+AO14,AP12+AO14+AO15)))","v":0},{"$f":"IF((AN12+AM14+AM15)-(AM12+AN14+AN15)=0,(AN12+AM14+AM15),(AN12+AM14+AM15)-(AM12+AN14+AN15))","v":0},{"$f":"DD14+DE14","v":0},null,null,null,null,null,{"$f":"Daten!C22","v":"Slowakei"},{"$f":"IF(AY12=\"\",0,IF(AX14=\"\",AY12,IF(AX15=\"\",AY12+AX14,AY12+AX14+AX15)))","v":0},{"$f":"IF((AW12+AV14+AV15)-(AV12+AW14+AW15)=0,(AW12+AV14+AV15),(AW12+AV14+AV15)-(AV12+AW14+AW15))","v":0},{"$f":"DM14+DN14","v":0},null,null,null,null,null,{"$f":"Daten!C26","v":"Tschechien"},{"$f":"IF(BH12=\"\",0,IF(BG14=\"\",BH12,IF(BG15=\"\",BH12+BG14,BH12+BG14+BG15)))","v":0},{"$f":"IF((BF12+BE14+BE15)-(BE12+BF14+BF15)=0,(BF12+BE14+BE15),(BF12+BE14+BE15)-(BE12+BF14+BF15))","v":0},{"$f":"DV14+DW14","v":0},null,null,null,null,null,{"$f":"Daten!C30","v":0},{"$f":"IF(BQ12=\"\",0,IF(BP14=\"\",BQ12,IF(BP15=\"\",BQ12+BP14,BQ12+BP14+BP15)))","v":0},{"$f":"IF((BO12+BN14+BN15)-(BN12+BO14+BO15)=0,(BO12+BN14+BN15),(BO12+BN14+BN15)-(BN12+BO14+BO15))","v":0},{"$f":"EE14+EF14","v":0},null,null,null,null,null,{"$f":"Daten!C34","v":0},{"$f":"IF(BZ12=\"\",0,IF(BY14=\"\",BZ12,IF(BY15=\"\",BZ12+BY14,BZ12+BY14+BY15)))","v":0},{"$f":"IF((BX12+BW14+BW15)-(BW12+BX14+BX15)=0,(BX12+BW14+BW15),(BX12+BW14+BW15)-(BW12+BX14+BX15))","v":0},{"$f":"EN14+EO14","v":0}]
[null,null,null,null,null,null,null,"2024-06-23","18:00:00",{"$f":"Daten!$C$6","v":"Schweiz"},{"$f":"Daten!$C$3","v":"Deutschland"},null,null,"","",null,"2024-06-24","21:00:00",{"$f":"Daten!$C$10","v":"Albanien"},{"$f":"Daten!$C$7","v":"Spanien"},null,null,"","",null,"2024-06-25","21:00:00",{"$f":"Daten!$C$14","v":"England"},{"$f":"Daten!$C$11","v":"Slowenien"},null,null,"","",null,"2024-06-25","18:00:00",{"$f":"Daten!$C$18","v":"Frankreich"},{"$f":"Daten!$C$15","v":"Polen"},null,null,"","",null,"2024-06-26","18:00:00",{"$f":"Daten!$C$22","v":"Slowakei"},{"$f":"Daten!$C$19","v":"Rumänien"},null,null,"","",null,"2024-06-26","21:00:00",{"$f":"Daten!$C$26","v":"Tschechien"},{"$f":"Daten!$C$23","v":"Türkei"},null,null,"","",null,"2018-06-28","20:00:00",{"$f":"Daten!$C$30","v":"00:00:00"},{"$f":"Daten!$C$27","v":"00:00:00"},null,null,"","",null,"2018-06-28","16:00:00",{"$f":"Daten!$C$34","v":"00:00:00"},{"$f":"Daten!$C$31","v":"00:00:00"},null,null,"",""]
[null,null,null,null,null,null,null,"2024-06-23","18:00:00",{"$f":"Daten!$C$4","v":"Schottland"},{"$f":"Daten!$C$5","v":"Ungarn"},null,null,"","",null,"2024-06-24","21:00:00",{"$f":"Daten!$C$8","v":"Kroatien"},{"$f":"Daten!$C$9","v":"Italien"},null,null,"","",null,"2024-06-25","21:00:00",{"$f":"Daten!$C$12","v":"Dänemark"},{"$f":"Daten!$C$13","v":"Serbien"},null,null,"","",null,"2024-06-25","18:00:00",{"$f":"Daten!$C$16","v":"Niederlande"},{"$f":"Daten!$C$17","v":"Österreich"},null,null,"","",null,"2024-06-26","18:00:00",{"$f":"Daten!$C$20","v":"Ukraine"},{"$f":"Daten!$C$21","v":"Belgien"},null,null,"","",null,"2024-06-26","21:00:00",{"$f":"Daten!$C$24","v":"Georgien"},{"$f":"Daten!$C$25","v":"Portugal"},null,null,"","",null,"2018-06-28","20:00:00",{"$f":"Daten!$C$28","v":"00:00:00"},{"$f":"Daten!$C$29","v":"00:00:00"},null,null,"","",null,"2018-06-28","16:00:00",{"$f":"Daten!$C$32","v":"00:00:00"},{"$f":"Daten!$C$33","v":"00:00:00"},null,null,"","",null,{"$f":"IF(CC11>CC12,1,IF(CC11=CC12,CF16,\"\"))","v":""},{"$f":"IF(CC11>CC13,1,IF(CC11=CC13,CG16,\"\"))","v":""},{"$f":"IF(CC11>CC14,1,IF(CC11=CC14,CH16,\"\"))","v":""},{"$f":"SUM(CB16:CD16)","v":0},{"$f":"IF(CD11>CD12,1,\"\")","v":""},{"$f":"IF(CD11>CD13,1,\"\")","v":""},{"$f":"IF(CD11>CD14,1,\"\")","v":""},null,{"$f":"IF(CE16=CE17,CE16+1,IF(CE16=CE19,CE16+1,IF(CE16=CE20,CE16+1,CE16)))","v":1},{"$f":"IF(CL11>CL12,1,IF(CL11=CL12,CO16,\"\"))","v":""},{"$f":"IF(CL11>CL13,1,IF(CL11=CL13,CP16,\"\"))","v":""},{"$f":"IF(CL11>CL14,1,IF(CL11=CL14,CQ16,\"\"))","v":""},{"$f":"SUM(CK16:CM16)","v":0},{"$f":"IF(CM11>CM12,1,\"\")","v":""},{"$f":"IF(CM11>CM13,1,\"\")","v":""},{"$f":"IF(CM11>CM14,1,\"\")","v":""},null,{"$f":"IF(CN16=CN17,CN16+1,IF(CN16=CN19,CN16+1,IF(CN16=CN20,CN16+1,CN16)))","v":1},{"$f":"IF(CU11>CU12,1,IF(CU11=CU12,CX16,\"\"))","v":""},{"$f":"IF(CU11>CU13,1,IF(CU11=CU13,CY16,\"\"))","v":""},{"$f":"IF(CU11>CU14,1,IF(CU11=CU14,CZ16,\"\"))","v":""},{"$f":"SUM(CT16:CV16)","v":0},{"$f":"IF(CV11>CV12,1,\"\")","v":""},{"$f":"IF(CV11>CV13,1,\"\")","v":""},{"$f":"IF(CV11>CV14,1,\"\")","v":""},null,{"$f":"IF(CW16=CW17,CW16+1,IF(CW16=CW19,CW16+1,IF(CW16=CW20,CW16+1,CW16)))","v":1},{"$f":"IF(DD11>DD12,1,IF(DD11=DD12,DG16,\"\"))","v":""},{"$f":"IF(DD11>DD13,1,IF(DD11=DD13,DH16,\"\"))","v":""},{"$f":"IF(DD11>DD14,1,IF(DD11=DD14,DI16,\"\"))","v":""},{"$f":"SUM(DC16:DE16)","v":0},{"$f":"IF(DE11>DE12,1,\"\")","v":""},{"$f":"IF(DE11>DE13,1,\"\")","v":""},{"$f":"IF(DE11>DE14,1,\"\")","v":""},null,{"$f":"IF(DF16=DF17,DF16+1,IF(DF16=DF19,DF16+1,IF(DF16=DF20,DF16+1,DF16)))","v":1},{"$f":"IF(DM11>DM12,1,IF(DM11=DM12,DP16,\"\"))","v":""},{"$f":"IF(DM11>DM13,1,IF(DM11=DM13,DQ16,\"\"))","v":""},{"$f":"IF(DM11>DM14,1,IF(DM11=DM14,DR16,\"\"))","v":""},{"$f":"SUM(DL16:DN16)","v":0},{"$f":"IF(DN11>DN12,1,\"\")","v":""},{"$f":"IF(DN11>DN13,1,\"\")","v":""},{"$f":"IF(DN11>DN14,1,\"\")","v":""},null,{"$f":"IF(DO16=DO17,DO16+1,IF(DO16=DO19,DO16+1,IF(DO16=DO20,DO16+1,DO16)))","v":1},{"$f":"IF(DV11>DV12,1,IF(DV11=DV12,DY16,\"\"))","v":""},{"$f":"IF(DV11>DV13,1,IF(DV11=DV13,DZ16,\"\"))","v":""},{"$f":"IF(DV11>DV14,1,IF(DV11=DV14,EA16,\"\"))","v":""},{"$f":"SUM(DU16:DW16)","v":0},{"$f":"IF(DW11>DW12,1,\"\")","v":""},{"$f":"IF(DW11>DW13,1,\"\")","v":""},{"$f":"IF(DW11>DW14,1,\"\")","v":""},null,{"$f":"IF(DX16=DX17,DX16+1,IF(DX16=DX19,DX16+1,IF(DX16=DX20,DX16+1,DX16)))","v":1},{"$f":"IF(EE11>EE12,1,IF(EE11=EE12,EH16,\"\"))","v":""},{"$f":"IF(EE11>EE13,1,IF(EE11=EE13,EI16,\"\"))","v":""},{"$f":"IF(EE11>EE14,1,IF(EE11=EE14,EJ16,\"\"))","v":""},{"$f":"SUM(ED16:EF16)","v":0},{"$f":"IF(EF11>EF12,1,\"\")","v":""},{"$f":"IF(EF11>EF13,1,\"\")","v":""},{"$f":"IF(EF11>EF14,1,\"\")","v":""},null,{"$f":"IF(EG16=EG17,EG16+1,IF(EG16=EG19,EG16+1,IF(EG16=EG20,EG16+1,EG16)))","v":1},{"$f":"IF(EN11>EN12,1,IF(EN11=EN12,EQ16,\"\"))","v":""},{"$f":"IF(EN11>EN13,1,IF(EN11=EN13,ER16,\"\"))","v":""},{"$f":"IF(EN11>EN14,1,IF(EN11=EN14,ES16,\"\"))","v":""},{"$f":"SUM(EM16:EO16)","v":0},{"$f":"IF(EO11>EO12,1,\"\")","v":""},{"$f":"IF(EO11>EO13,1,\"\")","v":""},{"$f":"IF(EO11>EO14,1,\"\")","v":""},null,{"$f":"IF(EP16=EP17,EP16+1,IF(EP16=EP19,EP16+1,IF(EP16=EP20,EP16+1,EP16)))","v":1}]
[null,null,null,null,null,null,null,null,null,null,null,null,null,null,null,null,null,null,null,null,null,null,null,null,null,null,null,null,null,null,null,null,null,null,null,null,null,null,null,null,null,null,null,null,null,null,null,null,null,null,null,null,null,null,null,null,null,null,null,null,null,null,null,null,null,null,null,null,null,null,null,null,null,null,null,null,null,null,null,{"$f":"IF(CC12>CC13,1,IF(CC12=CC13,CF17,\"\"))","v":""},{"$f":"IF(CC12>CC14,1,IF(CC12=CC14,CG17,\"\"))","v":""},{"$f":"IF(CC12>CC11,1,IF(CC12=CC11,CH17,\"\"))","v":""},{"$f":"SUM(CB17:CD17)","v":0},{"$f":"IF(CD12>CD13,1,\"\")","v":""},{"$f":"IF(CD12>CD14,1,\"\")","v":""},{"$f":"IF(CD12>CD11,1,\"\")","v":""},null,{"$f":"IF(CE17=CE19,CE17+1,IF(CE17=CE20,CE17+1,IF(CE17=CJ16,CE17+1,CE17)))","v":1},{"$f":"IF(CL12>CL13,1,IF(CL12=CL13,CO17,\"\"))","v":""},{"$f":"IF(CL12>CL14,1,IF(CL12=CL14,CP17,\"\"))","v":""},{"$f":"IF(CL12>CL11,1,IF(CL12=CL11,CQ17,\"\"))","v":""},{"$f":"SUM(CK17:CM17)","v":0},{"$f":"IF(CM12>CM13,1,\"\")","v":""},{"$f":"IF(CM12>CM14,1,\"\")","v":""},{"$f":"IF(CM12>CM11,1,\"\")","v":""},null,{"$f":"IF(CN17=CN19,CN17+1,IF(CN17=CN20,CN17+1,IF(CN17=CS16,CN17+1,CN17)))","v":1},{"$f":"IF(CU12>CU13,1,IF(CU12=CU13,CX17,\"\"))","v":""},{"$f":"IF(CU12>CU14,1,IF(CU12=CU14,CY17,\"\"))","v":""},{"$f":"IF(CU12>CU11,1,IF(CU12=CU11,CZ17,\"\"))","v":""},{"$f":"SUM(CT17:CV17)","v":0},{"$f":"IF(CV12>CV13,1,\"\")","v":""},{"$f":"IF(CV12>CV14,1,\"\")","v":""},{"$f":"IF(CV12>CV11,1,\"\")","v":""},null,{"$f":"IF(CW17=CW19,CW17+1,IF(CW17=CW20,CW17+1,IF(CW17=DB16,CW17+1,CW17)))","v":1},{"$f":"IF(DD12>DD13,1,IF(DD12=DD13,DG17,\"\"))","v":""},{"$f":"IF(DD12>DD14,1,IF(DD12=DD14,DH17,\"\"))","v":""},{"$f":"IF(DD12>DD11,1,IF(DD12=DD11,DI17,\"\"))","v":""},{"$f":"SUM(DC17:DE17)","v":0},{"$f":"IF(DE12>DE13,1,\"\")","v":""},{"$f":"IF(DE12>DE14,1,\"\")","v":""},{"$f":"IF(DE12>DE11,1,\"\")","v":""},null,{"$f":"IF(DF17=DF19,DF17+1,IF(DF17=DF20,DF17+1,IF(DF17=DK16,DF17+1,DF17)))","v":1},{"$f":"IF(DM12>DM13,1,IF(DM12=DM13,DP17,\"\"))","v":""},{"$f":"IF(DM12>DM14,1,IF(DM12=DM14,DQ17,\"\"))","v":""},{"$f":"IF(DM12>DM11,1,IF(DM12=DM11,DR17,\"\"))","v":""},{"$f":"SUM(DL17:DN17)","v":0},{"$f":"IF(DN12>DN13,1,\"\")","v":""},{"$f":"IF(DN12>DN14,1,\"\")","v":""},{"$f":"IF(DN12>DN11,1,\"\")","v":""},null,{"$f":"IF(DO17=DO19,DO17+1,IF(DO17=DO20,DO17+1,IF(DO17=DT16,DO17+1,DO17)))","v":1},{"$f":"IF(DV12>DV13,1,IF(DV12=DV13,DY17,\"\"))","v":""},{"$f":"IF(DV12>DV14,1,IF(DV12=DV14,DZ17,\"\"))","v":""},{"$f":"IF(DV12>DV11,1,IF(DV12=DV11,EA17,\"\"))","v":""},{"$f":"SUM(DU17:DW17)","v":0},{"$f":"IF(DW12>DW13,1,\"\")","v":""},{"$f":"IF(DW12>DW14,1,\"\")","v":""},{"$f":"IF(DW12>DW11,1,\"\")","v":""},null,{"$f":"IF(DX17=DX19,DX17+1,IF(DX17=DX20,DX17+1,IF(DX17=EC16,DX17+1,DX17)))","v":1},{"$f":"IF(EE12>EE13,1,IF(EE12=EE13,EH17,\"\"))","v":""},{"$f":"IF(EE12>EE14,1,IF(EE12=EE14,EI17,\"\"))","v":""},{"$f":"IF(EE12>EE11,1,IF(EE12=EE11,EJ17,\"\"))","v":""},{"$f":"SUM(ED17:EF17)","v":0},{"$f":"IF(EF12>EF13,1,\"\")","v":""},{"$f":"IF(EF12>EF14,1,\"\")","v":""},{"$f":"IF(EF12>EF11,1,\"\")","v":""},null,{"$f":"IF(EG17=EG19,EG17+1,IF(EG17=EG20,EG17+1,IF(EG17=EL16,EG17+1,EG17)))","v":1},{"$f":"IF(EN12>EN13,1,IF(EN12=EN13,EQ17,\"\"))","v":""},{"$f":"IF(EN12>EN14,1,IF(EN12=EN14,ER17,\"\"))","v":""},{"$f":"IF(EN12>EN11,1,IF(EN12=EN11,ES17,\"\"))","v":""},{"$f":"SUM(EM17:EO17)","v":0},{"$f":"IF(EO12>EO13,1,\"\")","v":""},{"$f":"IF(EO12>EO14,1,\"\")","v":""},{"$f":"IF(EO12>EO11,1,\"\")","v":""},null,{"$f":"IF(EP17=EP19,EP17+1,IF(EP17=EP20,EP17+1,IF(EP17=EU16,EP17+1,EP17)))","v":1}]
[]
[null,null,null,null,null,null,null,null,null,null,null,null,null,null,null,null,null,null,null,null,null,null,null,null,null,null,null,null,null,null,null,null,null,null,null,null,null,null,null,null,null,null,null,null,null,null,null,null,null,null,null,null,null,null,null,null,null,null,null,null,null,null,null,null,null,null,null,null,null,null,null,null,null,null,null,null,null,null,null,{"$f":"IF(CC13>CC14,1,IF(CC13=CC14,CF19,\"\"))","v":""},{"$f":"IF(CC13>CC11,1,IF(CC13=CC11,CG19,\"\"))","v":""},{"$f":"IF(CC13>CC12,1,IF(CC13=CC12,CH19,\"\"))","v":""},{"$f":"SUM(CB19:CD19)","v":0},{"$f":"IF(CD13>CD14,1,\"\")","v":""},{"$f":"IF(CD13>CD11,1,\"\")","v":""},{"$f":"IF(CD13>CD12,1,\"\")","v":""},null,{"$f":"IF(CE19=CE20,CE19+1,IF(CE19=CJ16,CE19+1,IF(CE19=CJ17,CE19+1,CE19)))","v":1},{"$f":"IF(CL13>CL14,1,IF(CL13=CL14,CO19,\"\"))","v":""},{"$f":"IF(CL13>CL11,1,IF(CL13=CL11,CP19,\"\"))","v":""},{"$f":"IF(CL13>CL12,1,IF(CL13=CL12,CQ19,\"\"))","v":""},{"$f":"SUM(CK19:CM19)","v":0},{"$f":"IF(CM13>CM14,1,\"\")","v":""},{"$f":"IF(CM13>CM11,1,\"\")","v":""},{"$f":"IF(CM13>CM12,1,\"\")","v":""},null,{"$f":"IF(CN19=CN20,CN19+1,IF(CN19=CS16,CN19+1,IF(CN19=CS17,CN19+1,CN19)))","v":1},{"$f":"IF(CU13>CU14,1,IF(CU13=CU14,CX19,\"\"))","v":""},{"$f":"IF(CU13>CU11,1,IF(CU13=CU11,CY19,\"\"))","v":""},{"$f":"IF(CU13>CU12,1,IF(CU13=CU12,CZ19,\"\"))","v":""},{"$f":"SUM(CT19:CV19)","v":0},{"$f":"IF(CV13>CV14,1,\"\")","v":""},{"$f":"IF(CV13>CV11,1,\"\")","v":""},{"$f":"IF(CV13>CV12,1,\"\")","v":""},null,{"$f":"IF(CW19=CW20,CW19+1,IF(CW19=DB16,CW19+1,IF(CW19=DB17,CW19+1,CW19)))","v":1},{"$f":"IF(DD13>DD14,1,IF(DD13=DD14,DG19,\"\"))","v":""},{"$f":"IF(DD13>DD11,1,IF(DD13=DD11,DH19,\"\"))","v":""},{"$f":"IF(DD13>DD12,1,IF(DD13=DD12,DI19,\"\"))","v":""},{"$f":"SUM(DC19:DE19)","v":0},{"$f":"IF(DE13>DE14,1,\"\")","v":""},{"$f":"IF(DE13>DE11,1,\"\")","v":""},{"$f":"IF(DE13>DE12,1,\"\")","v":""},null,{"$f":"IF(DF19=DF20,DF19+1,IF(DF19=DK16,DF19+1,IF(DF19=DK17,DF19+1,DF19)))","v":1},{"$f":"IF(DM13>DM14,1,IF(DM13=DM14,DP19,\"\"))","v":""},{"$f":"IF(DM13>DM11,1,IF(DM13=DM11,DQ19,\"\"))","v":""},{"$f":"IF(DM13>DM12,1,IF(DM13=DM12,DR19,\"\"))","v":""},{"$f":"SUM(DL19:DN19)","v":0},{"$f":"IF(DN13>DN14,1,\"\")","v":""},{"$f":"IF(DN13>DN11,1,\"\")","v":""},{"$f":"IF(DN13>DN12,1,\"\")","v":""},null,{"$f":"IF(DO19=DO20,DO19+1,IF(DO19=DT16,DO19+1,IF(DO19=DT17,DO19+1,DO19)))","v":1},{"$f":"IF(DV13>DV14,1,IF(DV13=DV14,DY19,\"\"))","v":""},{"$f":"IF(DV13>DV11,1,IF(DV13=DV11,DZ19,\"\"))","v":""},{"$f":"IF(DV13>DV12,1,IF(DV13=DV12,EA19,\"\"))","v":""},{"$f":"SUM(DU19:DW19)","v":0},{"$f":"IF(DW13>DW14,1,\"\")","v":""},{"$f":"IF(DW13>DW11,1,\"\")","v":""},{"$f":"IF(DW13>DW12,1,\"\")","v":""},null,{"$f":"IF(DX19=DX20,DX19+1,IF(DX19=EC16,DX19+1,IF(DX19=EC17,DX19+1,DX19)))","v":1},{"$f":"IF(EE13>EE14,1,IF(EE13=EE14,EH19,\"\"))","v":""},{"$f":"IF(EE13>EE11,1,IF(EE13=EE11,EI19,\"\"))","v":""},{"$f":"IF(EE13>EE12,1,IF(EE13=EE12,EJ19,\"\"))","v":""},{"$f":"SUM(ED19:EF19)","v":0},{"$f":"IF(EF13>EF14,1,\"\")","v":""},{"$f":"IF(EF13>EF11,1,\"\")","v":""},{"$f":"IF(EF13>EF12,1,\"\")","v":""},null,{"$f":"IF(EG19=EG20,EG19+1,IF(EG19=EL16,EG19+1,IF(EG19=EL17,EG19+1,EG19)))","v":1},{"$f":"IF(EN13>EN14,1,IF(EN13=EN14,EQ19,\"\"))","v":""},{"$f":"IF(EN13>EN11,1,IF(EN13=EN11,ER19,\"\"))","v":""},{"$f":"IF(EN13>EN12,1,IF(EN13=EN12,ES19,\"\"))","v":""},{"$f":"SUM(EM19:EO19)","v":0},{"$f":"IF(EO13>EO14,1,\"\")","v":""},{"$f":"IF(EO13>EO11,1,\"\")","v":""},{"$f":"IF(EO13>EO12,1,\"\")","v":""},null,{"$f":"IF(EP19=EP20,EP19+1,IF(EP19=EU16,EP19+1,IF(EP19=EU17,EP19+1,EP19)))","v":1}]
[null,null,"         Alle Spiele von Heute",null,null,null,null,null,null,"Tabelle",null,null,null,null,null,null,null,null,"Tabelle",null,null,null,null,null,null,null,null,"Tabelle",null,null,null,null,null,null,null,null,"Tabelle",null,null,null,null,null,null,null,null,"Tabelle",null,null,null,null,null,null,null,null,"Tabelle",null,null,null,null,null,null,null,null,"Tabelle",null,null,null,null,null,null,null,null,"Tabelle",null,null,null,null,null,null,{"$f":"IF(CC14>CC11,1,IF(CC14=CC11,CF20,\"\"))","v":""},{"$f":"IF(CC14>CC12,1,IF(CC14=CC12,CG20,\"\"))","v":""},{"$f":"IF(CC14>CC13,1,IF(CC14=CC13,CH20,\"\"))","v":""},{"$f":"SUM(CB20:CD20)","v":0},{"$f":"IF(CD14>CD11,1,\"\")","v":""},{"$f":"IF(CD14>CD12,1,\"\")","v":""},{"$f":"IF(CD14>CD13,1,\"\")","v":""},null,{"$f":"IF(CE20=CJ16,CE20+1,IF(CE20=CJ17,CE20+1,IF(CE20=CJ19,CE20+1,CE20)))","v":0},{"$f":"IF(CL14>CL11,1,IF(CL14=CL11,CO20,\"\"))","v":""},{"$f":"IF(CL14>CL12,1,IF(CL14=CL12,CP20,\"\"))","v":""},{"$f":"IF(CL14>CL13,1,IF(CL14=CL13,CQ20,\"\"))","v":""},{"$f":"SUM(CK20:CM20)","v":0},{"$f":"IF(CM14>CM11,1,\"\")","v":""},{"$f":"IF(CM14>CM12,1,\"\")","v":""},{"$f":"IF(CM14>CM13,1,\"\")","v":""},null,{"$f":"IF(CN20=CS16,CN20+1,IF(CN20=CS17,CN20+1,IF(CN20=CS19,CN20+1,CN20)))","v":0},{"$f":"IF(CU14>CU11,1,IF(CU14=CU11,CX20,\"\"))","v":""},{"$f":"IF(CU14>CU12,1,IF(CU14=CU12,CY20,\"\"))","v":""},{"$f":"IF(CU14>CU13,1,IF(CU14=CU13,CZ20,\"\"))","v":""},{"$f":"SUM(CT20:CV20)","v":0},{"$f":"IF(CV14>CV11,1,\"\")","v":""},{"$f":"IF(CV14>CV12,1,\"\")","v":""},{"$f":"IF(CV14>CV13,1,\"\")","v":""},null,{"$f":"IF(CW20=DB16,CW20+1,IF(CW20=DB17,CW20+1,IF(CW20=DB19,CW20+1,CW20)))","v":0},{"$f":"IF(DD14>DD11,1,IF(DD14=DD11,DG20,\"\"))","v":""},{"$f":"IF(DD14>DD12,1,IF(DD14=DD12,DH20,\"\"))","v":""},{"$f":"IF(DD14>DD13,1,IF(DD14=DD13,DI20,\"\"))","v":""},{"$f":"SUM(DC20:DE20)","v":0},{"$f":"IF(DE14>DE11,1,\"\")","v":""},{"$f":"IF(DE14>DE12,1,\"\")","v":""},{"$f":"IF(DE14>DE13,1,\"\")","v":""},null,{"$f":"IF(DF20=DK16,DF20+1,IF(DF20=DK17,DF20+1,IF(DF20=DK19,DF20+1,DF20)))","v":0},{"$f":"IF(DM14>DM11,1,IF(DM14=DM11,DP20,\"\"))","v":""},{"$f":"IF(DM14>DM12,1,IF(DM14=DM12,DQ20,\"\"))","v":""},{"$f":"IF(DM14>DM13,1,IF(DM14=DM13,DR20,\"\"))","v":""},{"$f":"SUM(DL20:DN20)","v":0},{"$f":"IF(DN14>DN11,1,\"\")","v":""},{"$f":"IF(DN14>DN12,1,\"\")","v":""},{"$f":"IF(DN14>DN13,1,\"\")","v":""},null,{"$f":"IF(DO20=DT16,DO20+1,IF(DO20=DT17,DO20+1,IF(DO20=DT19,DO20+1,DO20)))","v":0},{"$f":"IF(DV14>DV11,1,IF(DV14=DV11,DY20,\"\"))","v":""},{"$f":"IF(DV14>DV12,1,IF(DV14=DV12,DZ20,\"\"))","v":""},{"$f":"IF(DV14>DV13,1,IF(DV14=DV13,EA20,\"\"))","v":""},{"$f":"SUM(DU20:DW20)","v":0},{"$f":"IF(DW14>DW11,1,\"\")","v":""},{"$f":"IF(DW14>DW12,1,\"\")","v":""},{"$f":"IF(DW14>DW13,1,\"\")","v":""},null,{"$f":"IF(DX20=EC16,DX20+1,IF(DX20=EC17,DX20+1,IF(DX20=EC19,DX20+1,DX20)))","v":0},{"$f":"IF(EE14>EE11,1,IF(EE14=EE11,EH20,\"\"))","v":""},{"$f":"IF(EE14>EE12,1,IF(EE14=EE12,EI20,\"\"))","v":""},{"$f":"IF(EE14>EE13,1,IF(EE14=EE13,EJ20,\"\"))","v":""},{"$f":"SUM(ED20:EF20)","v":0},{"$f":"IF(EF14>EF11,1,\"\")","v":""},{"$f":"IF(EF14>EF12,1,\"\")","v":""},{"$f":"IF(EF14>EF13,1,\"\")","v":""},null,{"$f":"IF(EG20=EL16,EG20+1,IF(EG20=EL17,EG20+1,IF(EG20=EL19,EG20+1,EG20)))","v":0},{"$f":"IF(EN14>EN11,1,IF(EN14=EN11,EQ20,\"\"))","v":""},{"$f":"IF(EN14>EN12,1,IF(EN14=EN12,ER20,\"\"))","v":""},{"$f":"IF(EN14>EN13,1,IF(EN14=EN13,ES20,\"\"))","v":""},{"$f":"SUM(EM20:EO20)","v":0},{"$f":"IF(EO14>EO11,1,\"\")","v":""},{"$f":"IF(EO14>EO12,1,\"\")","v":""},{"$f":"IF(EO14>EO13,1,\"\")","v":""},null,{"$f":"IF(EP20=EU16,EP20+1,IF(EP20=EU17,EP20+1,IF(EP20=EU19,EP20+1,EP20)))","v":0}]
[null,null,"                                  Partie","Partie",null,null,null,null,null," Gruppe A",null,"Ges",null,null,null,null,null,null," Gruppe B",null,"Ges",null,null,null,null,null,null," Gruppe C",null,"Ges",null,null,null,null,null,null," Gruppe D",null,"Ges",null,null,null,null,null,null," Gruppe E",null,"Ges",null,null,null,null,null,null," Gruppe F",null,"Ges",null,null,null,null,null,null," Gruppe G",null,"Ges",null,null,null,null,null,null,"Gruppe H",null,"Ges",null,null,null,null,{"$f":"IF(CJ16=3,1,0)","v":0},{"$f":"IF(CJ16=2,1,0)","v":0},{"$f":"IF(CJ16=1,1,0)","v":1},{"$f":"IF(CJ16=0,1,0)","v":0},{"$f":"IF(CB21=0,0,1)","v":0},0,1,0,null,{"$f":"IF(CS16=3,5,0)","v":0},{"$f":"IF(CS16=2,5,0)","v":0},{"$f":"IF(CS16=1,5,0)","v":5},{"$f":"IF(CS16=0,5,0)","v":0},{"$f":"IF(CK21=0,0,1)","v":0},0,1,0,null,{"$f":"IF(DB16=3,9,0)","v":0},{"$f":"IF(DB16=2,9,0)","v":0},{"$f":"IF(DB16=1,9,0)","v":9},{"$f":"IF(DB16=0,9,0)","v":0},{"$f":"IF(CT21=0,0,1)","v":0},0,1,0,null,{"$f":"IF(DK16=3,13,0)","v":0},{"$f":"IF(DK16=2,13,0)","v":0},{"$f":"IF(DK16=1,13,0)","v":13},{"$f":"IF(DK16=0,13,0)","v":0},{"$f":"IF(DC21=0,0,1)","v":0},0,1,0,null,{"$f":"IF(DT16=3,17,0)","v":0},{"$f":"IF(DT16=2,17,0)","v":0},{"$f":"IF(DT16=1,17,0)","v":17},{"$f":"IF(DT16=0,17,0)","v":0},{"$f":"IF(DL21=0,0,1)","v":0},0,1,0,null,{"$f":"IF(EC16=3,21,0)","v":0},{"$f":"IF(EC16=2,21,0)","v":0},{"$f":"IF(EC16=1,21,0)","v":21},{"$f":"IF(EC16=0,21,0)","v":0},{"$f":"IF(DU21=0,0,1)","v":0},{"$f":"IF(DV21=0,0,1)","v":0},1,0,null,{"$f":"IF(EL16=3,25,0)","v":0},{"$f":"IF(EL16=2,25,0)","v":0},{"$f":"IF(EL16=1,25,0)","v":25},{"$f":"IF(EL16=0,25,0)","v":0},{"$f":"IF(ED21=0,0,1)","v":0},0,1,0,null,{"$f":"IF(EU16=3,29,0)","v":0},{"$f":"IF(EU16=2,29,0)","v":0},{"$f":"IF(EU16=1,29,0)","v":29},{"$f":"IF(EU16=0,29,0)","v":0},{"$f":"IF(EM21=0,0,1)","v":0},0,1,0]
[null,null,"Uhrzeit:","Land A","Land B",null,null,null,null,"Platz :","Land :"," Pkt:",null,null,null,null,null,null,"Platz :","Land :"," Pkt:",null,null,null,null,null,null,"Platz :","Land :"," Pkt:",null,null,null,null,null,null,"Platz :","Land :"," Pkt:",null,null,null,null,null,null,"Platz :","Land :"," Pkt:",null,null,null,null,null,null,"Platz :","Land :"," Pkt:",null,null,null,null,null,null,"Platz :","Land :"," Pkt:",null,null,null,null,null,null,"Platz :","Land :"," Pkt:",null,null,null,null,{"$f":"IF(CJ17=3,2,0)","v":0},{"$f":"IF(CJ17=2,2,0)","v":0},{"$f":"IF(CJ17=1,2,0)","v":2},{"$f":"IF(CJ17=0,2,0)","v":0},0,0,1,0,null,{"$f":"IF(CS17=3,6,0)","v":0},{"$f":"IF(CS17=2,6,0)","v":0},{"$f":"IF(CS17=1,6,0)","v":6},{"$f":"IF(CS17=0,6,0)","v":0},0,0,1,0,null,{"$f":"IF(DB17=3,10,0)","v":0},{"$f":"IF(DB17=2,10,0)","v":0},{"$f":"IF(DB17=1,10,0)","v":10},{"$f":"IF(DB17=0,10,0)","v":0},0,0,1,0,null,{"$f":"IF(DK17=3,14,0)","v":0},{"$f":"IF(DK17=2,14,0)","v":0},{"$f":"IF(DK17=1,14,0)","v":14},{"$f":"IF(DK17=0,14,0)","v":0},0,0,1,0,null,{"$f":"IF(DT17=3,18,0)","v":0},{"$f":"IF(DT17=2,18,0)","v":0},{"$f":"IF(DT17=1,18,0)","v":18},{"$f":"IF(DT17=0,18,0)","v":0},0,0,1,0,null,{"$f":"IF(EC17=3,22,0)","v":0},{"$f":"IF(EC17=2,22,0)","v":0},{"$f":"IF(EC17=1,22,0)","v":22},{"$f":"IF(EC17=0,22,0)","v":0},{"$f":"IF(DU22=0,0,1)","v":0},0,1,0,null,{"$f":"IF(EL17=3,26,0)","v":0},{"$f":"IF(EL17=2,26,0)","v":0},{"$f":"IF(EL17=1,26,0)","v":26},{"$f":"IF(EL17=0,26,0)","v":0},0,0,1,0,null,{"$f":"IF(EU17=3,30,0)","v":0},{"$f":"IF(EU17=2,30,0)","v":0},{"$f":"IF(EU17=1,30,0)","v":30},{"$f":"IF(EU17=0,30,0)","v":0},0,0,1,0]
[null,null,{"$f":"IF(CB89=0,\"\",CB89)","v":"15:00:00"},{"$f":"IF(CW274=0,\"\",IF(CW274=\"x\",\"Eingabe prüfen\",VLOOKUP(CW274,Daten!B1:C34,2)))","v":"Slowenien"},{"$f":"IF(CX274=0,\"\",IF(CX274=\"x\",\"Eingabe prüfen\",VLOOKUP(CX274,Daten!B1:C34,2)))","v":"Serbien"},null,null,null,null,1,{"$f":"IF(L23=0,\"\",IF(CB25=0,CB32,VLOOKUP(CB25,Daten!$B$1:$C$34,2)))","v":""},{"$f":"IF(CB25=0,CC32,VLOOKUP(CB25,Daten!B1:D32,3))","v":0},null,null,null,null,null,null,1,{"$f":"IF(U23=0,\"\",VLOOKUP(CK25,Daten!$B$1:$C$34,2))","v":""},{"$f":"VLOOKUP(CK25,Daten!B1:D32,3)","v":0},null,null,null,null,null,null,1,{"$f":"IF(AD23=0,\"\",VLOOKUP(CT25,Daten!B1:C34,2))","v":""},{"$f":"VLOOKUP(CT25,Daten!B1:D34,3)","v":0},null,null,null,null,null,null,1,{"$f":"IF(AM23=0,\"\",VLOOKUP(DC25,Daten!B1:C34,2))","v":""},{"$f":"VLOOKUP(DC25,Daten!B1:D34,3)","v":0},null,null,null,null,null,null,1,{"$f":"IF(AV23=0,\"\",VLOOKUP(DL25,Daten!B1:C34,2))","v":""},{"$f":"VLOOKUP(DL25,Daten!B1:D34,3)","v":0},null,null,null,null,null,null,1,{"$f":"IF(BE23=0,\"\",VLOOKUP(DU25,Daten!B1:C34,2))","v":""},{"$f":"VLOOKUP(DU25,Daten!B1:D34,3)","v":0},null,null,null,null,null,null,1,{"$f":"IF(BN23=0,\"\",VLOOKUP(ED25,Daten!B1:C34,2))","v":""},{"$f":"VLOOKUP(ED25,Daten!B1:D34,3)","v":0},null,null,null,null,null,null,1,{"$f":"IF(BW23=0,\"\",VLOOKUP(EM25,Daten!B1:C34,2))","v":""},{"$f":"VLOOKUP(EM25,Daten!B1:D34,3)","v":0},null,null,null,null,{"$f":"IF(CJ19=3,3,0)","v":0},{"$f":"IF(CJ19=2,3,0)","v":0},{"$f":"IF(CJ19=1,3,0)","v":3},{"$f":"IF(CJ19=0,3,0)","v":0},0,0,1,0,null,{"$f":"IF(CS19=3,7,0)","v":0},{"$f":"IF(CS19=2,7,0)","v":0},{"$f":"IF(CS19=1,7,0)","v":7},{"$f":"IF(CS19=0,7,0)","v":0},0,0,1,0,null,{"$f":"IF(DB19=3,11,0)","v":0},{"$f":"IF(DB19=2,11,0)","v":0},{"$f":"IF(DB19=1,11,0)","v":11},{"$f":"IF(DB19=0,11,0)","v":0},0,0,1,0,null,{"$f":"IF(DK19=3,15,0)","v":0},{"$f":"IF(DK19=2,15,0)","v":0},{"$f":"IF(DK19=1,15,0)","v":15},{"$f":"IF(DK19=0,15,0)","v":0},0,0,1,0,null,{"$f":"IF(DT19=3,19,0)","v":0},{"$f":"IF(DT19=2,19,0)","v":0},{"$f":"IF(DT19=1,19,0)","v":19},{"$f":"IF(DT19=0,19,0)","v":0},0,0,1,0,null,{"$f":"IF(EC19=3,23,0)","v":0},{"$f":"IF(EC19=2,23,0)","v":0},{"$f":"IF(EC19=1,23,0)","v":23},{"$f":"IF(EC19=0,23,0)","v":0},{"$f":"IF(DU23=0,0,1)","v":0},0,1,0,null,{"$f":"IF(EL19=3,27,0)","v":0},{"$f":"IF(EL19=2,27,0)","v":0},{"$f":"IF(EL19=1,27,0)","v":27},{"$f":"IF(EL19=0,27,0)","v":0},0,0,1,0,null,{"$f":"IF(EU19=3,31,0)","v":0},{"$f":"IF(EU19=2,31,0)","v":0},{"$f":"IF(EU19=1,31,0)","v":31},{"$f":"IF(EU19=0,31,0)","v":0},0,0,1,0]
[null,null,{"$f":"IF(CE89=0,\"\",CE89)","v":"18:00:00"},{"$f":"IF(CY274=0,\"\",IF(CY274=\"x\",\"Eingabe prüfen\",VLOOKUP(CY274,Daten!B1:C34,2)))","v":"England"},{"$f":"IF(CZ274=0,\"\",IF(CZ274=\"x\",\"Eingabe prüfen\",VLOOKUP(CZ274,Daten!B1:C34,2)))","v":"Dänemark"},null,null,null,null,2,{"$f":"IF(L23=0,\"\",IF(CC25=0,CB32,IF(CC25=0,CB32,VLOOKUP(CC25,Daten!$B$1:$C$34,2))))","v":""},{"$f":"IF(CC25=0,CC32,VLOOKUP(CC25,Daten!B1:D32,3))","v":0},null,null,null,null,null,null,2,{"$f":"IF(U23=0,\"\",VLOOKUP(CL25,Daten!$B$1:$C$34,2))","v":""},{"$f":"VLOOKUP(CL25,Daten!B1:D32,3)","v":0},null,null,null,null,null,null,2,{"$f":"IF(AD23=0,\"\",VLOOKUP(CU25,Daten!B1:C34,2))","v":""},{"$f":"VLOOKUP(CU25,Daten!B1:D34,3)","v":0},null,null,null,null,null,null,2,{"$f":"IF(AM23=0,\"\",VLOOKUP(DD25,Daten!B1:C34,2))","v":""},{"$f":"VLOOKUP(DD25,Daten!B1:D34,3)","v":0},null,null,null,null,null,null,2,{"$f":"IF(AV23=0,\"\",VLOOKUP(DM25,Daten!B1:C34,2))","v":""},{"$f":"VLOOKUP(DM25,Daten!B1:D34,3)","v":0},null,null,null,null,null,null,2,{"$f":"IF(BE23=0,\"\",VLOOKUP(DV25,Daten!B1:C34,2))","v":""},{"$f":"VLOOKUP(DV25,Daten!B1:D34,3)","v":0},null,null,null,null,null,null,2,{"$f":"IF(BN23=0,\"\",VLOOKUP(EE25,Daten!B1:C34,2))","v":""},{"$f":"VLOOKUP(EE25,Daten!B1:D34,3)","v":0},null,null,null,null,null,null,2,{"$f":"IF(BW23=0,\"\",VLOOKUP(EN25,Daten!B1:C34,2))","v":""},{"$f":"VLOOKUP(EN25,Daten!B1:D34,3)","v":0},null,null,null,null,{"$f":"IF(CJ20=3,4,0)","v":0},{"$f":"IF(CJ20=2,4,0)","v":0},{"$f":"IF(CJ20=1,4,0)","v":0},{"$f":"IF(CJ20=0,4,0)","v":4},0,0,0,1,null,{"$f":"IF(CS20=3,8,0)","v":0},{"$f":"IF(CS20=2,8,0)","v":0},{"$f":"IF(CS20=1,8,0)","v":0},{"$f":"IF(CS20=0,8,0)","v":8},0,0,0,1,null,{"$f":"IF(DB20=3,12,0)","v":0},{"$f":"IF(DB20=2,12,0)","v":0},{"$f":"IF(DB20=1,12,0)","v":0},{"$f":"IF(DB20=0,12,0)","v":12},0,0,0,1,null,{"$f":"IF(DK20=3,16,0)","v":0},{"$f":"IF(DK20=2,16,0)","v":0},{"$f":"IF(DK20=1,16,0)","v":0},{"$f":"IF(DK20=0,16,0)","v":16},0,0,0,1,null,{"$f":"IF(DT20=3,20,0)","v":0},{"$f":"IF(DT20=2,20,0)","v":0},{"$f":"IF(DT20=1,20,0)","v":0},{"$f":"IF(DT20=0,20,0)","v":20},0,0,0,1,null,{"$f":"IF(EC20=3,24,0)","v":0},{"$f":"IF(EC20=2,24,0)","v":0},{"$f":"IF(EC20=1,24,0)","v":0},{"$f":"IF(EC20=0,24,0)","v":24},{"$f":"IF(DU24=0,0,1)","v":0},0,0,1,null,{"$f":"IF(EL20=3,28,0)","v":0},{"$f":"IF(EL20=2,28,0)","v":0},{"$f":"IF(EL20=1,28,0)","v":0},{"$f":"IF(EL20=0,28,0)","v":28},0,0,0,1,null,{"$f":"IF(EU20=3,32,0)","v":0},{"$f":"IF(EU20=2,32,0)","v":0},{"$f":"IF(EU20=1,32,0)","v":0},{"$f":"IF(EU20=0,32,0)","v":32},0,0,0,1]
[null,null,{"$f":"IF(CK89=0,\"\",CK89)","v":"21:00:00"},{"$f":"IF(DD274=0,\"\",IF(DD274=\"x\",\"Eingabe prüfen\",VLOOKUP(DD274,Daten!B1:C34,2)))","v":"Spanien"},{"$f":"IF(DE274=0,\"\",IF(DE274=\"x\",\"Eingabe prüfen\",VLOOKUP(DE274,Daten!B1:C34,2)))","v":"Italien"},null,null,null,null,3,{"$f":"IF(L23=0,\"\",IF(CD25=0,CB33,VLOOKUP(CD25,Daten!$B$1:$C$34,2)))","v":""},{"$f":"IF(CD25=0,CC33,VLOOKUP(CD25,Daten!B1:D32,3))","v":0},null,null,null,null,null,null,3,{"$f":"IF(U23=0,\"\",VLOOKUP(CM25,Daten!$B$1:$C$34,2))","v":""},{"$f":"VLOOKUP(CM25,Daten!B1:D32,3)","v":0},null,null,null,null,null,null,3,{"$f":"IF(AD23=0,\"\",VLOOKUP(CV25,Daten!B1:C34,2))","v":""},{"$f":"VLOOKUP(CV25,Daten!B1:D34,3)","v":0},null,null,null,null,null,null,3,{"$f":"IF(AM23=0,\"\",VLOOKUP(DE25,Daten!B1:C34,2))","v":""},{"$f":"VLOOKUP(DE25,Daten!B1:D34,3)","v":0},null,null,null,null,null,null,3,{"$f":"IF(AV23=0,\"\",VLOOKUP(DN25,Daten!B1:C34,2))","v":""},{"$f":"VLOOKUP(DN25,Daten!B1:D34,3)","v":0},null,null,null,null,null,null,3,{"$f":"IF(BE23=0,\"\",VLOOKUP(DW25,Daten!B1:C34,2))","v":""},{"$f":"VLOOKUP(DW25,Daten!B1:D34,3)","v":0},null,null,null,null,null,null,3,{"$f":"IF(BN23=0,\"\",VLOOKUP(EF25,Daten!B1:C34,2))","v":""},{"$f":"VLOOKUP(EF25,Daten!B1:D34,3)","v":0},null,null,null,null,null,null,3,{"$f":"IF(BW23=0,\"\",VLOOKUP(EO25,Daten!B1:C34,2))","v":""},{"$f":"VLOOKUP(EO25,Daten!B1:D34,3)","v":0},null,null,null,{"$f":"IF(CF15=2,2,IF(10-SUM(CB25:CE25)>4,0,10-(SUM(CB25:CE25))))","v":0},{"$f":"IF(SUM(CB21:CB24)=0,CJ26,IF(SUM(CB21:CB24)>4,CJ26,(SUM(CB21:CB24))))","v":1},{"$f":"IF(SUM(CC21:CC24)=0,CJ31,IF(SUM(CC21:CC24)>4,CJ31,(SUM(CC21:CC24))))","v":2},{"$f":"IF(SUM(CD21:CD24)=0,CJ32,IF(SUM(CD21:CD24)>4,CJ32,(SUM(CD21:CD24))))","v":3},{"$f":"IF(SUM(CE21:CE24)=0,CJ33,IF(SUM(CE21:CE24)>4,CJ33,(SUM(CE21:CE24))))","v":4},{"$f":"IF(SUM(CF21:CF24)>24,0,(SUM(CF21:CF24)))","v":0},{"$f":"IF(SUM(CG21:CG24)>24,0,(SUM(CG21:CG24)))","v":0},{"$f":"IF(SUM(CH21:CH24)>24,0,(SUM(CH21:CH24)))","v":3},{"$f":"IF(SUM(CI21:CI24)>24,0,(SUM(CI21:CI24)))","v":1},null,{"$f":"IF(SUM(CK21:CK24)=0,CS26,IF(SUM(CK21:CK24)>8,CS26,(SUM(CK21:CK24))))","v":5},{"$f":"IF(SUM(CL21:CL24)=0,CS31,IF(SUM(CL21:CL24)>8,CS31,(SUM(CL21:CL24))))","v":6},{"$f":"IF(SUM(CM21:CM24)=0,CS32,IF(SUM(CM21:CM24)>8,CS32,(SUM(CM21:CM24))))","v":7},{"$f":"IF(SUM(CN21:CN24)=0,CS33,IF(SUM(CN21:CN24)>8,CS33,(SUM(CN21:CN24))))","v":8},{"$f":"IF(SUM(CO21:CO24)>24,0,(SUM(CO21:CO24)))","v":0},{"$f":"IF(SUM(CP21:CP24)>24,0,(SUM(CP21:CP24)))","v":0},{"$f":"IF(SUM(CQ21:CQ24)>24,0,(SUM(CQ21:CQ24)))","v":3},{"$f":"IF(SUM(CR21:CR24)>24,0,(SUM(CR21:CR24)))","v":1},null,{"$f":"IF(SUM(CT21:CT24)=0,DB26,IF(SUM(CT21:CT24)>12,DB26,(SUM(CT21:CT24))))","v":9},{"$f":"IF(SUM(CU21:CU24)=0,DB31,IF(SUM(CU21:CU24)>12,DB31,(SUM(CU21:CU24))))","v":10},{"$f":"IF(SUM(CV21:CV24)=0,DB32,IF(SUM(CV21:CV24)>12,DB32,(SUM(CV21:CV24))))","v":11},{"$f":"IF(SUM(CW21:CW24)=0,DB33,IF(SUM(CW21:CW24)>12,DB33,(SUM(CW21:CW24))))","v":12},{"$f":"IF(SUM(CX21:CX24)>24,0,(SUM(CX21:CX24)))","v":0},{"$f":"IF(SUM(CY21:CY24)>24,0,(SUM(CY21:CY24)))","v":0},{"$f":"IF(SUM(CZ21:CZ24)>24,0,(SUM(CZ21:CZ24)))","v":3},{"$f":"IF(SUM(DA21:DA24)>24,0,(SUM(DA21:DA24)))","v":1},null,{"$f":"IF(SUM(DC21:DC24)=0,DK26,IF(SUM(DC21:DC24)>16,DK26,(SUM(DC21:DC24))))","v":13},{"$f":"IF(SUM(DD21:DD24)=0,DK31,IF(SUM(DD21:DD24)>16,DK31,(SUM(DD21:DD24))))","v":14},{"$f":"IF(SUM(DE21:DE24)=0,DK32,IF(SUM(DE21:DE24)>16,DK32,(SUM(DE21:DE24))))","v":15},{"$f":"IF(SUM(DF21:DF24)=0,DK33,IF(SUM(DF21:DF24)>16,DK33,(SUM(DF21:DF24))))","v":16},{"$f":"IF(SUM(DG21:DG24)>24,0,(SUM(DG21:DG24)))","v":0},{"$f":"IF(SUM(DH21:DH24)>24,0,(SUM(DH21:DH24)))","v":0},{"$f":"IF(SUM(DI21:DI24)>24,0,(SUM(DI21:DI24)))","v":3},{"$f":"IF(SUM(DJ21:DJ24)>24,0,(SUM(DJ21:DJ24)))","v":1},null,{"$f":"IF(SUM(DL21:DL24)=0,DT26,IF(SUM(DL21:DL24)>20,DT26,(SUM(DL21:DL24))))","v":17},{"$f":"IF(SUM(DM21:DM24)=0,DT31,IF(SUM(DM21:DM24)>20,DT31,(SUM(DM21:DM24))))","v":18},{"$f":"IF(SUM(DN21:DN24)=0,DT32,IF(SUM(DN21:DN24)>20,DT32,(SUM(DN21:DN24))))","v":19},{"$f":"IF(SUM(DO21:DO24)=0,DT33,IF(SUM(DO21:DO24)>20,DT33,(SUM(DO21:DO24))))","v":20},{"$f":"IF(SUM(DP21:DP24)>24,0,(SUM(DP21:DP24)))","v":0},{"$f":"IF(SUM(DQ21:DQ24)>24,0,(SUM(DQ21:DQ24)))","v":0},{"$f":"IF(SUM(DR21:DR24)>24,0,(SUM(DR21:DR24)))","v":3},{"$f":"IF(SUM(DS21:DS24)>24,0,(SUM(DS21:DS24)))","v":1},null,{"$f":"IF(SUM(DU21:DU24)=0,EC26,IF(SUM(DU21:DU24)>24,EC26,(SUM(DU21:DU24))))","v":21},{"$f":"IF(SUM(DV21:DV24)=0,EC31,IF(SUM(DV21:DV24)>24,EC31,(SUM(DV21:DV24))))","v":22},{"$f":"IF(SUM(DW21:DW24)=0,EC32,IF(SUM(DW21:DW24)>24,EC32,(SUM(DW21:DW24))))","v":23},{"$f":"IF(SUM(DX21:DX24)=0,EC33,IF(SUM(DX21:DX24)>24,EC33,(SUM(DX21:DX24))))","v":24},{"$f":"IF(SUM(DY21:DY24)>24,0,(SUM(DY21:DY24)))","v":0},{"$f":"IF(SUM(DZ21:DZ24)>24,0,(SUM(DZ21:DZ24)))","v":0},{"$f":"IF(SUM(EA21:EA24)>24,0,(SUM(EA21:EA24)))","v":3},{"$f":"IF(SUM(EB21:EB24)>24,0,(SUM(EB21:EB24)))","v":1},null,{"$f":"IF(SUM(ED21:ED24)=0,EL26,IF(SUM(ED21:ED24)>28,EL26,(SUM(ED21:ED24))))","v":25},{"$f":"IF(SUM(EE21:EE24)=0,EL31,IF(SUM(EE21:EE24)>28,EL31,(SUM(EE21:EE24))))","v":26},{"$f":"IF(SUM(EF21:EF24)=0,EL32,IF(SUM(EF21:EF24)>28,EL32,(SUM(EF21:EF24))))","v":27},{"$f":"IF(SUM(EG21:EG24)=0,EL33,IF(SUM(EG21:EG24)>28,EL33,(SUM(EG21:EG24))))","v":28},{"$f":"IF(SUM(EH21:EH24)>24,0,(SUM(EH21:EH24)))","v":0},{"$f":"IF(SUM(EI21:EI24)>24,0,(SUM(EI21:EI24)))","v":0},{"$f":"IF(SUM(EJ21:EJ24)>24,0,(SUM(EJ21:EJ24)))","v":3},{"$f":"IF(SUM(EK21:EK24)>24,0,(SUM(EK21:EK24)))","v":1},null,{"$f":"IF(SUM(EM21:EM24)=0,EU26,IF(SUM(EM21:EM24)>32,EU26,(SUM(EM21:EM24))))","v":29},{"$f":"IF(SUM(EN21:EN24)=0,EU31,IF(SUM(EN21:EN24)>32,EU31,(SUM(EN21:EN24))))","v":30},{"$f":"IF(SUM(EO21:EO24)=0,EU32,IF(SUM(EO21:EO24)>32,EU32,(SUM(EO21:EO24))))","v":31},{"$f":"IF(SUM(EP21:EP24)=0,EU33,IF(SUM(EP21:EP24)>32,EU33,(SUM(EP21:EP24))))","v":32},{"$f":"IF(SUM(EQ21:EQ24)>24,0,(SUM(EQ21:EQ24)))","v":0},{"$f":"IF(SUM(ER21:ER24)>24,0,(SUM(ER21:ER24)))","v":0},{"$f":"IF(SUM(ES21:ES24)>24,0,(SUM(ES21:ES24)))","v":3},{"$f":"IF(SUM(ET21:ET24)>24,0,(SUM(ET21:ET24)))","v":1}]
[null,null,{"$f":"IF(CN89=0,\"\",CN89)","v":""},{"$f":"IF(DF274=0,\"\",IF(DF274=\"x\",\"Eingabe prüfen\",VLOOKUP(DF274,Daten!B1:C34,2)))","v":""},{"$f":"IF(DG274=0,\"\",IF(DG274=\"x\",\"Eingabe prüfen\",VLOOKUP(DG274,Daten!B1:C34,2)))","v":""},null,null,null,null,4,{"$f":"IF(L23=0,\"\",IF(CE25=0,CB32,VLOOKUP(CE25,Daten!$B$1:$C$34,2)))","v":""},{"$f":"IF(CE25=0,CC32,VLOOKUP(CE25,Daten!B1:D32,3))","v":0},null,null,null,null,null,null,4,{"$f":"IF(U23=0,\"\",VLOOKUP(CN25,Daten!$B$1:$C$34,2))","v":""},{"$f":"VLOOKUP(CN25,Daten!B1:D32,3)","v":0},null,null,null,null,null,null,4,{"$f":"IF(AD23=0,\"\",VLOOKUP(CW25,Daten!B1:C34,2))","v":""},{"$f":"VLOOKUP(CW25,Daten!B1:D34,3)","v":0},null,null,null,null,null,null,4,{"$f":"IF(AM23=0,\"\",VLOOKUP(DF25,Daten!B1:C34,2))","v":""},{"$f":"VLOOKUP(DF25,Daten!B1:D34,3)","v":0},null,null,null,null,null,null,4,{"$f":"IF(AV23=0,\"\",VLOOKUP(DO25,Daten!B1:C34,2))","v":""},{"$f":"VLOOKUP(DO25,Daten!B1:D34,3)","v":0},null,null,null,null,null,null,4,{"$f":"IF(BE23=0,\"\",VLOOKUP(DX25,Daten!B1:C34,2))","v":""},{"$f":"VLOOKUP(DX25,Daten!B1:D34,3)","v":0},null,null,null,null,null,null,4,{"$f":"IF(BN23=0,\"\",VLOOKUP(EG25,Daten!B1:C34,2))","v":""},{"$f":"VLOOKUP(EG25,Daten!B1:D34,3)","v":0},null,null,null,null,null,null,4,{"$f":"IF(BW23=0,\"\",VLOOKUP(EP25,Daten!B1:C34,2))","v":""},{"$f":"VLOOKUP(EP25,Daten!B1:D34,3)","v":0},null,null,null,null,null,null,null,null,{"$f":"IF(CF25>1,CB21,0)","v":0},{"$f":"IF(CG25>1,CC21,0)","v":0},{"$f":"IF(CH25>1,CD21,0)","v":1},{"$f":"IF(CI25>1,CE21,0)","v":0},{"$f":"SUM(CF26:CI26)","v":1},"1. Platz","2. Platz","3. Platz","4.Platz",{"$f":"IF(CO25>1,CK21,0)","v":0},{"$f":"IF(CP25>1,CL21,0)","v":0},{"$f":"IF(CQ25>1,CM21,0)","v":5},{"$f":"IF(CR25>1,CN21,0)","v":0},{"$f":"SUM(CO26:CR26)","v":5},"1. Platz","2. Platz","3. Platz","4.Platz",{"$f":"IF(CX25>1,CT21,0)","v":0},{"$f":"IF(CY25>1,CU21,0)","v":0},{"$f":"IF(CZ25>1,CV21,0)","v":9},{"$f":"IF(DA25>1,CW21,0)","v":0},{"$f":"SUM(CX26:DA26)","v":9},"1. Platz","2. Platz","3. Platz","4.Platz",{"$f":"IF(DG25>1,DC21,0)","v":0},{"$f":"IF(DH25>1,DD21,0)","v":0},{"$f":"IF(DI25>1,DE21,0)","v":13},{"$f":"IF(DJ25>1,DF21,0)","v":0},{"$f":"SUM(DG26:DJ26)","v":13},"1. Platz","2. Platz","3. Platz","4.Platz",{"$f":"IF(DP25>1,DL21,0)","v":0},{"$f":"IF(DQ25>1,DM21,0)","v":0},{"$f":"IF(DR25>1,DN21,0)","v":17},{"$f":"IF(DS25>1,DO21,0)","v":0},{"$f":"SUM(DP26:DS26)","v":17},"1. Platz","2. Platz","3. Platz","4.Platz",{"$f":"IF($DY$25>1,DU21,0)","v":0},{"$f":"IF($DZ$25>1,DV21,0)","v":0},{"$f":"IF($EA$25>1,DW21,0)","v":21},{"$f":"IF($EB$25>1,DX21,0)","v":0},{"$f":"SUM(DY26:EB26)","v":21},"1. Platz","2. Platz","3. Platz","4.Platz",{"$f":"IF(EH25>1,ED21,0)","v":0},{"$f":"IF(EI25>1,EE21,0)","v":0},{"$f":"IF(EJ25>1,EF21,0)","v":25},{"$f":"IF(EK25>1,EG21,0)","v":0},{"$f":"SUM(EH26:EK26)","v":25},"1. Platz","2. Platz","3. Platz","4.Platz",{"$f":"IF(EQ25>1,EM21,0)","v":0},{"$f":"IF(ER25>1,EN21,0)","v":0},{"$f":"IF(ES25>1,EO21,0)","v":29},{"$f":"IF(ET25>1,EP21,0)","v":0},{"$f":"SUM(EQ26:ET26)","v":29}]
[]
[]
[]
[]
[null,null,null,null,null,null,null,{"$f":"IF(CB43>0,\"Achtung: Ab dem Achtelfinale kann je Partie nur ein Land gewinnen - Bitte Ergebnise überprüfen!!!\",\"\")","v":""},null,null,null,null,null,null,null,null,null,null,null,null,null,null,null,null,null,null,null,null,null,null,null,null,null,null,null,null,null,null,null,null,null,null,null,null,null,null,null,null,null,null,null,null,null,null,null,null,null,null,null,null,null,null,null,null,null,null,null,null,null,null,null,null,null,null,null,null,null,null,null,null,null,null,null,{"$f":"IF(CF25>1,CB22,0)","v":0},{"$f":"IF(CG25>1,CC22,0)","v":0},{"$f":"IF(CH25>1,CD22,0)","v":2},{"$f":"IF(CI25>1,CE22,0)","v":0},{"$f":"SUM(CF31:CI31)","v":2},null,null,null,null,{"$f":"IF(CO25>1,CK22,0)","v":0},{"$f":"IF(CP25>1,CL22,0)","v":0},{"$f":"IF(CQ25>1,CM22,0)","v":6},{"$f":"IF(CR25>1,CN22,0)","v":0},{"$f":"SUM(CO31:CR31)","v":6},null,null,null,null,{"$f":"IF(CX25>1,CT22,0)","v":0},{"$f":"IF(CY25>1,CU22,0)","v":0},{"$f":"IF(CZ25>1,CV22,0)","v":10},{"$f":"IF(DA25>1,CW22,0)","v":0},{"$f":"SUM(CX31:DA31)","v":10},null,null,null,null,{"$f":"IF(DG25>1,DC22,0)","v":0},{"$f":"IF(DH25>1,DD22,0)","v":0},{"$f":"IF(DI25>1,DE22,0)","v":14},{"$f":"IF(DJ25>1,DF22,0)","v":0},{"$f":"SUM(DG31:DJ31)","v":14},null,null,null,null,{"$f":"IF(DP25>1,DL22,0)","v":0},{"$f":"IF(DQ25>1,DM22,0)","v":0},{"$f":"IF(DR25>1,DN22,0)","v":18},{"$f":"IF(DS25>1,DO22,0)","v":0},{"$f":"SUM(DP31:DS31)","v":18},null,null,null,null,{"$f":"IF($DY$25>1,DU22,0)","v":0},{"$f":"IF($DZ$25>1,DV22,0)","v":0},{"$f":"IF($EA$25>1,DW22,0)","v":22},{"$f":"IF($EB$25>1,DX22,0)","v":0},{"$f":"SUM(DY31:EB31)","v":22},null,null,null,null,{"$f":"IF(EH25>1,ED22,0)","v":0},{"$f":"IF(EI25>1,EE22,0)","v":0},{"$f":"IF(EJ25>1,EF22,0)","v":26},{"$f":"IF(EK25>1,EG22,0)","v":0},{"$f":"SUM(EH31:EK31)","v":26},null,null,null,null,{"$f":"IF(EQ25>1,EM22,0)","v":0},{"$f":"IF(ER25>1,EN22,0)","v":0},{"$f":"IF(ES25>1,EO22,0)","v":30},{"$f":"IF(ET25>1,EP22,0)","v":0},{"$f":"SUM(EQ31:ET31)","v":30}]
[null,null,null,"           Korrekturtabelle Achtelfinale",null,null,null,"      ",null,"Achtelfinale",null,null,null," Punkte ",null,null,null,null,null,null,null,null,null,null,null,null,null,null,null,null,null,null,null,null,null,null,null,null,null,null,null,null,null,null,null,null,null,null,null,null,null,null,null,null,null,null,null,null,null,null,null,null,null,null,null,null,null,null,null,null,null,null,null,null,null,null,null,null,null,{"$f":"IF(CA25=0,\"\",VLOOKUP(CA25,Daten!B1:C35,2))","v":""},{"$f":"IF(CA25=0,\"\",VLOOKUP(CA25,Daten!B1:D35,3))","v":""},null,null,{"$f":"IF(CF25>1,CB23,0)","v":0},{"$f":"IF(CG25>1,CC23,0)","v":0},{"$f":"IF(CH25>1,CD23,0)","v":3},{"$f":"IF(CI25>1,CE23,0)","v":0},{"$f":"SUM(CF32:CI32)","v":3},null,null,null,null,{"$f":"IF(CO25>1,CK23,0)","v":0},{"$f":"IF(CP25>1,CL23,0)","v":0},{"$f":"IF(CQ25>1,CM23,0)","v":7},{"$f":"IF(CR25>1,CN23,0)","v":0},{"$f":"SUM(CO32:CR32)","v":7},null,null,null,null,{"$f":"IF(CX25>1,CT23,0)","v":0},{"$f":"IF(CY25>1,CU23,0)","v":0},{"$f":"IF(CZ25>1,CV23,0)","v":11},{"$f":"IF(DA25>1,CW23,0)","v":0},{"$f":"SUM(CX32:DA32)","v":11},null,null,null,null,{"$f":"IF(DG25>1,DC23,0)","v":0},{"$f":"IF(DH25>1,DD23,0)","v":0},{"$f":"IF(DI25>1,DE23,0)","v":15},{"$f":"IF(DJ25>1,DF23,0)","v":0},{"$f":"SUM(DG32:DJ32)","v":15},null,null,null,null,{"$f":"IF(DP25>1,DL23,0)","v":0},{"$f":"IF(DQ25>1,DM23,0)","v":0},{"$f":"IF(DR25>1,DN23,0)","v":19},{"$f":"IF(DS25>1,DO23,0)","v":0},{"$f":"SUM(DP32:DS32)","v":19},null,null,null,null,{"$f":"IF($DY$25>1,DU23,0)","v":0},{"$f":"IF($DZ$25>1,DV23,0)","v":0},{"$f":"IF($EA$25>1,DW23,0)","v":23},{"$f":"IF($EB$25>1,DX23,0)","v":0},{"$f":"SUM(DY32:EB32)","v":23},null,null,null,null,{"$f":"IF(EH25>1,ED23,0)","v":0},{"$f":"IF(EI25>1,EE23,0)","v":0},{"$f":"IF(EJ25>1,EF23,0)","v":27},{"$f":"IF(EK25>1,EG23,0)","v":0},{"$f":"SUM(EH32:EK32)","v":27},null,null,null,null,{"$f":"IF(EQ25>1,EM23,0)","v":0},{"$f":"IF(ER25>1,EN23,0)","v":0},{"$f":"IF(ES25>1,EO23,0)","v":31},{"$f":"IF(ET25>1,EP23,0)","v":0},{"$f":"SUM(EQ32:ET32)","v":31}]
[null,null,null,"                             Partie",null,null,null,null,null,"Partie",null,null,null,"für Land:",null,null,{"$f":"IF(CC43>0,\"Achtung: Ab dem Achtelfinale kann je Partie nur ein Land gewinnen - Bitte Ergebnise überprüfen!!!\",\"\")","v":""},null,null,null,null,null,null,null,null,null,null,null,null,null,null,null,null,null,null,null,null,null,null,null,null,null,null,null,null,null,null,null,null,null,null,null,null,null,null,null,null,null,null,null,null,null,null,null,null,null,null,null,null,null,null,null,null,null,null,null,null,null,null,{"$f":"IF(CF15=2,CB14,CB32)","v":""},{"$f":"IF(CF15=2,CC14,CC32)","v":""},null,null,{"$f":"IF(CF25>1,CB24,0)","v":0},{"$f":"IF(CG25>1,CC24,0)","v":0},{"$f":"IF(CH25>1,CD24,0)","v":0},{"$f":"IF(CI25>1,CE24,0)","v":0},{"$f":"SUM(CF33:CI33)","v":0},null,null,null,null,{"$f":"IF(CO25>1,CK24,0)","v":0},{"$f":"IF(CP25>1,CL24,0)","v":0},{"$f":"IF(CQ25>1,CM24,0)","v":0},{"$f":"IF(CR25>1,CN24,0)","v":0},{"$f":"SUM(CO33:CR33)","v":0},null,null,null,null,{"$f":"IF(CX25>1,CT24,0)","v":0},{"$f":"IF(CY25>1,CU24,0)","v":0},{"$f":"IF(CZ25>1,CV24,0)","v":0},{"$f":"IF(DA25>1,CW24,0)","v":0},{"$f":"SUM(CX33:DA33)","v":0},null,null,null,null,{"$f":"IF(DG25>1,DC24,0)","v":0},{"$f":"IF(DH25>1,DD24,0)","v":0},{"$f":"IF(DI25>1,DE24,0)","v":0},{"$f":"IF(DJ25>1,DF24,0)","v":0},{"$f":"SUM(DG33:DJ33)","v":0},null,null,null,null,{"$f":"IF(DP25>1,DL24,0)","v":0},{"$f":"IF(DQ25>1,DM24,0)","v":0},{"$f":"IF(DR25>1,DN24,0)","v":0},{"$f":"IF(DS25>1,DO24,0)","v":0},{"$f":"SUM(DP33:DS33)","v":0},null,null,null,null,{"$f":"IF($DY$25>1,DU24,0)","v":0},{"$f":"IF($DZ$25>1,DV24,0)","v":0},{"$f":"IF($EA$25>1,DW24,0)","v":0},{"$f":"IF($EB$25>1,DX24,0)","v":0},{"$f":"SUM(DY33:EB33)","v":0},null,null,null,null,{"$f":"IF(EH25>1,ED24,0)","v":0},{"$f":"IF(EI25>1,EE24,0)","v":0},{"$f":"IF(EJ25>1,EF24,0)","v":0},{"$f":"IF(EK25>1,EG24,0)","v":0},{"$f":"SUM(EH33:EK33)","v":0},null,null,null,null,{"$f":"IF(EQ25>1,EM24,0)","v":0},{"$f":"IF(ER25>1,EN24,0)","v":0},{"$f":"IF(ES25>1,EO24,0)","v":0},{"$f":"IF(ET25>1,EP24,0)","v":0},{"$f":"SUM(EQ33:ET33)","v":0}]
[null,null,null,"         Land A","       Land B","Version 2.5    von Heinrich - Bernhard Münzebrock",null,"Datum","Uhrzeit:","Land A","  Land B","Ergebnis",null," A:"," B:",null,"      ",null,"Viertelfinale",null,null,null," Punkte ",null,null,{"$f":"IF(CD43>0,\"Achtung: Ab dem Achtelfinale kann je Partie nur ein Land gewinnen - Bitte Ergebnise überprüfen!!!\",\"\")","v":""}]
[null,null,null,null,null,null,null,"2024-06-29","18:00:00",{"$f":"IF(D35=\"\",K24,D35)","v":""},{"$f":"IF(E35<>\"\",E35,T24)","v":""},null,null,{"$f":"IF(L35=\"\",\"\",IF(L35>M35,3,IF(L35=M35,1,0)))","v":""},{"$f":"IF(M35=\"\",\"\",IF(M35>L35,3,IF(M35=L35,1,0)))","v":""},null,null,null,"Partie",null,null,null,"für Land:",null,null,"      ",null,"Halbfinale",null,null,null," Punkte ",null,null,{"$f":"IF(CE43>0,\"Achtung: Ab dem Achtelfinale kann je Partie nur ein Land gewinnen - Bitte Ergebnise überprüfen!!!\",\"\")","v":""},null,null,null,null,null,null,null,{"$f":"IF(CF43>0,\"Achtung: Ab dem Achtelfinale kann je Partie nur ein Land gewinnen - Bitte Ergebnise überprüfen!!!\",\"\")","v":""},null,null,null,null,null,null,null,null,null,null,null,null,null,null,null,null,null,null,null,null,null,null,null,null,null,null,null,null,null,null,null,null,null,null,null,null,{"$f":"IF(N35=\"\",0,IF(O35=\"\",0,IF((N35+O35)=2,1,0)))","v":0}]
[null,null,null,null,null,null,null,"2024-06-29","21:00:00",{"$f":"IF(D36<>\"\",D36,K23)","v":""},{"$f":"IF(E36<>\"\",E36,AC24)","v":""},null,null,{"$f":"IF(L36=\"\",\"\",IF(L36>M36,3,IF(L36=M36,1,0)))","v":""},{"$f":"IF(M36=\"\",\"\",IF(M36>L36,3,IF(M36=L36,1,0)))","v":""},null,"Datum",null,"Land A","  Land B","Ergebnis:",null," A:"," B:",null,null,null,"Partie",null,null,null,"für Land:",null,null,"      ",null,"Finale",null,null,null," Punkte ",null,null,null,null,null,null,null,null,null,null,null,null,null,null,null,null,null,null,null,null,null,null,null,null,null,null,null,null,null,null,null,null,null,null,null,null,null,null,{"$f":"IF(N36=\"\",0,IF(O36=\"\",0,IF((N36+O36)=2,1,0)))","v":0}]
[null,null,null,null,null,null,null,"2024-06-30","18:00:00",{"$f":"IF(D37<>\"\",D37,AC23)","v":""},null,null,null,"","",null,"2024-07-05","18:00:00",{"$f":"IF($N$39=\"\",\"\",IF($N$39>$O$39,$J$39,$K$39))","v":""},{"$f":"IF($N$40=\"\",\"\",IF($N$40>$O$40,$J$40,$K$40))","v":""},null,null,{"$f":"IF(U37=\"\",\"\",IF(U37>V37,3,IF(U37=V37,1,0)))","v":""},{"$f":"IF(V37=\"\",\"\",IF(V37>U37,3,IF(V37=U37,1,0)))","v":""},null,"Datum",null,"Land A","  Land B","Ergebnis:",null," A:"," B:",null,null,null,"Partie",null,null,null,"für Land:",null,null,null,null,null,null,null,null,null,null,null,null,null,null,null,null,null,null,null,null,null,null,null,null,null,null,null,null,null,null,null,null,null,null,null,null,null,null,0]
[null,null,null,null,null,null,null,"2024-06-30","21:00:00",{"$f":"IF(D38<>\"\",D38,T23)","v":""},null,null,null,"","",null,"2024-07-05","21:00:00",{"$f":"IF($N$36=\"\",\"\",IF($N$36>$O$36,$J$36,$K$36))","v":""},{"$f":"IF($N$38=\"\",\"\",IF($N$38>$O$38,$J$38,$K$38))","v":""},null,null,{"$f":"IF(U38=\"\",\"\",IF(U38>V38,3,IF(U38=V38,1,0)))","v":""},{"$f":"IF(V38=\"\",\"\",IF(V38>U38,3,IF(V38=U38,1,0)))","v":""},null,"2024-07-09","21:00:00",{"$f":"IF($W$37=\"\",\"\",IF($W$37>$X$37,$S$37,$T$37))","v":""},{"$f":"IF($W$38=\"\",\"\",IF($W$38>$X$38,$S$38,$T$38))","v":""},null,null,{"$f":"IF(AD38=\"\",\"\",IF(AD38>AE38,3,IF(AD38=AE38,1,0)))","v":""},{"$f":"IF(AE38=\"\",\"\",IF(AE38>AD38,3,IF(AE38=AD38,1,0)))","v":""},null,"Datum",null,"Land A","  Land B","Ergebnis:",null," A:"," B:",null,null,null,null,null,null,null,null,null,null,null,null,null,null,null,null,null,null,null,null,null,null,null,null,null,null,null,null,null,null,null,null,null,null,null,null,null,0]
[null,null,null,null,null,null,null,"2024-07-01","18:00:00",{"$f":"IF(D39<>\"\",D39,AL24)","v":""},{"$f":"IF(E39<>\"\",E39,AU24)","v":""},null,null,"","",null,"2024-07-06","18:00:00",{"$f":"IF($N$35=\"\",\"\",IF($N$35>$O$35,$J$35,$K$35))","v":""},{"$f":"IF($N$37=\"\",\"\",IF($N$37>$O$37,$J$37,$K$37))","v":""},null,null,{"$f":"IF(U39=\"\",\"\",IF(U39>V39,3,IF(U39=V39,1,0)))","v":""},{"$f":"IF(V39=\"\",\"\",IF(V39>U39,3,IF(V39=U39,1,0)))","v":""},null,"2024-07-10","21:00:00",{"$f":"IF($W$39=\"\",\"\",IF($W$39>$X$39,$S$39,$T$39))","v":""},{"$f":"IF($W$40=\"\",\"\",IF($W$40>$X$40,$S$40,$T$40))","v":""},null,null,{"$f":"IF(AD39=\"\",\"\",IF(AD39>AE39,3,IF(AD39=AE39,1,0)))","v":""},{"$f":"IF(AE39=\"\",\"\",IF(AE39>AD39,3,IF(AE39=AD39,1,0)))","v":""},null,"2024-07-14","21:00:00",{"$f":"IF($AF$38=\"\",\"\",IF($AF$38>$AG$38,$AB$38,$AC$38))","v":""},{"$f":"IF($AF$39=\"\",\"\",IF($AF$39>$AG$39,$AB$39,$AC$39))","v":""},null,null,{"$f":"IF(AM39=\"\",\"\",IF(AM39>AN39,3,IF(AM39=AN39,1,0)))","v":""},{"$f":"IF(AN39=\"\",\"\",IF(AN39>AM39,3,IF(AN39=AM39,1,0)))","v":""},null,null,null,null,null,null,null,null,null,null,null,null,null,null,null,null,null,null,null,null,null,null,null,null,null,null,null,null,null,null,null,null,null,null,null,null,null,0,{"$f":"IF(W37=\"\",0,IF(X37=\"\",0,IF((W37+X37)=2,1,0)))","v":0}]
[null,null,null,null,null,null,null,"2024-07-01","21:00:00",{"$f":"IF(D40<>\"\",D40,BD23)","v":""},null,null,null,"","",null,"2024-07-06","21:00:00",{"$f":"IF($N$41=\"\",\"\",IF($N$41>$O$41,$J$41,$K$41))","v":""},{"$f":"IF($N$42=\"\",\"\",IF($N$42>$O$42,$J$42,$K$42))","v":""},null,null,{"$f":"IF(U40=\"\",\"\",IF(U40>V40,3,IF(U40=V40,1,0)))","v":""},{"$f":"IF(V40=\"\",\"\",IF(V40>U40,3,IF(V40=U40,1,0)))","v":""},null,null,null,null,null,null,null,null,null,null,null,null,null,null,null,null,null,null,null,null,null,null,null,null,null,null,null,null,null,null,null,null,null,null,null,null,null,null,null,null,null,null,null,null,null,null,null,null,null,null,null,null,null,null,null,0,{"$f":"IF(W38=\"\",0,IF(X38=\"\",0,IF((W38+X38)=2,1,0)))","v":0}]
[null,null,null,null,null,null,null,"2024-07-02","21:00:00",{"$f":"IF(D41<>\"\",D41,AL23)","v":""},{"$f":"IF(E41<>\"\",E41,BD24)","v":""},null,null,"","",null,null,null,null,null,null,null,null,null,null,null,null,null,null,null,null,null,null,null,null,null,null,null,null,null,null,null,null,null,null,null,null,null,null,null,null,null,null,null,null,null,null,null,null,null,null,null,null,null,null,null,null,null,null,null,null,null,null,null,null,null,null,null,null,0,{"$f":"IF(W39=\"\",0,IF(X39=\"\",0,IF((W39+X39)=2,1,0)))","v":0},{"$f":"IF(AF38=\"\",0,IF(AG38=\"\",0,IF((AF38+AG38)=2,1,0)))","v":0}]
[null,null,null,null,null,null,null,"2024-07-02","18:00:00",{"$f":"IF(D42<>\"\",D42,AU23)","v":""},null,null,null,"","",null,null,null,null,null,null,null,null,null,null,null,null,null,null,null,null,null,null,null,null,null,null,null,null,null,null,null,null,null,null,null,null,null,null,null,null,null,null,null,null,null,null,null,null,null,null,null,null,null,null,null,null,null,null,null,null,null,null,null,null,null,null,null,null,0,{"$f":"IF(W40=\"\",0,IF(X40=\"\",0,IF((W40+X40)=2,1,0)))","v":0},{"$f":"IF(AF39=\"\",0,IF(AG39=\"\",0,IF((AF39+AG39)=2,1,0)))","v":0},{"$f":"IF(AO39=\"\",0,IF(AP39=\"\",0,IF((AO39+AP39)=2,1,0)))","v":0},{"$f":"IF(AX39=\"\",0,IF(AY29=\"\",0,IF((AX39+AY39)=2,1,0)))","v":0}]
[null,null,null,null,null,null,null,null,null,null,null,null,null,null,null,null,null,null,null,null,null,null,null,null,null,null,null,null,null,null,null,null,null,null,null,null,null,null,null,null,null,null,null,null,null,null,null,null,null,null,null,null,null,null,null,null,null,null,null,null,null,null,null,null,null,null,null,null,null,null,null,null,null,null,null,null,null,null,null,{"$f":"SUM(CB35:CB42)","v":0},{"$f":"SUM(CC35:CC42)","v":0},{"$f":"SUM(CD35:CD42)","v":0},{"$f":"SUM(CE35:CE42)","v":0},{"$f":"SUM(CF35:CF42)","v":0}]
[null,null,null,null,null,null,null,null,null,null,null,null,null,null,null,null,null,null,null,null,null,null,null,null,null,null,null,null,null,null,null,null,null,null,null,null,null,null,null,null,null,null,null,null,null,null,null,null,null,null,null,null,null,null,null,null,null,null,null,null,null,null,null,null,null,null,null,null,null,null,null,null,null,null,null,null,null,null,null,null,{"$f":"IF(H12=$H4,3,\"\")","v":""}]
[null,null,null,null,null,null,null,null,null,null,null,null,null,null,null,null,null,null,null,null,null,null,null,null,null,null,null,null,null,null,null,null,null,null,null,null,null,null,null,null,null,null,null,null,null,null,null,null,null,null,null,null,null,null,null,null,null,null,null,null,null,null,null,null,null,null,null,null,null,null,null,null,null,null,null,null,null,null,null,null,{"$f":"IF(H13=$H4,K13,\"\")","v":""}]
[null,null,null,null,null,null,null,null,null,null,null,null,null,null,null,null,null,null,null,null,null,null,null,null,null,null,null,null,null,null,null,null,null,null,null,null,null,null,null,null,null,null,null,null,null,null,null,null,null,null,null,null,null,null,null,null,null,null,null,null,null,null,null,null,null,null,null,null,null,null,null,null,null,null,null,null,null,null,null,null,{"$f":"IF(H14=$H4,K14,\"\")","v":""}]
[null,null,null,null,null,null,null,null,null,null,null,null,null,null,null,null,null,null,null,null,null,null,null,null,null,null,null,null,null,null,null,null,null,null,null,null,null,null,null,null,null,null,null,null,null,null,null,null,null,null,null,null,null,null,null,null,null,null,null,null,null,null,null,null,null,null,null,null,null,null,null,null,null,null,null,null,null,null,null,null,{"$f":"IF(H15=$H4,K15,\"\")","v":""}]
[]
[]
[]
[]
[]
[]
[]
[]
[]
[null,null,null,null,null,null,null,null,null,null,null,null,null,null,null,null,null,null,null,null,null,null,null,null,null,null,null,null,null,null,null,null,null,null,null,null,null,null,null,null,null,null,null,null,null,null,null,null,null,null,null,null,null,null,null,null,null,null,null,null,null,null,null,null,null,null,null,null,null,null,null,null,null,null,null,null,null,null,null,{"$f":"IF(H$11=$C$6,I$11,\"\")","v":""},{"$f":"IF(H$11=$C$6,J$11,\"\")","v":""},{"$f":"IF(H$11=$C$6,K$11,\"\")","v":""},{"$f":"IF(H$12=$C$6,I$12,\"\")","v":""},{"$f":"IF(H$12=$C$6,J$12,\"\")","v":""},{"$f":"IF(H$12=$C$6,K$12,\"\")","v":""},null,null,null,{"$f":"IF(Q$11=$C$6,R$11,\"\")","v":""},{"$f":"IF(Q$11=$C$6,S$11,\"\")","v":""},{"$f":"IF(Q$11=$C$6,T$11,\"\")","v":""},{"$f":"IF(Q$12=$C$6,R$12,\"\")","v":""},{"$f":"IF(Q$12=$C$6,S$12,\"\")","v":""},{"$f":"IF(Q$12=$C$6,T$12,\"\")","v":""},null,null,null,{"$f":"Daten!$C$3","v":"Deutschland"},{"$f":"Daten!B3","v":1},null,{"$f":"IF($CC57=CT57,CU57,0)","v":0},{"$f":"IF($CD57=CT57,CU57,0)","v":0},{"$f":"IF($CF57=CT57,CU57,0)","v":0},{"$f":"IF($CG57=CT57,CU57,0)","v":0},null,null,null,null,null,null,null,null,null,null,null,null,null,null,null,{"$f":"Daten!C7","v":"Spanien"},{"$f":"Daten!B7","v":5},null,{"$f":"IF($CL57=DP57,DQ57,0)","v":0},{"$f":"IF($CM57=DP57,DQ57,0)","v":0},{"$f":"IF($CO57=DP57,DQ57,0)","v":0},{"$f":"IF($CP57=DP57,DQ57,0)","v":0}]
[null,null,null,null,null,null,null,null,null,null,null,null,null,null,null,null,null,null,null,null,null,null,null,null,null,null,null,null,null,null,null,null,null,null,null,null,null,null,null,null,null,null,null,null,null,null,null,null,null,null,null,null,null,null,null,null,null,null,null,null,null,null,null,null,null,null,null,null,null,null,null,null,null,null,null,null,null,null,null,{"$f":"IF(H$13=$C$6,I$13,\"\")","v":""},{"$f":"IF(H$13=$C$6,J$13,\"\")","v":""},{"$f":"IF(H$13=$C$6,K$13,\"\")","v":""},{"$f":"IF(H$14=$C$6,I$14,\"\")","v":""},{"$f":"IF(H$14=$C$6,J$14,\"\")","v":""},{"$f":"IF(H$14=$C$6,K$14,\"\")","v":""},null,null,null,{"$f":"IF(Q$13=$C$6,R$13,\"\")","v":"21:00:00"},{"$f":"IF(Q$13=$C$6,S$13,\"\")","v":"Spanien"},{"$f":"IF(Q$13=$C$6,T$13,\"\")","v":"Italien"},{"$f":"IF(Q$14=$C$6,R$14,\"\")","v":""},{"$f":"IF(Q$14=$C$6,S$14,\"\")","v":""},{"$f":"IF(Q$14=$C$6,T$14,\"\")","v":""},null,null,null,{"$f":"Daten!C4","v":"Schottland"},{"$f":"Daten!B4","v":2},null,{"$f":"IF($CC57=CT58,CU58,0)","v":0},{"$f":"IF($CD57=CT58,CU58,0)","v":0},{"$f":"IF($CF57=CT58,CU58,0)","v":0},{"$f":"IF($CG57=CT58,CU58,0)","v":0},{"$f":"CT57","v":"Deutschland"},1,null,{"$f":"IF($CC58=DA58,DB58,0)","v":0},{"$f":"IF($CD58=DA58,DB58,0)","v":0},{"$f":"IF($CF58=DA58,DB58,0)","v":0},{"$f":"IF($CG58=DA58,DB58,0)","v":0},null,null,null,null,null,null,null,null,{"$f":"Daten!C8","v":"Kroatien"},{"$f":"Daten!B8","v":6},null,{"$f":"IF($CL57=DP58,DQ58,0)","v":0},{"$f":"IF($CM57=DP58,DQ58,0)","v":0},{"$f":"IF($CO57=DP58,DQ58,0)","v":0},{"$f":"IF($CP57=DP58,DQ58,0)","v":0},{"$f":"DP57","v":"Spanien"},{"$f":"DQ57","v":5},null,{"$f":"IF($CL58=DW58,DX58,0)","v":5},{"$f":"IF($CM58=DW58,DX58,0)","v":0},{"$f":"IF($CO58=DW58,DX58,0)","v":0},{"$f":"IF($CP58=DW58,DX58,0)","v":0}]
[null,null,null,null,null,null,null,null,null,null,null,null,null,null,null,null,null,null,null,null,null,null,null,null,null,null,null,null,null,null,null,null,null,null,null,null,null,null,null,null,null,null,null,null,null,null,null,null,null,null,null,null,null,null,null,null,null,null,null,null,null,null,null,null,null,null,null,null,null,null,null,null,null,null,null,null,null,null,null,{"$f":"IF(H$15=$C$6,I$15,\"\")","v":""},{"$f":"IF(H$15=$C$6,J$15,\"\")","v":""},{"$f":"IF(H$15=$C$6,K$15,\"\")","v":""},{"$f":"IF(H$16=$C$6,I$16,\"\")","v":""},{"$f":"IF(H$16=$C$6,J$16,\"\")","v":""},{"$f":"IF(H$16=$C$6,K$16,\"\")","v":""},null,null,null,{"$f":"IF(Q$15=$C$6,R$15,\"\")","v":""},{"$f":"IF(Q$15=$C$6,S$15,\"\")","v":""},{"$f":"IF(Q$15=$C$6,T$15,\"\")","v":""},{"$f":"IF(Q$16=$C$6,R$16,\"\")","v":""},{"$f":"IF(Q$16=$C$6,S$16,\"\")","v":""},{"$f":"IF(Q$16=$C$6,T$16,\"\")","v":""},null,null,null,{"$f":"Daten!C5","v":"Ungarn"},{"$f":"Daten!B5","v":3},null,{"$f":"IF($CC57=CT59,CU59,0)","v":0},{"$f":"IF($CD57=CT59,CU59,0)","v":0},{"$f":"IF($CF57=CT59,CU59,0)","v":0},{"$f":"IF($CG57=CT59,CU59,0)","v":0},"Schottland",2,null,{"$f":"IF($CC58=DA59,DB59,0)","v":0},{"$f":"IF($CD58=DA59,DB59,0)","v":0},{"$f":"IF($CF58=DA59,DB59,0)","v":0},{"$f":"IF($CG58=DA59,DB59,0)","v":0},{"$f":"DA58","v":"Deutschland"},1,null,{"$f":"IF($CC59=DH59,DI59,0)","v":0},{"$f":"IF($CD59=DH59,DI59,0)","v":0},{"$f":"IF($CF59=DH59,DI59,0)","v":0},{"$f":"IF($CG59=DH59,DI59,0)","v":0},null,{"$f":"Daten!C9","v":"Italien"},{"$f":"Daten!B9","v":7},null,{"$f":"IF($CL57=DP59,DQ59,0)","v":0},{"$f":"IF($CM57=DP59,DQ59,0)","v":0},{"$f":"IF($CO57=DP59,DQ59,0)","v":0},{"$f":"IF($CP57=DP59,DQ59,0)","v":0},{"$f":"DP58","v":"Kroatien"},{"$f":"DQ58","v":6},null,{"$f":"IF($CL58=DW59,DX59,0)","v":0},{"$f":"IF($CM58=DW59,DX59,0)","v":0},{"$f":"IF($CO58=DW59,DX59,0)","v":0},{"$f":"IF($CP58=DW59,DX59,0)","v":0},{"$f":"DW58","v":"Spanien"},{"$f":"DX58","v":5},null,{"$f":"IF($CL59=ED59,EE59,0)","v":0},{"$f":"IF($CM59=ED59,EE59,0)","v":0},{"$f":"IF($CO59=ED59,EE59,0)","v":0},{"$f":"IF($CP59=ED59,EE59,0)","v":0}]
[null,null,null,null,null,null,null,null,null,null,null,null,null,null,null,null,null,null,null,null,null,null,null,null,null,null,null,null,null,null,null,null,null,null,null,null,null,null,null,null,null,null,null,null,null,null,null,null,null,null,null,null,null,null,null,null,null,null,null,null,null,null,null,null,null,null,null,null,null,null,null,null,null,null,null,null,null,null,null,null,null,null,null,null,null,null,null,null,null,null,null,null,null,null,null,null,null,{"$f":"Daten!C6","v":"Schweiz"},{"$f":"Daten!B6","v":4},null,{"$f":"IF($CC57=CT60,CU60,0)","v":0},{"$f":"IF($CD57=CT60,CU60,0)","v":0},{"$f":"IF($CF57=CT60,CU60,0)","v":0},{"$f":"IF($CG57=CT60,CU60,0)","v":0},"Ungarn",3,null,{"$f":"IF($CC58=DA60,DB60,0)","v":0},{"$f":"IF($CD58=DA60,DB60,0)","v":0},{"$f":"IF($CF58=DA60,DB60,0)","v":0},{"$f":"IF($CG58=DA60,DB60,0)","v":0},"Schottland",2,null,{"$f":"IF($CC59=DH60,DI60,0)","v":0},{"$f":"IF($CD59=DH60,DI60,0)","v":0},{"$f":"IF($CF59=DH60,DI60,0)","v":0},{"$f":"IF($CG59=DH60,DI60,0)","v":0},null,{"$f":"Daten!C10","v":"Albanien"},{"$f":"Daten!B10","v":8},null,{"$f":"IF($CL57=DP60,DQ60,0)","v":0},{"$f":"IF($CM57=DP60,DQ60,0)","v":0},{"$f":"IF($CO57=DP60,DQ60,0)","v":0},{"$f":"IF($CP57=DP60,DQ60,0)","v":0},"Italien",7,null,{"$f":"IF($CL58=DW60,DX60,0)","v":0},{"$f":"IF($CM58=DW60,DX60,0)","v":7},{"$f":"IF($CO58=DW60,DX60,0)","v":0},{"$f":"IF($CP58=DW60,DX60,0)","v":0},{"$f":"DW59","v":"Kroatien"},{"$f":"DX59","v":6},null,{"$f":"IF($CL59=ED60,EE60,0)","v":0},{"$f":"IF($CM59=ED60,EE60,0)","v":0},{"$f":"IF($CO59=ED60,EE60,0)","v":0},{"$f":"IF($CP59=ED60,EE60,0)","v":0}]
[null,null,null,null,null,null,null,null,null,null,null,null,null,null,null,null,null,null,null,null,null,null,null,null,null,null,null,null,null,null,null,null,null,null,null,null,null,null,null,null,null,null,null,null,null,null,null,null,null,null,null,null,null,null,null,null,null,null,null,null,null,null,null,null,null,null,null,null,null,null,null,null,null,null,null,null,null,null,null,{"$f":"IF(Z$11=$C$6,AA$11,\"\")","v":""},{"$f":"IF(Z$11=$C$6,AB$11,\"\")","v":""},{"$f":"IF(Z$11=$C$6,AC$11,\"\")","v":""},{"$f":"IF(Z$12=$C$6,AA$12,\"\")","v":""},{"$f":"IF(Z$12=$C$6,AB$12,\"\")","v":""},{"$f":"IF(Z$12=$C$6,AC$12,\"\")","v":""},null,null,null,{"$f":"IF(AI$11=$C$6,AJ$11,\"\")","v":""},{"$f":"IF(AI$11=$C$6,AK$11,\"\")","v":""},{"$f":"IF(AI$11=$C$6,AL$11,\"\")","v":""},{"$f":"IF(AI$12=$C$6,AJ$12,\"\")","v":""},{"$f":"IF(AI$12=$C$6,AK$12,\"\")","v":""},{"$f":"IF(AI$12=$C$6,AL$12,\"\")","v":""},null,null,null,{"$f":"Daten!C11","v":"Slowenien"},{"$f":"Daten!B11","v":9},null,{"$f":"IF($CC61=CT61,CU61,0)","v":0},{"$f":"IF($CD61=CT61,CU61,0)","v":0},{"$f":"IF($CF61=CT61,CU61,0)","v":0},{"$f":"IF($CG61=CT61,CU61,0)","v":0},"Schweiz",4,null,{"$f":"IF($CC58=DA61,DB61,0)","v":0},{"$f":"IF($CD58=DA61,DB61,0)","v":0},{"$f":"IF($CF58=DA61,DB61,0)","v":0},{"$f":"IF($CG58=DA61,DB61,0)","v":0},"Ungarn",3,null,{"$f":"IF($CC59=DH61,DI61,0)","v":0},{"$f":"IF($CD59=DH61,DI61,0)","v":0},{"$f":"IF($CF59=DH61,DI61,0)","v":0},{"$f":"IF($CG59=DH61,DI61,0)","v":0},null,{"$f":"Daten!C15","v":"Polen"},{"$f":"Daten!B15","v":13},null,{"$f":"IF($CL61=DP61,DQ61,0)","v":0},{"$f":"IF($CM61=DP61,DQ61,0)","v":0},{"$f":"IF($CO61=DP61,DQ61,0)","v":0},{"$f":"IF($CP61=DP61,DQ61,0)","v":0},"Albanien",8,null,{"$f":"IF($CL58=DW61,DX61,0)","v":0},{"$f":"IF($CM58=DW61,DX61,0)","v":0},{"$f":"IF($CO58=DW61,DX61,0)","v":0},{"$f":"IF($CP58=DW61,DX61,0)","v":0},"Italien",7,null,{"$f":"IF($CL59=ED61,EE61,0)","v":0},{"$f":"IF($CM59=ED61,EE61,0)","v":0},{"$f":"IF($CO59=ED61,EE61,0)","v":0},{"$f":"IF($CP59=ED61,EE61,0)","v":0}]
[null,null,null,null,null,null,null,null,null,null,null,null,null,null,null,null,null,null,null,null,null,null,null,null,null,null,null,null,null,null,null,null,null,null,null,null,null,null,null,null,null,null,null,null,null,null,null,null,null,null,null,null,null,null,null,null,null,null,null,null,null,null,null,null,null,null,null,null,null,null,null,null,null,null,null,null,null,null,null,{"$f":"IF(Z$13=$C$6,AA$13,\"\")","v":"15:00:00"},{"$f":"IF(Z$13=$C$6,AB$13,\"\")","v":"Slowenien"},{"$f":"IF(Z$13=$C$6,AC$13,\"\")","v":"Serbien"},{"$f":"IF(Z$14=$C$6,AA$14,\"\")","v":"18:00:00"},{"$f":"IF(Z$14=$C$6,AB$14,\"\")","v":"England"},{"$f":"IF(Z$14=$C$6,AC$14,\"\")","v":"Dänemark"},null,null,null,{"$f":"IF(AI$13=$C$6,AJ$13,\"\")","v":""},{"$f":"IF(AI$13=$C$6,AK$13,\"\")","v":""},{"$f":"IF(AI$13=$C$6,AL$13,\"\")","v":""},{"$f":"IF(AI$14=$C$6,AJ$14,\"\")","v":""},{"$f":"IF(AI$14=$C$6,AK$14,\"\")","v":""},{"$f":"IF(AI$14=$C$6,AL$14,\"\")","v":""},null,null,null,{"$f":"Daten!C12","v":"Dänemark"},{"$f":"Daten!B12","v":10},null,{"$f":"IF($CC61=CT62,CU62,0)","v":0},{"$f":"IF($CD61=CT62,CU62,0)","v":0},{"$f":"IF($CF61=CT62,CU62,0)","v":0},{"$f":"IF($CG61=CT62,CU62,0)","v":0},{"$f":"CT61","v":"Slowenien"},{"$f":"CU61","v":9},null,{"$f":"IF($CC62=DA62,DB62,0)","v":9},{"$f":"IF($CD62=DA62,DB62,0)","v":0},{"$f":"IF($CF62=DA62,DB62,0)","v":0},{"$f":"IF($CG62=DA62,DB62,0)","v":0},"Schweiz",4,null,{"$f":"IF($CC59=DH62,DI62,0)","v":0},{"$f":"IF($CD59=DH62,DI62,0)","v":0},{"$f":"IF($CF59=DH62,DI62,0)","v":0},{"$f":"IF($CG59=DH62,DI62,0)","v":0},null,{"$f":"Daten!C16","v":"Niederlande"},{"$f":"Daten!B16","v":14},null,{"$f":"IF($CL61=DP62,DQ62,0)","v":0},{"$f":"IF($CM61=DP62,DQ62,0)","v":0},{"$f":"IF($CO61=DP62,DQ62,0)","v":0},{"$f":"IF($CP61=DP62,DQ62,0)","v":0},"Polen",13,null,{"$f":"IF($CL62=DW62,DX62,0)","v":0},{"$f":"IF($CM62=DW62,DX62,0)","v":0},{"$f":"IF($CO62=DW62,DX62,0)","v":0},{"$f":"IF($CP62=DW62,DX62,0)","v":0},"Albanien",8,null,{"$f":"IF($CL59=ED62,EE62,0)","v":0},{"$f":"IF($CM59=ED62,EE62,0)","v":0},{"$f":"IF($CO59=ED62,EE62,0)","v":0},{"$f":"IF($CP59=ED62,EE62,0)","v":0}]
[null,null,null,null,null,null,null,null,null,null,null,null,null,null,null,null,null,null,null,null,null,null,null,null,null,null,null,null,null,null,null,null,null,null,null,null,null,null,null,null,null,null,null,null,null,null,null,null,null,null,null,null,null,null,null,null,null,null,null,null,null,null,null,null,null,null,null,null,null,null,null,null,null,null,null,null,null,null,null,{"$f":"IF(Z$15=$C$6,AA$15,\"\")","v":""},{"$f":"IF(Z$15=$C$6,AB$15,\"\")","v":""},{"$f":"IF(Z$15=$C$6,AC$15,\"\")","v":""},{"$f":"IF(Z$16=$C$6,AA$16,\"\")","v":""},{"$f":"IF(Z$16=$C$6,AB$16,\"\")","v":""},{"$f":"IF(Z$16=$C$6,AC$16,\"\")","v":""},null,null,null,{"$f":"IF(AI$15=$C$6,AJ$15,\"\")","v":""},{"$f":"IF(AI$15=$C$6,AK$15,\"\")","v":""},{"$f":"IF(AI$15=$C$6,AL$15,\"\")","v":""},{"$f":"IF(AI$16=$C$6,AJ$16,\"\")","v":""},{"$f":"IF(AI$16=$C$6,AK$16,\"\")","v":""},{"$f":"IF(AI$16=$C$6,AL$16,\"\")","v":""},null,null,null,{"$f":"Daten!C13","v":"Serbien"},{"$f":"Daten!B13","v":11},null,{"$f":"IF($CC61=CT63,CU63,0)","v":0},{"$f":"IF($CD61=CT63,CU63,0)","v":0},{"$f":"IF($CF61=CT63,CU63,0)","v":0},{"$f":"IF($CG61=CT63,CU63,0)","v":0},"Dänemark",10,null,{"$f":"IF($CC62=DA63,DB63,0)","v":0},{"$f":"IF($CD62=DA63,DB63,0)","v":0},{"$f":"IF($CF62=DA63,DB63,0)","v":0},{"$f":"IF($CG62=DA63,DB63,0)","v":10},{"$f":"DA62","v":"Slowenien"},{"$f":"DB62","v":9},null,{"$f":"IF($CC63=DH63,DI63,0)","v":0},{"$f":"IF($CD63=DH63,DI63,0)","v":0},{"$f":"IF($CF63=DH63,DI63,0)","v":0},{"$f":"IF($CG63=DH63,DI63,0)","v":0},null,{"$f":"Daten!C17","v":"Österreich"},{"$f":"Daten!B17","v":15},null,{"$f":"IF($CL61=DP63,DQ63,0)","v":0},{"$f":"IF($CM61=DP63,DQ63,0)","v":0},{"$f":"IF($CO61=DP63,DQ63,0)","v":0},{"$f":"IF($CP61=DP63,DQ63,0)","v":0},"Niederlande",14,null,{"$f":"IF($CL62=DW63,DX63,0)","v":0},{"$f":"IF($CM62=DW63,DX63,0)","v":0},{"$f":"IF($CO62=DW63,DX63,0)","v":0},{"$f":"IF($CP62=DW63,DX63,0)","v":0},"Polen",13,null,{"$f":"IF($CL63=ED63,EE63,0)","v":0},{"$f":"IF($CM63=ED63,EE63,0)","v":0},{"$f":"IF($CO63=ED63,EE63,0)","v":0},{"$f":"IF($CP63=ED63,EE63,0)","v":0}]
[null,null,null,null,null,null,null,null,null,null,null,null,null,null,null,null,null,null,null,null,null,null,null,null,null,null,null,null,null,null,null,null,null,null,null,null,null,null,null,null,null,null,null,null,null,null,null,null,null,null,null,null,null,null,null,null,null,null,null,null,null,null,null,null,null,null,null,null,null,null,null,null,null,null,null,null,null,null,null,null,null,null,null,null,null,null,null,null,null,null,null,null,null,null,null,null,null,{"$f":"Daten!C14","v":"England"},{"$f":"Daten!B14","v":12},null,{"$f":"IF($CC61=CT64,CU64,0)","v":0},{"$f":"IF($CD61=CT64,CU64,0)","v":0},{"$f":"IF($CF61=CT64,CU64,0)","v":0},{"$f":"IF($CG61=CT64,CU64,0)","v":0},"Serbien",11,null,{"$f":"IF($CC62=DA64,DB64,0)","v":0},{"$f":"IF($CD62=DA64,DB64,0)","v":11},{"$f":"IF($CF62=DA64,DB64,0)","v":0},{"$f":"IF($CG62=DA64,DB64,0)","v":0},"Dänemark",10,null,{"$f":"IF($CC63=DH64,DI64,0)","v":0},{"$f":"IF($CD63=DH64,DI64,0)","v":0},{"$f":"IF($CF63=DH64,DI64,0)","v":0},{"$f":"IF($CG63=DH64,DI64,0)","v":0},null,{"$f":"Daten!C18","v":"Frankreich"},{"$f":"Daten!B18","v":16},null,{"$f":"IF($CL61=DP64,DQ64,0)","v":0},{"$f":"IF($CM61=DP64,DQ64,0)","v":0},{"$f":"IF($CO61=DP64,DQ64,0)","v":0},{"$f":"IF($CP61=DP64,DQ64,0)","v":0},"Österreich",15,null,{"$f":"IF($CL62=DW64,DX64,0)","v":0},{"$f":"IF($CM62=DW64,DX64,0)","v":0},{"$f":"IF($CO62=DW64,DX64,0)","v":0},{"$f":"IF($CP62=DW64,DX64,0)","v":0},"Niederlande",14,null,{"$f":"IF($CL63=ED64,EE64,0)","v":0},{"$f":"IF($CM63=ED64,EE64,0)","v":0},{"$f":"IF($CO63=ED64,EE64,0)","v":0},{"$f":"IF($CP63=ED64,EE64,0)","v":0}]
[null,null,null,null,null,null,null,null,null,null,null,null,null,null,null,null,null,null,null,null,null,null,null,null,null,null,null,null,null,null,null,null,null,null,null,null,null,null,null,null,null,null,null,null,null,null,null,null,null,null,null,null,null,null,null,null,null,null,null,null,null,null,null,null,null,null,null,null,null,null,null,null,null,null,null,null,null,null,null,{"$f":"IF(AR$11=$C$6,AS$11,\"\")","v":""},{"$f":"IF(AR$11=$C$6,AT$11,\"\")","v":""},{"$f":"IF(AR$11=$C$6,AU$11,\"\")","v":""},{"$f":"IF(AR$12=$C$6,AS$12,\"\")","v":""},{"$f":"IF(AR$12=$C$6,AT$12,\"\")","v":""},{"$f":"IF(AR$12=$C$6,AU$12,\"\")","v":""},null,null,null,{"$f":"IF(BA$11=$C$6,BB$11,\"\")","v":""},{"$f":"IF(BA$11=$C$6,BC$11,\"\")","v":""},{"$f":"IF(BA$11=$C$6,BD$11,\"\")","v":""},{"$f":"IF(BA$12=$C$6,BB$12,\"\")","v":""},{"$f":"IF(BA$12=$C$6,BC$12,\"\")","v":""},{"$f":"IF(BA$12=$C$6,BD$12,\"\")","v":""},null,null,null,{"$f":"Daten!C19","v":"Rumänien"},{"$f":"Daten!B19","v":17},null,{"$f":"IF($CC65=CT65,CU65,0)","v":0},{"$f":"IF($CD65=CT65,CU65,0)","v":0},{"$f":"IF($CF65=CT65,CU65,0)","v":0},{"$f":"IF($CG65=CT65,CU65,0)","v":0},"England",12,null,{"$f":"IF($CC62=DA65,DB65,0)","v":0},{"$f":"IF($CD62=DA65,DB65,0)","v":0},{"$f":"IF($CF62=DA65,DB65,0)","v":12},{"$f":"IF($CG62=DA65,DB65,0)","v":0},"Serbien",11,null,{"$f":"IF($CC63=DH65,DI65,0)","v":0},{"$f":"IF($CD63=DH65,DI65,0)","v":0},{"$f":"IF($CF63=DH65,DI65,0)","v":0},{"$f":"IF($CG63=DH65,DI65,0)","v":0},null,{"$f":"Daten!C23","v":"Türkei"},{"$f":"Daten!B23","v":21},null,{"$f":"IF($CL65=DP65,DQ65,0)","v":0},{"$f":"IF($CM65=DP65,DQ65,0)","v":0},{"$f":"IF($CO65=DP65,DQ65,0)","v":0},{"$f":"IF($CP65=DP65,DQ65,0)","v":0},"Frankreich",16,null,{"$f":"IF($CL62=DW65,DX65,0)","v":0},{"$f":"IF($CM62=DW65,DX65,0)","v":0},{"$f":"IF($CO62=DW65,DX65,0)","v":0},{"$f":"IF($CP62=DW65,DX65,0)","v":0},"Österreich",15,null,{"$f":"IF($CL63=ED65,EE65,0)","v":0},{"$f":"IF($CM63=ED65,EE65,0)","v":0},{"$f":"IF($CO63=ED65,EE65,0)","v":0},{"$f":"IF($CP63=ED65,EE65,0)","v":0}]
[null,null,null,null,null,null,null,null,null,null,null,null,null,null,null,null,null,null,null,null,null,null,null,null,null,null,null,null,null,null,null,null,null,null,null,null,null,null,null,null,null,null,null,null,null,null,null,null,null,null,null,null,null,null,null,null,null,null,null,null,null,null,null,null,null,null,null,null,null,null,null,null,null,null,null,null,null,null,null,{"$f":"IF(AR$13=$C$6,AS$13,\"\")","v":""},{"$f":"IF(AR$13=$C$6,AT$13,\"\")","v":""},{"$f":"IF(AR$13=$C$6,AU$13,\"\")","v":""},{"$f":"IF(AR$14=$C$6,AS$14,\"\")","v":""},{"$f":"IF(AR$14=$C$6,AT$14,\"\")","v":""},{"$f":"IF(AR$14=$C$6,AU$14,\"\")","v":""},null,null,null,{"$f":"IF(BA$13=$C$6,BB$13,\"\")","v":""},{"$f":"IF(BA$13=$C$6,BC$13,\"\")","v":""},{"$f":"IF(BA$13=$C$6,BD$13,\"\")","v":""},{"$f":"IF(BA$14=$C$6,BB$14,\"\")","v":""},{"$f":"IF(BA$14=$C$6,BC$14,\"\")","v":""},{"$f":"IF(BA$14=$C$6,BD$14,\"\")","v":""},null,null,null,{"$f":"Daten!C20","v":"Ukraine"},{"$f":"Daten!B20","v":18},null,{"$f":"IF($CC65=CT66,CU66,0)","v":0},{"$f":"IF($CD65=CT66,CU66,0)","v":0},{"$f":"IF($CF65=CT66,CU66,0)","v":0},{"$f":"IF($CG65=CT66,CU66,0)","v":0},"Rumänien",17,null,{"$f":"IF($CC66=DA66,DB66,0)","v":0},{"$f":"IF($CD66=DA66,DB66,0)","v":0},{"$f":"IF($CF66=DA66,DB66,0)","v":0},{"$f":"IF($CG66=DA66,DB66,0)","v":0},"England",12,null,{"$f":"IF($CC63=DH66,DI66,0)","v":0},{"$f":"IF($CD63=DH66,DI66,0)","v":0},{"$f":"IF($CF63=DH66,DI66,0)","v":0},{"$f":"IF($CG63=DH66,DI66,0)","v":0},null,{"$f":"Daten!C24","v":"Georgien"},{"$f":"Daten!B24","v":22},null,{"$f":"IF($CL65=DP66,DQ66,0)","v":0},{"$f":"IF($CM65=DP66,DQ66,0)","v":0},{"$f":"IF($CO65=DP66,DQ66,0)","v":0},{"$f":"IF($CP65=DP66,DQ66,0)","v":0},"Türkei",21,null,{"$f":"IF($CL66=DW66,DX66,0)","v":0},{"$f":"IF($CM66=DW66,DX66,0)","v":0},{"$f":"IF($CO66=DW66,DX66,0)","v":0},{"$f":"IF($CP66=DW66,DX66,0)","v":0},"Frankreich",16,null,{"$f":"IF($CL63=ED66,EE66,0)","v":0},{"$f":"IF($CM63=ED66,EE66,0)","v":0},{"$f":"IF($CO63=ED66,EE66,0)","v":0},{"$f":"IF($CP63=ED66,EE66,0)","v":0}]
[null,null,null,null,null,null,null,null,null,null,null,null,null,null,null,null,null,null,null,null,null,null,null,null,null,null,null,null,null,null,null,null,null,null,null,null,null,null,null,null,null,null,null,null,null,null,null,null,null,null,null,null,null,null,null,null,null,null,null,null,null,null,null,null,null,null,null,null,null,null,null,null,null,null,null,null,null,null,null,{"$f":"IF(AR$15=$C$6,AS$15,\"\")","v":""},{"$f":"IF(AR$15=$C$6,AT$15,\"\")","v":""},{"$f":"IF(AR$15=$C$6,AU$15,\"\")","v":""},{"$f":"IF(AR$16=$C$6,AS$16,\"\")","v":""},{"$f":"IF(AR$16=$C$6,AT$16,\"\")","v":""},{"$f":"IF(AR$16=$C$6,AU$16,\"\")","v":""},null,null,null,{"$f":"IF(BA$15=$C$6,BB$15,\"\")","v":""},{"$f":"IF(BA$15=$C$6,BC$15,\"\")","v":""},{"$f":"IF(BA$15=$C$6,BD$15,\"\")","v":""},{"$f":"IF(BA$16=$C$6,BB$16,\"\")","v":""},{"$f":"IF(BA$16=$C$6,BC$16,\"\")","v":""},{"$f":"IF(BA$16=$C$6,BD$16,\"\")","v":""},null,null,null,{"$f":"Daten!C21","v":"Belgien"},{"$f":"Daten!B21","v":19},null,{"$f":"IF($CC65=CT67,CU67,0)","v":0},{"$f":"IF($CD65=CT67,CU67,0)","v":0},{"$f":"IF($CF65=CT67,CU67,0)","v":0},{"$f":"IF($CG65=CT67,CU67,0)","v":0},"Ukraine",18,null,{"$f":"IF($CC66=DA67,DB67,0)","v":0},{"$f":"IF($CD66=DA67,DB67,0)","v":0},{"$f":"IF($CF66=DA67,DB67,0)","v":0},{"$f":"IF($CG66=DA67,DB67,0)","v":0},"Rumänien",17,null,{"$f":"IF($CC67=DH67,DI67,0)","v":0},{"$f":"IF($CD67=DH67,DI67,0)","v":0},{"$f":"IF($CF67=DH67,DI67,0)","v":0},{"$f":"IF($CG67=DH67,DI67,0)","v":0},null,{"$f":"Daten!C25","v":"Portugal"},{"$f":"Daten!B25","v":23},null,{"$f":"IF($CL65=DP67,DQ67,0)","v":0},{"$f":"IF($CM65=DP67,DQ67,0)","v":0},{"$f":"IF($CO65=DP67,DQ67,0)","v":0},{"$f":"IF($CP65=DP67,DQ67,0)","v":0},"Georgien",22,null,{"$f":"IF($CL66=DW67,DX67,0)","v":0},{"$f":"IF($CM66=DW67,DX67,0)","v":0},{"$f":"IF($CO66=DW67,DX67,0)","v":0},{"$f":"IF($CP66=DW67,DX67,0)","v":0},"Türkei",21,null,{"$f":"IF($CL67=ED67,EE67,0)","v":0},{"$f":"IF($CM67=ED67,EE67,0)","v":0},{"$f":"IF($CO67=ED67,EE67,0)","v":0},{"$f":"IF($CP67=ED67,EE67,0)","v":0}]
[null,null,null,null,null,null,null,null,null,null,null,null,null,null,null,null,null,null,null,null,null,null,null,null,null,null,null,null,null,null,null,null,null,null,null,null,null,null,null,null,null,null,null,null,null,null,null,null,null,null,null,null,null,null,null,null,null,null,null,null,null,null,null,null,null,null,null,null,null,null,null,null,null,null,null,null,null,null,null,null,null,null,null,null,null,null,null,null,null,null,null,null,null,null,null,null,null,{"$f":"Daten!C22","v":"Slowakei"},{"$f":"Daten!B22","v":20},null,{"$f":"IF($CC65=CT68,CU68,0)","v":0},{"$f":"IF($CD65=CT68,CU68,0)","v":0},{"$f":"IF($CF65=CT68,CU68,0)","v":0},{"$f":"IF($CG65=CT68,CU68,0)","v":0},"Belgien",19,null,{"$f":"IF($CC66=DA68,DB68,0)","v":0},{"$f":"IF($CD66=DA68,DB68,0)","v":0},{"$f":"IF($CF66=DA68,DB68,0)","v":0},{"$f":"IF($CG66=DA68,DB68,0)","v":0},"Ukraine",18,null,{"$f":"IF($CC67=DH68,DI68,0)","v":0},{"$f":"IF($CD67=DH68,DI68,0)","v":0},{"$f":"IF($CF67=DH68,DI68,0)","v":0},{"$f":"IF($CG67=DH68,DI68,0)","v":0},null,{"$f":"Daten!C26","v":"Tschechien"},{"$f":"Daten!B26","v":24},null,{"$f":"IF($CL65=DP68,DQ68,0)","v":0},{"$f":"IF($CM65=DP68,DQ68,0)","v":0},{"$f":"IF($CO65=DP68,DQ68,0)","v":0},{"$f":"IF($CP65=DP68,DQ68,0)","v":0},"Portugal",23,null,{"$f":"IF($CL66=DW68,DX68,0)","v":0},{"$f":"IF($CM66=DW68,DX68,0)","v":0},{"$f":"IF($CO66=DW68,DX68,0)","v":0},{"$f":"IF($CP66=DW68,DX68,0)","v":0},"Georgien",22,null,{"$f":"IF($CL67=ED68,EE68,0)","v":0},{"$f":"IF($CM67=ED68,EE68,0)","v":0},{"$f":"IF($CO67=ED68,EE68,0)","v":0},{"$f":"IF($CP67=ED68,EE68,0)","v":0}]
[null,null,null,null,null,null,null,null,null,null,null,null,null,null,null,null,null,null,null,null,null,null,null,null,null,null,null,null,null,null,null,null,null,null,null,null,null,null,null,null,null,null,null,null,null,null,null,null,null,null,null,null,null,null,null,null,null,null,null,null,null,null,null,null,null,null,null,null,null,null,null,null,null,null,null,null,null,null,null,{"$f":"IF(BJ$11=$C$6,BK$11,\"\")","v":""},{"$f":"IF(BJ$11=$C$6,BL$11,\"\")","v":""},{"$f":"IF(BJ$11=$C$6,BM$11,\"\")","v":""},{"$f":"IF(BJ$12=$C$6,BK$12,\"\")","v":""},{"$f":"IF(BJ$12=$C$6,BL$12,\"\")","v":""},{"$f":"IF(BJ$12=$C$6,BM$12,\"\")","v":""},null,null,null,{"$f":"IF(BS$11=$C$6,BT$11,\"\")","v":""},{"$f":"IF(BS$11=$C$6,BU$11,\"\")","v":""},{"$f":"IF(BS$11=$C$6,BV$11,\"\")","v":""},{"$f":"IF(BS$12=$C$6,BT$12,\"\")","v":""},{"$f":"IF(BS$12=$C$6,BU$12,\"\")","v":""},{"$f":"IF(BS$12=$C$6,BV$12,\"\")","v":""},null,null,null,{"$f":"Daten!C27","v":0},{"$f":"Daten!B27","v":25},null,{"$f":"IF($CC69=CT69,CU69,0)","v":0},{"$f":"IF($CD69=CT69,CU69,0)","v":0},{"$f":"IF($CF69=CT69,CU69,0)","v":0},{"$f":"IF($CG69=CT69,CU69,0)","v":0},"Slowakei",20,null,{"$f":"IF($CC66=DA69,DB69,0)","v":0},{"$f":"IF($CD66=DA69,DB69,0)","v":0},{"$f":"IF($CF66=DA69,DB69,0)","v":0},{"$f":"IF($CG66=DA69,DB69,0)","v":0},"Belgien",19,null,{"$f":"IF($CC67=DH69,DI69,0)","v":0},{"$f":"IF($CD67=DH69,DI69,0)","v":0},{"$f":"IF($CF67=DH69,DI69,0)","v":0},{"$f":"IF($CG67=DH69,DI69,0)","v":0},null,{"$f":"Daten!C31","v":0},{"$f":"Daten!B31","v":29},null,{"$f":"IF($CL69=DP69,DQ69,0)","v":0},{"$f":"IF($CM69=DP69,DQ69,0)","v":0},{"$f":"IF($CO69=DP69,DQ69,0)","v":0},{"$f":"IF($CP69=DP69,DQ69,0)","v":0},"Tschechien",24,null,{"$f":"IF($CL66=DW69,DX69,0)","v":0},{"$f":"IF($CM66=DW69,DX69,0)","v":0},{"$f":"IF($CO66=DW69,DX69,0)","v":0},{"$f":"IF($CP66=DW69,DX69,0)","v":0},"Portugal",23,null,{"$f":"IF($CL67=ED69,EE69,0)","v":0},{"$f":"IF($CM67=ED69,EE69,0)","v":0},{"$f":"IF($CO67=ED69,EE69,0)","v":0},{"$f":"IF($CP67=ED69,EE69,0)","v":0}]
[null,null,null,null,null,null,null,null,null,null,null,null,null,null,null,null,null,null,null,null,null,null,null,null,null,null,null,null,null,null,null,null,null,null,null,null,null,null,null,null,null,null,null,null,null,null,null,null,null,null,null,null,null,null,null,null,null,null,null,null,null,null,null,null,null,null,null,null,null,null,null,null,null,null,null,null,null,null,null,{"$f":"IF(BJ$13=$C$6,BK$13,\"\")","v":""},{"$f":"IF(BJ$13=$C$6,BL$13,\"\")","v":""},{"$f":"IF(BJ$13=$C$6,BM$13,\"\")","v":""},{"$f":"IF(BJ$14=$C$6,BK$14,\"\")","v":""},{"$f":"IF(BJ$14=$C$6,BL$14,\"\")","v":""},{"$f":"IF(BJ$14=$C$6,BM$14,\"\")","v":""},null,null,null,{"$f":"IF(BS$13=$C$6,BT$13,\"\")","v":""},{"$f":"IF(BS$13=$C$6,BU$13,\"\")","v":""},{"$f":"IF(BS$13=$C$6,BV$13,\"\")","v":""},{"$f":"IF(BS$14=$C$6,BT$14,\"\")","v":""},{"$f":"IF(BS$14=$C$6,BU$14,\"\")","v":""},{"$f":"IF(BS$14=$C$6,BV$14,\"\")","v":""},null,null,null,{"$f":"Daten!C28","v":0},{"$f":"Daten!B28","v":26},null,{"$f":"IF($CC69=CT70,CU70,0)","v":0},{"$f":"IF($CD69=CT70,CU70,0)","v":0},{"$f":"IF($CF69=CT70,CU70,0)","v":0},{"$f":"IF($CG69=CT70,CU70,0)","v":0},0,25,null,{"$f":"IF($CC70=DA70,DB70,0)","v":0},{"$f":"IF($CD70=DA70,DB70,0)","v":0},{"$f":"IF($CF70=DA70,DB70,0)","v":0},{"$f":"IF($CG70=DA70,DB70,0)","v":0},"Slowakei",20,null,{"$f":"IF($CC67=DH70,DI70,0)","v":0},{"$f":"IF($CD67=DH70,DI70,0)","v":0},{"$f":"IF($CF67=DH70,DI70,0)","v":0},{"$f":"IF($CG67=DH70,DI70,0)","v":0},null,{"$f":"Daten!C32","v":0},{"$f":"Daten!B32","v":30},null,{"$f":"IF($CL69=DP70,DQ70,0)","v":0},{"$f":"IF($CM69=DP70,DQ70,0)","v":0},{"$f":"IF($CO69=DP70,DQ70,0)","v":0},{"$f":"IF($CP69=DP70,DQ70,0)","v":0},0,29,null,{"$f":"IF($CL70=DW70,DX70,0)","v":0},{"$f":"IF($CM70=DW70,DX70,0)","v":0},{"$f":"IF($CO70=DW70,DX70,0)","v":0},{"$f":"IF($CP70=DW70,DX70,0)","v":0},"Tschechien",24,null,{"$f":"IF($CL67=ED70,EE70,0)","v":0},{"$f":"IF($CM67=ED70,EE70,0)","v":0},{"$f":"IF($CO67=ED70,EE70,0)","v":0},{"$f":"IF($CP67=ED70,EE70,0)","v":0}]
[null,null,null,null,null,null,null,null,null,null,null,null,null,null,null,null,null,null,null,null,null,null,null,null,null,null,null,null,null,null,null,null,null,null,null,null,null,null,null,null,null,null,null,null,null,null,null,null,null,null,null,null,null,null,null,null,null,null,null,null,null,null,null,null,null,null,null,null,null,null,null,null,null,null,null,null,null,null,null,{"$f":"IF(BJ$15=$C$6,BK$15,\"\")","v":""},{"$f":"IF(BJ$15=$C$6,BL$15,\"\")","v":""},{"$f":"IF(BJ$15=$C$6,BM$15,\"\")","v":""},{"$f":"IF(BJ$16=$C$6,BK$16,\"\")","v":""},{"$f":"IF(BJ$16=$C$6,BL$16,\"\")","v":""},{"$f":"IF(BJ$16=$C$6,BM$16,\"\")","v":""},null,null,null,{"$f":"IF(BS$15=$C$6,BT$15,\"\")","v":""},{"$f":"IF(BS$15=$C$6,BU$15,\"\")","v":""},{"$f":"IF(BS$15=$C$6,BV$15,\"\")","v":""},{"$f":"IF(BS$16=$C$6,BT$16,\"\")","v":""},{"$f":"IF(BS$16=$C$6,BU$16,\"\")","v":""},{"$f":"IF(BS$16=$C$6,BV$16,\"\")","v":""},null,null,null,{"$f":"Daten!C29","v":0},{"$f":"Daten!B29","v":27},null,{"$f":"IF($CC69=CT71,CU71,0)","v":0},{"$f":"IF($CD69=CT71,CU71,0)","v":0},{"$f":"IF($CF69=CT71,CU71,0)","v":0},{"$f":"IF($CG69=CT71,CU71,0)","v":0},0,26,null,{"$f":"IF($CC70=DA71,DB71,0)","v":0},{"$f":"IF($CD70=DA71,DB71,0)","v":0},{"$f":"IF($CF70=DA71,DB71,0)","v":0},{"$f":"IF($CG70=DA71,DB71,0)","v":0},0,25,null,{"$f":"IF($CC71=DH71,DI71,0)","v":0},{"$f":"IF($CD71=DH71,DI71,0)","v":0},{"$f":"IF($CF71=DH71,DI71,0)","v":0},{"$f":"IF($CG71=DH71,DI71,0)","v":0},null,{"$f":"Daten!C33","v":0},{"$f":"Daten!B33","v":31},null,{"$f":"IF($CL69=DP71,DQ71,0)","v":0},{"$f":"IF($CM69=DP71,DQ71,0)","v":0},{"$f":"IF($CO69=DP71,DQ71,0)","v":0},{"$f":"IF($CP69=DP71,DQ71,0)","v":0},0,30,null,{"$f":"IF($CL70=DW71,DX71,0)","v":0},{"$f":"IF($CM70=DW71,DX71,0)","v":0},{"$f":"IF($CO70=DW71,DX71,0)","v":0},{"$f":"IF($CP70=DW71,DX71,0)","v":0},0,29,null,{"$f":"IF($CL71=ED71,EE71,0)","v":0},{"$f":"IF($CM71=ED71,EE71,0)","v":0},{"$f":"IF($CO71=ED71,EE71,0)","v":0},{"$f":"IF($CP71=ED71,EE71,0)","v":0}]
[null,null,null,null,null,null,null,null,null,null,null,null,null,null,null,null,null,null,null,null,null,null,null,null,null,null,null,null,null,null,null,null,null,null,null,null,null,null,null,null,null,null,null,null,null,null,null,null,null,null,null,null,null,null,null,null,null,null,null,null,null,null,null,null,null,null,null,null,null,null,null,null,null,null,null,null,null,null,null,null,null,null,null,null,null,null,null,null,null,null,null,null,null,null,null,null,null,{"$f":"Daten!C30","v":0},{"$f":"Daten!B30","v":28},null,{"$f":"IF($CC69=CT72,CU72,0)","v":0},{"$f":"IF($CD69=CT72,CU72,0)","v":0},{"$f":"IF($CF69=CT72,CU72,0)","v":0},{"$f":"IF($CG69=CT72,CU72,0)","v":0},0,27,null,{"$f":"IF($CC70=DA72,DB72,0)","v":0},{"$f":"IF($CD70=DA72,DB72,0)","v":0},{"$f":"IF($CF70=DA72,DB72,0)","v":0},{"$f":"IF($CG70=DA72,DB72,0)","v":0},0,26,null,{"$f":"IF($CC71=DH72,DI72,0)","v":0},{"$f":"IF($CD71=DH72,DI72,0)","v":0},{"$f":"IF($CF71=DH72,DI72,0)","v":0},{"$f":"IF($CG71=DH72,DI72,0)","v":0},null,{"$f":"Daten!C34","v":0},{"$f":"Daten!B34","v":32},null,{"$f":"IF($CL69=DP72,DQ72,0)","v":0},{"$f":"IF($CM69=DP72,DQ72,0)","v":0},{"$f":"IF($CO69=DP72,DQ72,0)","v":0},{"$f":"IF($CP69=DP72,DQ72,0)","v":0},0,31,null,{"$f":"IF($CL70=DW72,DX72,0)","v":0},{"$f":"IF($CM70=DW72,DX72,0)","v":0},{"$f":"IF($CO70=DW72,DX72,0)","v":0},{"$f":"IF($CP70=DW72,DX72,0)","v":0},0,30,null,{"$f":"IF($CL71=ED72,EE72,0)","v":0},{"$f":"IF($CM71=ED72,EE72,0)","v":0},{"$f":"IF($CO71=ED72,EE72,0)","v":0},{"$f":"IF($CP71=ED72,EE72,0)","v":0}]
[null,null,null,null,null,null,null,null,null,null,null,null,null,null,null,null,null,null,null,null,null,null,null,null,null,null,null,null,null,null,null,null,null,null,null,null,null,null,null,null,null,null,null,null,null,null,null,null,null,null,null,null,null,null,null,null,null,null,null,null,null,null,null,null,null,null,null,null,null,null,null,null,null,null,null,null,null,null,null,null,null,null,null,null,null,null,null,null,null,null,null,null,null,null,null,null,null,null,null,null,null,null,null,null,{"$f":"CT72","v":0},{"$f":"CU72","v":28},null,{"$f":"IF($CC70=DA73,DB73,0)","v":0},{"$f":"IF($CD70=DA73,DB73,0)","v":0},{"$f":"IF($CF70=DA73,DB73,0)","v":0},{"$f":"IF($CG70=DA73,DB73,0)","v":0},{"$f":"DA72","v":0},{"$f":"DB72","v":27},null,{"$f":"IF($CC71=DH73,DI73,0)","v":0},{"$f":"IF($CD71=DH73,DI73,0)","v":0},{"$f":"IF($CF71=DH73,DI73,0)","v":0},{"$f":"IF($CG71=DH73,DI73,0)","v":0},null,null,null,null,null,null,null,null,{"$f":"DP72","v":0},{"$f":"DQ72","v":32},null,{"$f":"IF($CL70=DW73,DX73,0)","v":0},{"$f":"IF($CM70=DW73,DX73,0)","v":0},{"$f":"IF($CO70=DW73,DX73,0)","v":0},{"$f":"IF($CP70=DW73,DX73,0)","v":0},{"$f":"DW72","v":0},{"$f":"DX72","v":31},null,{"$f":"IF($CL71=ED73,EE73,0)","v":0},{"$f":"IF($CM71=ED73,EE73,0)","v":0},{"$f":"IF($CO71=ED73,EE73,0)","v":0},{"$f":"IF($CP71=ED73,EE73,0)","v":0}]
[null,null,null,null,null,null,null,null,null,null,null,null,null,null,null,null,null,null,null,null,null,null,null,null,null,null,null,null,null,null,null,null,null,null,null,null,null,null,null,null,null,null,null,null,null,null,null,null,null,null,null,null,null,null,null,null,null,null,null,null,null,null,null,null,null,null,null,null,null,null,null,null,null,null,null,null,null,null,null,null,null,null,null,null,null,null,null,null,null,null,null,null,null,null,null,null,null,null,null,null,{"$f":"SUM(CW57:CW72)+SUM(DD58:DD73)+SUM(DK59:DK74)","v":9},{"$f":"SUM(CX57:CX72)+SUM(DE58:DE73)+SUM(DL59:DL74)","v":11},{"$f":"SUM(CY57:CY72)+SUM(DF58:DF73)+SUM(DM59:DM74)","v":12},{"$f":"SUM(CZ57:CZ72)+SUM(DG58:DG73)+SUM(DN59:DN74)","v":10},null,null,null,null,null,null,null,{"$f":"DA73","v":0},{"$f":"DB73","v":28},null,{"$f":"IF($CC71=DH74,DI74,0)","v":0},{"$f":"IF($CD71=DH74,DI74,0)","v":0},{"$f":"IF($CF71=DH74,DI74,0)","v":0},{"$f":"IF($CG71=DH74,DI74,0)","v":0},null,null,null,null,{"$f":"SUM(DS57:DS72)+SUM(DZ58:DZ73)+SUM(EG59:EG74)","v":5},{"$f":"SUM(DT57:DT72)+SUM(EA58:EA73)+SUM(EH59:EH74)","v":7},{"$f":"SUM(DU57:DU72)+SUM(EB58:EB73)+SUM(EI59:EI74)","v":0},{"$f":"SUM(DV57:DV72)+SUM(EC58:EC73)+SUM(EJ59:EJ74)","v":0},null,null,null,null,null,null,null,{"$f":"DW73","v":0},{"$f":"DX73","v":32},null,{"$f":"IF($CL71=ED74,EE74,0)","v":0},{"$f":"IF($CM71=ED74,EE74,0)","v":0},{"$f":"IF($CO71=ED74,EE74,0)","v":0},{"$f":"IF($CP71=ED74,EE74,0)","v":0}]
[null,null,null,null,null,null,null,null,null,null,null,null,null,null,null,null,null,null,null,null,null,null,null,null,null,null,null,null,null,null,null,null,null,null,null,null,null,null,null,null,null,null,null,null,null,null,null,null,null,null,null,null,null,null,null,null,null,null,null,null,null,null,null,null,null,null,null,null,null,null,null,null,null,null,null,null,null,null,null,{"$f":"IF(H35=$C$6,I35,\"\")","v":""},{"$f":"IF(H35=$C$6,J35,\"\")","v":""},{"$f":"IF(H35=$C$6,K35,\"\")","v":""},{"$f":"IF(H36=$C$6,I36,\"\")","v":""},{"$f":"IF(H36=$C$6,J36,\"\")","v":""},{"$f":"IF(H36=$C$6,K36,\"\")","v":""},null,null,null,null,null,null,null,null,null,null,null,null,{"$f":"Daten!C3","v":"Deutschland"},{"$f":"Daten!B3","v":1},null,{"$f":"IF($CC$75=CT75,CU75,0)","v":0},{"$f":"IF($CD$75=CT75,CU75,0)","v":0},{"$f":"IF($CF$75=CT75,CU75,0)","v":0},{"$f":"IF($CG$75=CT75,CU75,0)","v":0}]
[null,null,null,null,null,null,null,null,null,null,null,null,null,null,null,null,null,null,null,null,null,null,null,null,null,null,null,null,null,null,null,null,null,null,null,null,null,null,null,null,null,null,null,null,null,null,null,null,null,null,null,null,null,null,null,null,null,null,null,null,null,null,null,null,null,null,null,null,null,null,null,null,null,null,null,null,null,null,null,{"$f":"IF(H37=$C$6,I37,\"\")","v":""},{"$f":"IF(H37=$C$6,J37,\"\")","v":""},{"$f":"IF(H37=$C$6,K37,\"\")","v":""},{"$f":"IF(H38=$C$6,I38,\"\")","v":""},{"$f":"IF(H38=$C$6,J38,\"\")","v":""},{"$f":"IF(H38=$C$6,K38,\"\")","v":""},null,null,null,null,null,null,null,null,null,null,null,null,{"$f":"Daten!C4","v":"Schottland"},{"$f":"Daten!B4","v":2},null,{"$f":"IF($CC$75=CT76,CU76,0)","v":0},{"$f":"IF($CD$75=CT76,CU76,0)","v":0},{"$f":"IF($CF$75=CT76,CU76,0)","v":0},{"$f":"IF($CG$75=CT76,CU76,0)","v":0},{"$f":"CT75","v":"Deutschland"},{"$f":"CU75","v":1},null,{"$f":"IF($CC$76=DA76,DB76,0)","v":0},{"$f":"IF($CD$76=DA76,DB76,0)","v":0},{"$f":"IF($CF$76=DA76,DB76,0)","v":0},{"$f":"IF($CG$76=DA76,DB76,0)","v":0}]
[null,null,null,null,null,null,null,null,null,null,null,null,null,null,null,null,null,null,null,null,null,null,null,null,null,null,null,null,null,null,null,null,null,null,null,null,null,null,null,null,null,null,null,null,null,null,null,null,null,null,null,null,null,null,null,null,null,null,null,null,null,null,null,null,null,null,null,null,null,null,null,null,null,null,null,null,null,null,null,{"$f":"IF(H39=$C$6,I39,\"\")","v":""},{"$f":"IF(H39=$C$6,J39,\"\")","v":""},{"$f":"IF(H39=$C$6,K39,\"\")","v":""},{"$f":"IF(H40=$C$6,I40,\"\")","v":""},{"$f":"IF(H40=$C$6,J40,\"\")","v":""},{"$f":"IF(H40=$C$6,K40,\"\")","v":""},null,null,null,null,null,null,null,null,null,null,null,null,{"$f":"Daten!C5","v":"Ungarn"},{"$f":"Daten!B5","v":3},null,0,0,0,0,{"$f":"CT76","v":"Schottland"},{"$f":"CU76","v":2},null,{"$f":"IF($CC$76=DA77,DB77,0)","v":0},{"$f":"IF($CD$76=DA77,DB77,0)","v":0},{"$f":"IF($CF$76=DA77,DB77,0)","v":0},{"$f":"IF($CG$76=DA77,DB77,0)","v":0},{"$f":"DA76","v":"Deutschland"},{"$f":"DB76","v":1},null,{"$f":"IF($CC$77=DH77,DI77,0)","v":0},{"$f":"IF($CD$77=DH77,DI77,0)","v":0},{"$f":"IF($CF$77=DH77,DI77,0)","v":0},{"$f":"IF($CG$77=DH77,DI77,0)","v":0}]
[null,null,null,null,null,null,null,null,null,null,null,null,null,null,null,null,null,null,null,null,null,null,null,null,null,null,null,null,null,null,null,null,null,null,null,null,null,null,null,null,null,null,null,null,null,null,null,null,null,null,null,null,null,null,null,null,null,null,null,null,null,null,null,null,null,null,null,null,null,null,null,null,null,null,null,null,null,null,null,{"$f":"IF(H41=$C$6,I41,\"\")","v":""},{"$f":"IF(H41=$C$6,J41,\"\")","v":""},{"$f":"IF(H41=$C$6,K41,\"\")","v":""},{"$f":"IF(H42=$C$6,I42,\"\")","v":""},{"$f":"IF(H42=$C$6,J42,\"\")","v":""},{"$f":"IF(H42=$C$6,K42,\"\")","v":""},null,null,null,null,null,null,null,null,null,null,null,null,{"$f":"Daten!C6","v":"Schweiz"},{"$f":"Daten!B6","v":4},null,0,0,0,0,"Ungarn",3,null,0,0,0,0,{"$f":"DA77","v":"Schottland"},{"$f":"DB77","v":2},null,{"$f":"IF($CC$77=DH78,DI78,0)","v":0},{"$f":"IF($CD$77=DH78,DI78,0)","v":0},{"$f":"IF($CF$77=DH78,DI78,0)","v":0},{"$f":"IF($CG$77=DH78,DI78,0)","v":0},null,{"$f":"DH77","v":"Deutschland"},{"$f":"DI77","v":1},null,{"$f":"IF($CC$78=DP78,DQ78,0)","v":0},{"$f":"IF($CD$78=DP78,DQ78,0)","v":0},{"$f":"IF($CF$78=DP78,DQ78,0)","v":0},{"$f":"IF($CG$78=DP78,DQ78,0)","v":0}]
[null,null,null,null,null,null,null,null,null,null,null,null,null,null,null,null,null,null,null,null,null,null,null,null,null,null,null,null,null,null,null,null,null,null,null,null,null,null,null,null,null,null,null,null,null,null,null,null,null,null,null,null,null,null,null,null,null,null,null,null,null,null,null,null,null,null,null,null,null,null,null,null,null,null,null,null,null,null,null,null,null,null,null,null,null,null,null,null,null,null,null,null,null,null,null,null,null,{"$f":"Daten!C7","v":"Spanien"},{"$f":"Daten!B7","v":5},null,0,0,0,0,"Schweiz",4,null,0,0,0,0,"Ungarn",3,null,0,0,0,0,null,{"$f":"DH78","v":"Schottland"},{"$f":"DI78","v":2},null,{"$f":"IF($CC$78=DP79,DQ79,0)","v":0},{"$f":"IF($CD$78=DP79,DQ79,0)","v":0},{"$f":"IF($CF$78=DP79,DQ79,0)","v":0},{"$f":"IF($CG$78=DP79,DQ79,0)","v":0}]
[null,null,null,null,null,null,null,null,null,null,null,null,null,null,null,null,null,null,null,null,null,null,null,null,null,null,null,null,null,null,null,null,null,null,null,null,null,null,null,null,null,null,null,null,null,null,null,null,null,null,null,null,null,null,null,null,null,null,null,null,null,null,null,null,null,null,null,null,null,null,null,null,null,null,null,null,null,null,null,{"$f":"IF(Q37=$C$6,R37,\"\")","v":""},{"$f":"IF(Q37=$C$6,S37,\"\")","v":""},{"$f":"IF(Q37=$C$6,T37,\"\")","v":""},{"$f":"IF(Q38=$C$6,R38,\"\")","v":""},{"$f":"IF(Q38=$C$6,S38,\"\")","v":""},{"$f":"IF(Q38=$C$6,T38,\"\")","v":""},null,null,null,null,null,null,null,null,null,null,null,null,{"$f":"Daten!C8","v":"Kroatien"},{"$f":"Daten!B8","v":6},null,0,0,0,0,"Spanien",5,null,0,0,0,0,"Schweiz",4,null,0,0,0,0,null,"Ungarn",3,null,0,0,0,0]
[null,null,null,null,null,null,null,null,null,null,null,null,null,null,null,null,null,null,null,null,null,null,null,null,null,null,null,null,null,null,null,null,null,null,null,null,null,null,null,null,null,null,null,null,null,null,null,null,null,null,null,null,null,null,null,null,null,null,null,null,null,null,null,null,null,null,null,null,null,null,null,null,null,null,null,null,null,null,null,{"$f":"IF(Q39=$C$6,R39,\"\")","v":""},{"$f":"IF(Q39=$C$6,S39,\"\")","v":""},{"$f":"IF(Q39=$C$6,T39,\"\")","v":""},{"$f":"IF(Q40=$C$6,R40,\"\")","v":""},{"$f":"IF(Q40=$C$6,S40,\"\")","v":""},{"$f":"IF(Q40=$C$6,T40,\"\")","v":""},null,null,null,null,null,null,null,null,null,null,null,null,{"$f":"Daten!C9","v":"Italien"},{"$f":"Daten!B9","v":7},null,0,0,0,0,"Kroatien",6,null,0,0,0,0,"Spanien",5,null,0,0,0,0,null,"Schweiz",4,null,0,0,0,0]
[null,null,null,null,null,null,null,null,null,null,null,null,null,null,null,null,null,null,null,null,null,null,null,null,null,null,null,null,null,null,null,null,null,null,null,null,null,null,null,null,null,null,null,null,null,null,null,null,null,null,null,null,null,null,null,null,null,null,null,null,null,null,null,null,null,null,null,null,null,null,null,null,null,null,null,null,null,null,null,null,null,null,null,null,null,null,null,null,null,null,null,null,null,null,null,null,null,{"$f":"Daten!C10","v":"Albanien"},{"$f":"Daten!B10","v":8},null,0,0,0,0,"Italien",7,null,0,0,0,0,"Kroatien",6,null,0,0,0,0,null,"Spanien",5,null,0,0,0,0]
[null,null,null,null,null,null,null,null,null,null,null,null,null,null,null,null,null,null,null,null,null,null,null,null,null,null,null,null,null,null,null,null,null,null,null,null,null,null,null,null,null,null,null,null,null,null,null,null,null,null,null,null,null,null,null,null,null,null,null,null,null,null,null,null,null,null,null,null,null,null,null,null,null,null,null,null,null,null,null,{"$f":"IF(Z38=$C$6,AA38,\"\")","v":""},{"$f":"IF(Z38=$C$6,AB38,\"\")","v":""},{"$f":"IF(Z38=$C$6,AC38,\"\")","v":""},null,null,null,null,null,null,null,null,null,null,null,null,null,null,null,{"$f":"Daten!C11","v":"Slowenien"},{"$f":"Daten!B11","v":9},null,0,0,0,0,"Albanien",8,null,0,0,0,0,"Italien",7,null,0,0,0,0,null,"Kroatien",6,null,0,0,0,0]
[null,null,null,null,null,null,null,null,null,null,null,null,null,null,null,null,null,null,null,null,null,null,null,null,null,null,null,null,null,null,null,null,null,null,null,null,null,null,null,null,null,null,null,null,null,null,null,null,null,null,null,null,null,null,null,null,null,null,null,null,null,null,null,null,null,null,null,null,null,null,null,null,null,null,null,null,null,null,null,{"$f":"IF(Z39=$C$6,AA39,\"\")","v":""},{"$f":"IF(Z39=$C$6,AB39,\"\")","v":""},{"$f":"IF(Z39=$C$6,AC39,\"\")","v":""},null,null,null,null,null,null,null,null,null,null,null,null,null,null,null,{"$f":"Daten!C12","v":"Dänemark"},{"$f":"Daten!B12","v":10},null,0,0,0,0,"Slowenien",9,null,0,0,0,0,"Albanien",8,null,0,0,0,0,null,"Italien",7,null,0,0,0,0]
[null,null,null,null,null,null,null,null,null,null,null,null,null,null,null,null,null,null,null,null,null,null,null,null,null,null,null,null,null,null,null,null,null,null,null,null,null,null,null,null,null,null,null,null,null,null,null,null,null,null,null,null,null,null,null,null,null,null,null,null,null,null,null,null,null,null,null,null,null,null,null,null,null,null,null,null,null,null,null,null,null,null,null,null,null,null,null,null,null,null,null,null,null,null,null,null,null,{"$f":"Daten!C13","v":"Serbien"},{"$f":"Daten!B13","v":11},null,0,0,0,0,"Dänemark",10,null,0,0,0,0,"Slowenien",9,null,0,0,0,0,null,"Albanien",8,null,0,0,0,0]
[null,null,null,null,null,null,null,null,null,null,null,null,null,null,null,null,null,null,null,null,null,null,null,null,null,null,null,null,null,null,null,null,null,null,null,null,null,null,null,null,null,null,null,null,null,null,null,null,null,null,null,null,null,null,null,null,null,null,null,null,null,null,null,null,null,null,null,null,null,null,null,null,null,null,null,null,null,null,null,{"$f":"IF(AI39=$C$6,AJ39,\"\")","v":""},{"$f":"IF(AI39=$C$6,AK39,\"\")","v":""},{"$f":"IF(AI39=$C$6,AL39,\"\")","v":""},null,null,null,null,null,null,null,null,null,null,null,null,null,null,null,{"$f":"Daten!C14","v":"England"},{"$f":"Daten!B14","v":12},null,0,0,0,0,"Serbien",11,null,0,0,0,0,"Dänemark",10,null,0,0,0,0,null,"Slowenien",9,null,0,0,0,0]
[null,null,null,null,null,null,null,null,null,null,null,null,null,null,null,null,null,null,null,null,null,null,null,null,null,null,null,null,null,null,null,null,null,null,null,null,null,null,null,null,null,null,null,null,null,null,null,null,null,null,null,null,null,null,null,null,null,null,null,null,null,null,null,null,null,null,null,null,null,null,null,null,null,null,null,null,null,null,null,null,null,null,null,null,null,null,null,null,null,null,null,null,null,null,null,null,null,{"$f":"Daten!C15","v":"Polen"},{"$f":"Daten!B15","v":13},null,0,0,0,0,"England",12,null,0,0,0,0,"Serbien",11,null,0,0,0,0,null,"Dänemark",10,null,0,0,0,0]
[null,null,null,null,null,null,null,null,null,null,null,null,null,null,null,null,null,null,null,null,null,null,null,null,null,null,null,null,null,null,null,null,null,null,null,null,null,null,null,null,null,null,null,null,null,null,null,null,null,null,null,null,null,null,null,null,null,null,null,null,null,null,null,null,null,null,null,null,null,null,null,null,null,null,null,null,null,null,null,{"$f":"IF(AR39=$C$6,AS39,\"\")","v":""},{"$f":"IF(AR39=$C$6,AT39,\"\")","v":""},{"$f":"IF(AR43=$C$6,AU39,\"\")","v":""},null,null,null,null,null,null,null,null,null,null,null,null,null,null,null,{"$f":"Daten!C16","v":"Niederlande"},{"$f":"Daten!B16","v":14},null,0,0,0,0,"Polen",13,null,0,0,0,0,"England",12,null,0,0,0,0,null,"Serbien",11,null,0,0,0,0]
[null,null,null,null,null,null,null,null,null,null,null,null,null,null,null,null,null,null,null,null,null,null,null,null,null,null,null,null,null,null,null,null,null,null,null,null,null,null,null,null,null,null,null,null,null,null,null,null,null,null,null,null,null,null,null,null,null,null,null,null,null,null,null,null,null,null,null,null,null,null,null,null,null,null,null,null,null,null,null,{"$f":"SUM(CB57:CB88)","v":"15:00:00"},{"$f":"SUM(CC75:CC88)","v":0},{"$f":"SUM(CD56:CD88)","v":0},{"$f":"SUM(CE57:CE88)","v":"18:00:00"},{"$f":"SUM(CF57:CF88)","v":0},{"$f":"SUM(CG57:CG88)","v":"00:00:00"},null,null,null,{"$f":"SUM(CK57:CK88)","v":"21:00:00"},"00:00:00","00:00:00","00:00:00","00:00:00","00:00:00",null,null,null,{"$f":"Daten!C17","v":"Österreich"},{"$f":"Daten!B17","v":15},null,0,0,0,0,"Niederlande",14,null,0,0,0,0,"Polen",13,null,0,0,0,0,null,"England",12,null,0,0,0,0]
[null,null,null,null,null,null,null,null,null,null,null,null,null,null,null,null,null,null,null,null,null,null,null,null,null,null,null,null,null,null,null,null,null,null,null,null,null,null,null,null,null,null,null,null,null,null,null,null,null,null,null,null,null,null,null,null,null,null,null,null,null,null,null,null,null,null,null,null,null,null,null,null,null,null,null,null,null,null,null,null,null,null,null,null,null,null,null,null,null,null,null,null,null,null,null,null,null,{"$f":"Daten!C18","v":"Frankreich"},{"$f":"Daten!B18","v":16},null,0,0,0,0,"Österreich",15,null,0,0,0,0,"Niederlande",14,null,0,0,0,0,null,"Polen",13,null,0,0,0,0]
[null,null,null,null,null,null,null,null,null,null,null,null,null,null,null,null,null,null,null,null,null,null,null,null,null,null,null,null,null,null,null,null,null,null,null,null,null,null,null,null,null,null,null,null,null,null,null,null,null,null,null,null,null,null,null,null,null,null,null,null,null,null,null,null,null,null,null,null,null,null,null,null,null,null,null,null,null,null,null,null,null,null,null,null,null,null,null,null,null,null,null,null,null,null,null,null,null,{"$f":"Daten!C19","v":"Rumänien"},{"$f":"Daten!B19","v":17},null,0,0,0,0,"Frankreich",16,null,0,0,0,0,"Österreich",15,null,0,0,0,0,null,"Niederlande",14,null,0,0,0,0]
[null,null,null,null,null,null,null,null,null,null,null,null,null,null,null,null,null,null,null,null,null,null,null,null,null,null,null,null,null,null,null,null,null,null,null,null,null,null,null,null,null,null,null,null,null,null,null,null,null,null,null,null,null,null,null,null,null,null,null,null,null,null,null,null,null,null,null,null,null,null,null,null,null,null,null,null,null,null,null,null,null,null,null,null,null,null,null,null,null,null,null,null,null,null,null,null,null,{"$f":"Daten!C20","v":"Ukraine"},{"$f":"Daten!B20","v":18},null,0,0,0,0,"Rumänien",17,null,0,0,0,0,"Frankreich",16,null,0,0,0,0,null,"Österreich",15,null,0,0,0,0]
[null,null,null,null,null,null,null,null,null,null,null,null,null,null,null,null,null,null,null,null,null,null,null,null,null,null,null,null,null,null,null,null,null,null,null,null,null,null,null,null,null,null,null,null,null,null,null,null,null,null,null,null,null,null,null,null,null,null,null,null,null,null,null,null,null,null,null,null,null,null,null,null,null,null,null,null,null,null,null,null,null,null,null,null,null,null,null,null,null,null,null,null,null,null,null,null,null,{"$f":"Daten!C21","v":"Belgien"},{"$f":"Daten!B21","v":19},null,0,0,0,0,"Ukraine",18,null,0,0,0,0,"Rumänien",17,null,0,0,0,0,null,"Frankreich",16,null,0,0,0,0]
[null,null,null,null,null,null,null,null,null,null,null,null,null,null,null,null,null,null,null,null,null,null,null,null,null,null,null,null,null,null,null,null,null,null,null,null,null,null,null,null,null,null,null,null,null,null,null,null,null,null,null,null,null,null,null,null,null,null,null,null,null,null,null,null,null,null,null,null,null,null,null,null,null,null,null,null,null,null,null,null,null,null,null,null,null,null,null,null,null,null,null,null,null,null,null,null,null,{"$f":"Daten!C22","v":"Slowakei"},{"$f":"Daten!B22","v":20},null,0,0,0,0,"Belgien",19,null,0,0,0,0,"Ukraine",18,null,0,0,0,0,null,"Rumänien",17,null,0,0,0,0]
[null,null,null,null,null,null,null,null,null,null,null,null,null,null,null,null,null,null,null,null,null,null,null,null,null,null,null,null,null,null,null,null,null,null,null,null,null,null,null,null,null,null,null,null,null,null,null,null,null,null,null,null,null,null,null,null,null,null,null,null,null,null,null,null,null,null,null,null,null,null,null,null,null,null,null,null,null,null,null,null,null,null,null,null,null,null,null,null,null,null,null,null,null,null,null,null,null,{"$f":"Daten!C23","v":"Türkei"},{"$f":"Daten!B23","v":21},null,0,0,0,0,"Slowakei",20,null,0,0,0,0,"Belgien",19,null,0,0,0,0,null,"Ukraine",18,null,0,0,0,0]
[null,null,null,null,null,null,null,null,null,null,null,null,null,null,null,null,null,null,null,null,null,null,null,null,null,null,null,null,null,null,null,null,null,null,null,null,null,null,null,null,null,null,null,null,null,null,null,null,null,null,null,null,null,null,null,null,null,null,null,null,null,null,null,null,null,null,null,null,null,null,null,null,null,null,null,null,null,null,null,null,null,null,null,null,null,null,null,null,null,null,null,null,null,null,null,null,null,{"$f":"Daten!C24","v":"Georgien"},{"$f":"Daten!B24","v":22},null,0,0,0,0,"Türkei",21,null,0,0,0,0,"Slowakei",20,null,0,0,0,0,null,"Belgien",19,null,0,0,0,0]
[null,null,null,null,null,null,null,null,null,null,null,null,null,null,null,null,null,null,null,null,null,null,null,null,null,null,null,null,null,null,null,null,null,null,null,null,null,null,null,null,null,null,null,null,null,null,null,null,null,null,null,null,null,null,null,null,null,null,null,null,null,null,null,null,null,null,null,null,null,null,null,null,null,null,null,null,null,null,null,null,null,null,null,null,null,null,null,null,null,null,null,null,null,null,null,null,null,{"$f":"Daten!C25","v":"Portugal"},{"$f":"Daten!B25","v":23},null,0,0,0,0,"Georgien",22,null,0,0,0,0,"Türkei",21,null,0,0,0,0,null,"Slowakei",20,null,0,0,0,0]
[null,null,null,null,null,null,null,null,null,null,null,null,null,null,null,null,null,null,null,null,null,null,null,null,null,null,null,null,null,null,null,null,null,null,null,null,null,null,null,null,null,null,null,null,null,null,null,null,null,null,null,null,null,null,null,null,null,null,null,null,null,null,null,null,null,null,null,null,null,null,null,null,null,null,null,null,null,null,null,null,null,null,null,null,null,null,null,null,null,null,null,null,null,null,null,null,null,{"$f":"Daten!C26","v":"Tschechien"},{"$f":"Daten!B26","v":24},null,0,0,0,0,"Portugal",23,null,0,0,0,0,"Georgien",22,null,0,0,0,0,null,"Türkei",21,null,0,0,0,0]
[null,null,null,null,null,null,null,null,null,null,null,null,null,null,null,null,null,null,null,null,null,null,null,null,null,null,null,null,null,null,null,null,null,null,null,null,null,null,null,null,null,null,null,null,null,null,null,null,null,null,null,null,null,null,null,null,null,null,null,null,null,null,null,null,null,null,null,null,null,null,null,null,null,null,null,null,null,null,null,null,null,null,null,null,null,null,null,null,null,null,null,null,null,null,null,null,null,{"$f":"Daten!C27","v":0},{"$f":"Daten!B27","v":25},null,0,0,0,0,"Tschechien",24,null,0,0,0,0,"Portugal",23,null,0,0,0,0,null,"Georgien",22,null,0,0,0,0]
[null,null,null,null,null,null,null,null,null,null,null,null,null,null,null,null,null,null,null,null,null,null,null,null,null,null,null,null,null,null,null,null,null,null,null,null,null,null,null,null,null,null,null,null,null,null,null,null,null,null,null,null,null,null,null,null,null,null,null,null,null,null,null,null,null,null,null,null,null,null,null,null,null,null,null,null,null,null,null,null,null,null,null,null,null,null,null,null,null,null,null,null,null,null,null,null,null,{"$f":"Daten!C28","v":0},{"$f":"Daten!B28","v":26},null,0,0,0,0,0,25,null,0,0,0,0,"Tschechien",24,null,0,0,0,0,null,"Portugal",23,null,0,0,0,0]
[null,null,null,null,null,null,null,null,null,null,null,null,null,null,null,null,null,null,null,null,null,null,null,null,null,null,null,null,null,null,null,null,null,null,null,null,null,null,null,null,null,null,null,null,null,null,null,null,null,null,null,null,null,null,null,null,null,null,null,null,null,null,null,null,null,null,null,null,null,null,null,null,null,null,null,null,null,null,null,null,null,null,null,null,null,null,null,null,null,null,null,null,null,null,null,null,null,{"$f":"Daten!C29","v":0},{"$f":"Daten!B29","v":27},null,0,0,0,0,0,26,null,0,0,0,0,0,25,null,0,0,0,0,null,"Tschechien",24,null,0,0,0,0]
[null,null,null,null,null,null,null,null,null,null,null,null,null,null,null,null,null,null,null,null,null,null,null,null,null,null,null,null,null,null,null,null,null,null,null,null,null,null,null,null,null,null,null,null,null,null,null,null,null,null,null,null,null,null,null,null,null,null,null,null,null,null,null,null,null,null,null,null,null,null,null,null,null,null,null,null,null,null,null,null,null,null,null,null,null,null,null,null,null,null,null,null,null,null,null,null,null,{"$f":"Daten!C30","v":0},{"$f":"Daten!B30","v":28},null,0,0,0,0,0,27,null,0,0,0,0,0,26,null,0,0,0,0,null,0,25,null,0,0,0,0]
[null,null,null,null,null,null,null,null,null,null,null,null,null,null,null,null,null,null,null,null,null,null,null,null,null,null,null,null,null,null,null,null,null,null,null,null,null,null,null,null,null,null,null,null,null,null,null,null,null,null,null,null,null,null,null,null,null,null,null,null,null,null,null,null,null,null,null,null,null,null,null,null,null,null,null,null,null,null,null,null,null,null,null,null,null,null,null,null,null,null,null,null,null,null,null,null,null,{"$f":"Daten!C31","v":0},{"$f":"Daten!B31","v":29},null,0,0,0,0,0,28,null,0,0,0,0,0,27,null,0,0,0,0,null,0,26,null,0,0,0,0]
[null,null,null,null,null,null,null,null,null,null,null,null,null,null,null,null,null,null,null,null,null,null,null,null,null,null,null,null,null,null,null,null,null,null,null,null,null,null,null,null,null,null,null,null,null,null,null,null,null,null,null,null,null,null,null,null,null,null,null,null,null,null,null,null,null,null,null,null,null,null,null,null,null,null,null,null,null,null,null,null,null,null,null,null,null,null,null,null,null,null,null,null,null,null,null,null,null,{"$f":"Daten!C32","v":0},{"$f":"Daten!B32","v":30},null,0,0,0,0,0,29,null,0,0,0,0,0,28,null,0,0,0,0,null,0,27,null,0,0,0,0]
[null,null,null,null,null,null,null,null,null,null,null,null,null,null,null,null,null,null,null,null,null,null,null,null,null,null,null,null,null,null,null,null,null,null,null,null,null,null,null,null,null,null,null,null,null,null,null,null,null,null,null,null,null,null,null,null,null,null,null,null,null,null,null,null,null,null,null,null,null,null,null,null,null,null,null,null,null,null,null,null,null,null,null,null,null,null,null,null,null,null,null,null,null,null,null,null,null,{"$f":"Daten!C33","v":0},{"$f":"Daten!B33","v":31},null,0,0,0,0,0,30,null,0,0,0,0,0,29,null,0,0,0,0,null,0,28,null,0,0,0,0]
[null,null,null,null,null,null,null,null,null,null,null,null,null,null,null,null,null,null,null,null,null,null,null,null,null,null,null,null,null,null,null,null,null,null,null,null,null,null,null,null,null,null,null,null,null,null,null,null,null,null,null,null,null,null,null,null,null,null,null,null,null,null,null,null,null,null,null,null,null,null,null,null,null,null,null,null,null,null,null,null,null,null,null,null,null,null,null,null,null,null,null,null,null,null,null,null,null,{"$f":"Daten!C34","v":0},{"$f":"Daten!B34","v":32},null,0,0,0,0,0,31,null,0,0,0,0,0,30,null,0,0,0,0,null,0,29,null,0,0,0,0]
[null,null,null,null,null,null,null,null,null,null,null,null,null,null,null,null,null,null,null,null,null,null,null,null,null,null,null,null,null,null,null,null,null,null,null,null,null,null,null,null,null,null,null,null,null,null,null,null,null,null,null,null,null,null,null,null,null,null,null,null,null,null,null,null,null,null,null,null,null,null,null,null,null,null,null,null,null,null,null,null,null,null,null,null,null,null,null,null,null,null,null,null,null,null,null,null,null,null,null,null,null,null,null,null,0,32,null,0,0,0,0,0,31,null,0,0,0,0,null,0,30,null,0,0,0,0]
[null,null,null,null,null,null,null,null,null,null,null,null,null,null,null,null,null,null,null,null,null,null,null,null,null,null,null,null,null,null,null,null,null,null,null,null,null,null,null,null,null,null,null,null,null,null,null,null,null,null,null,null,null,null,null,null,null,null,null,null,null,null,null,null,null,null,null,null,null,null,null,null,null,null,null,null,null,null,null,null,null,null,null,null,null,null,null,null,null,null,null,null,null,null,null,null,null,null,null,null,null,null,null,null,null,null,null,null,null,null,null,0,32,null,0,0,0,0,null,0,31,null,0,0,0,0]
[null,null,null,null,null,null,null,null,null,null,null,null,null,null,null,null,null,null,null,null,null,null,null,null,null,null,null,null,null,null,null,null,null,null,null,null,null,null,null,null,null,null,null,null,null,null,null,null,null,null,null,null,null,null,null,null,null,null,null,null,null,null,null,null,null,null,null,null,null,null,null,null,null,null,null,null,null,null,null,null,null,null,null,null,null,null,null,null,null,null,null,null,null,null,null,null,null,null,null,null,{"$f":"SUM(CW75:CW106)+SUM(DD76:DD107)+SUM(DK77:DK108)+SUM(DS78:DS109)","v":0},{"$f":"SUM(CX75:CX106)+SUM(DE76:DE107)+SUM(DL77:DL108)+SUM(DT78:DT109)","v":0},{"$f":"SUM(CY75:CY106)+SUM(DF76:DF107)+SUM(DM77:DM108)+SUM(DU78:DU109)","v":0},{"$f":"SUM(CZ75:CZ106)+SUM(DG76:DG107)+SUM(DN77:DN108)+SUM(DV78:DV109)","v":0},null,null,null,null,null,null,null,null,null,null,null,null,null,null,null,0,32,null,0,0,0,0]
[null,null,null,null,null,null,null,null,null,null,null,null,null,null,null,null,null,null,null,null,null,null,null,null,null,null,null,null,null,null,null,null,null,null,null,null,null,null,null,null,null,null,null,null,null,null,null,null,null,null,null,null,null,null,null,null,null,null,null,null,null,null,null,null,null,null,null,null,null,null,null,null,null,null,null,null,null,null,null,null,null,null,null,null,null,null,null,null,null,null,null,null,null,null,null,null,null,{"$f":"Daten!C3","v":"Deutschland"},{"$f":"Daten!B3","v":1},null,{"$f":"IF($CC$80=CT110,CU110,0)","v":0},{"$f":"IF($CD$80=CT110,CU110,0)","v":0},{"$f":"IF($CF$80=CT110,CU110,0)","v":0},{"$f":"IF($CG$80=CT110,CU110,0)","v":0},{"$f":"Daten!C3","v":"Deutschland"},{"$f":"Daten!B3","v":1},null,{"$f":"IF($CC$81=DA110,DB110,0)","v":0},{"$f":"IF($CD$81=DA110,DB110,0)","v":0},{"$f":"IF($CF$81=DA110,DB110,0)","v":0},{"$f":"IF($CG$81=DA110,DB110,0)","v":0}]
[null,null,null,null,null,null,null,null,null,null,null,null,null,null,null,null,null,null,null,null,null,null,null,null,null,null,null,null,null,null,null,null,null,null,null,null,null,null,null,null,null,null,null,null,null,null,null,null,null,null,null,null,null,null,null,null,null,null,null,null,null,null,null,null,null,null,null,null,null,null,null,null,null,null,null,null,null,null,null,null,null,null,null,null,null,null,null,null,null,null,null,null,null,null,null,null,null,{"$f":"Daten!C4","v":"Schottland"},{"$f":"Daten!B4","v":2},null,{"$f":"IF($CC$80=CT111,CU111,0)","v":0},{"$f":"IF($CD$80=CT111,CU111,0)","v":0},{"$f":"IF($CF$80=CT111,CU111,0)","v":0},{"$f":"IF($CG$80=CT111,CU111,0)","v":0},{"$f":"Daten!C4","v":"Schottland"},{"$f":"Daten!B4","v":2},null,{"$f":"IF($CC$81=DA111,DB111,0)","v":0},{"$f":"IF($CD$81=DA111,DB111,0)","v":0},{"$f":"IF($CF$81=DA111,DB111,0)","v":0},{"$f":"IF($CG$81=DA111,DB111,0)","v":0}]
[null,null,null,null,null,null,null,null,null,null,null,null,null,null,null,null,null,null,null,null,null,null,null,null,null,null,null,null,null,null,null,null,null,null,null,null,null,null,null,null,null,null,null,null,null,null,null,null,null,null,null,null,null,null,null,null,null,null,null,null,null,null,null,null,null,null,null,null,null,null,null,null,null,null,null,null,null,null,null,null,null,null,null,null,null,null,null,null,null,null,null,null,null,null,null,null,null,{"$f":"Daten!C5","v":"Ungarn"},{"$f":"Daten!B5","v":3},null,0,0,0,0,{"$f":"Daten!C5","v":"Ungarn"},{"$f":"Daten!B5","v":3},null,0,0,0,0]
[null,null,null,null,null,null,null,null,null,null,null,null,null,null,null,null,null,null,null,null,null,null,null,null,null,null,null,null,null,null,null,null,null,null,null,null,null,null,null,null,null,null,null,null,null,null,null,null,null,null,null,null,null,null,null,null,null,null,null,null,null,null,null,null,null,null,null,null,null,null,null,null,null,null,null,null,null,null,null,null,null,null,null,null,null,null,null,null,null,null,null,null,null,null,null,null,null,{"$f":"Daten!C6","v":"Schweiz"},{"$f":"Daten!B6","v":4},null,0,0,0,0,{"$f":"Daten!C6","v":"Schweiz"},{"$f":"Daten!B6","v":4},null,0,0,0,0]
[null,null,null,null,null,null,null,null,null,null,null,null,null,null,null,null,null,null,null,null,null,null,null,null,null,null,null,null,null,null,null,null,null,null,null,null,null,null,null,null,null,null,null,null,null,null,null,null,null,null,null,null,null,null,null,null,null,null,null,null,null,null,null,null,null,null,null,null,null,null,null,null,null,null,null,null,null,null,null,null,null,null,null,null,null,null,null,null,null,null,null,null,null,null,null,null,null,{"$f":"Daten!C7","v":"Spanien"},{"$f":"Daten!B7","v":5},null,0,0,0,0,{"$f":"Daten!C7","v":"Spanien"},{"$f":"Daten!B7","v":5},null,0,0,0,0]
[null,null,null,null,null,null,null,null,null,null,null,null,null,null,null,null,null,null,null,null,null,null,null,null,null,null,null,null,null,null,null,null,null,null,null,null,null,null,null,null,null,null,null,null,null,null,null,null,null,null,null,null,null,null,null,null,null,null,null,null,null,null,null,null,null,null,null,null,null,null,null,null,null,null,null,null,null,null,null,null,null,null,null,null,null,null,null,null,null,null,null,null,null,null,null,null,null,{"$f":"Daten!C8","v":"Kroatien"},{"$f":"Daten!B8","v":6},null,0,0,0,0,{"$f":"Daten!C8","v":"Kroatien"},{"$f":"Daten!B8","v":6},null,0,0,0,0]
[null,null,null,null,null,null,null,null,null,null,null,null,null,null,null,null,null,null,null,null,null,null,null,null,null,null,null,null,null,null,null,null,null,null,null,null,null,null,null,null,null,null,null,null,null,null,null,null,null,null,null,null,null,null,null,null,null,null,null,null,null,null,null,null,null,null,null,null,null,null,null,null,null,null,null,null,null,null,null,null,null,null,null,null,null,null,null,null,null,null,null,null,null,null,null,null,null,{"$f":"Daten!C9","v":"Italien"},{"$f":"Daten!B9","v":7},null,0,0,0,0,{"$f":"Daten!C9","v":"Italien"},{"$f":"Daten!B9","v":7},null,0,0,0,0]
[null,null,null,null,null,null,null,null,null,null,null,null,null,null,null,null,null,null,null,null,null,null,null,null,null,null,null,null,null,null,null,null,null,null,null,null,null,null,null,null,null,null,null,null,null,null,null,null,null,null,null,null,null,null,null,null,null,null,null,null,null,null,null,null,null,null,null,null,null,null,null,null,null,null,null,null,null,null,null,null,null,null,null,null,null,null,null,null,null,null,null,null,null,null,null,null,null,{"$f":"Daten!C10","v":"Albanien"},{"$f":"Daten!B10","v":8},null,0,0,0,0,{"$f":"Daten!C10","v":"Albanien"},{"$f":"Daten!B10","v":8},null,0,0,0,0]
[null,null,null,null,null,null,null,null,null,null,null,null,null,null,null,null,null,null,null,null,null,null,null,null,null,null,null,null,null,null,null,null,null,null,null,null,null,null,null,null,null,null,null,null,null,null,null,null,null,null,null,null,null,null,null,null,null,null,null,null,null,null,null,null,null,null,null,null,null,null,null,null,null,null,null,null,null,null,null,null,null,null,null,null,null,null,null,null,null,null,null,null,null,null,null,null,null,{"$f":"Daten!C11","v":"Slowenien"},{"$f":"Daten!B11","v":9},null,0,0,0,0,{"$f":"Daten!C11","v":"Slowenien"},{"$f":"Daten!B11","v":9},null,0,0,0,0]
[null,null,null,null,null,null,null,null,null,null,null,null,null,null,null,null,null,null,null,null,null,null,null,null,null,null,null,null,null,null,null,null,null,null,null,null,null,null,null,null,null,null,null,null,null,null,null,null,null,null,null,null,null,null,null,null,null,null,null,null,null,null,null,null,null,null,null,null,null,null,null,null,null,null,null,null,null,null,null,null,null,null,null,null,null,null,null,null,null,null,null,null,null,null,null,null,null,{"$f":"Daten!C12","v":"Dänemark"},{"$f":"Daten!B12","v":10},null,0,0,0,0,{"$f":"Daten!C12","v":"Dänemark"},{"$f":"Daten!B12","v":10},null,0,0,0,0]
[null,null,null,null,null,null,null,null,null,null,null,null,null,null,null,null,null,null,null,null,null,null,null,null,null,null,null,null,null,null,null,null,null,null,null,null,null,null,null,null,null,null,null,null,null,null,null,null,null,null,null,null,null,null,null,null,null,null,null,null,null,null,null,null,null,null,null,null,null,null,null,null,null,null,null,null,null,null,null,null,null,null,null,null,null,null,null,null,null,null,null,null,null,null,null,null,null,{"$f":"Daten!C13","v":"Serbien"},{"$f":"Daten!B13","v":11},null,0,0,0,0,{"$f":"Daten!C13","v":"Serbien"},{"$f":"Daten!B13","v":11},null,0,0,0,0]
[null,null,null,null,null,null,null,null,null,null,null,null,null,null,null,null,null,null,null,null,null,null,null,null,null,null,null,null,null,null,null,null,null,null,null,null,null,null,null,null,null,null,null,null,null,null,null,null,null,null,null,null,null,null,null,null,null,null,null,null,null,null,null,null,null,null,null,null,null,null,null,null,null,null,null,null,null,null,null,null,null,null,null,null,null,null,null,null,null,null,null,null,null,null,null,null,null,{"$f":"Daten!C14","v":"England"},{"$f":"Daten!B14","v":12},null,0,0,0,0,{"$f":"Daten!C14","v":"England"},{"$f":"Daten!B14","v":12},null,0,0,0,0]
[null,null,null,null,null,null,null,null,null,null,null,null,null,null,null,null,null,null,null,null,null,null,null,null,null,null,null,null,null,null,null,null,null,null,null,null,null,null,null,null,null,null,null,null,null,null,null,null,null,null,null,null,null,null,null,null,null,null,null,null,null,null,null,null,null,null,null,null,null,null,null,null,null,null,null,null,null,null,null,null,null,null,null,null,null,null,null,null,null,null,null,null,null,null,null,null,null,{"$f":"Daten!C15","v":"Polen"},{"$f":"Daten!B15","v":13},null,0,0,0,0,{"$f":"Daten!C15","v":"Polen"},{"$f":"Daten!B15","v":13},null,0,0,0,0]
[null,null,null,null,null,null,null,null,null,null,null,null,null,null,null,null,null,null,null,null,null,null,null,null,null,null,null,null,null,null,null,null,null,null,null,null,null,null,null,null,null,null,null,null,null,null,null,null,null,null,null,null,null,null,null,null,null,null,null,null,null,null,null,null,null,null,null,null,null,null,null,null,null,null,null,null,null,null,null,null,null,null,null,null,null,null,null,null,null,null,null,null,null,null,null,null,null,{"$f":"Daten!C16","v":"Niederlande"},{"$f":"Daten!B16","v":14},null,0,0,0,0,{"$f":"Daten!C16","v":"Niederlande"},{"$f":"Daten!B16","v":14},null,0,0,0,0]
[null,null,null,null,null,null,null,null,null,null,null,null,null,null,null,null,null,null,null,null,null,null,null,null,null,null,null,null,null,null,null,null,null,null,null,null,null,null,null,null,null,null,null,null,null,null,null,null,null,null,null,null,null,null,null,null,null,null,null,null,null,null,null,null,null,null,null,null,null,null,null,null,null,null,null,null,null,null,null,null,null,null,null,null,null,null,null,null,null,null,null,null,null,null,null,null,null,{"$f":"Daten!C17","v":"Österreich"},{"$f":"Daten!B17","v":15},null,0,0,0,0,{"$f":"Daten!C17","v":"Österreich"},{"$f":"Daten!B17","v":15},null,0,0,0,0]
[null,null,null,null,null,null,null,null,null,null,null,null,null,null,null,null,null,null,null,null,null,null,null,null,null,null,null,null,null,null,null,null,null,null,null,null,null,null,null,null,null,null,null,null,null,null,null,null,null,null,null,null,null,null,null,null,null,null,null,null,null,null,null,null,null,null,null,null,null,null,null,null,null,null,null,null,null,null,null,null,null,null,null,null,null,null,null,null,null,null,null,null,null,null,null,null,null,{"$f":"Daten!C18","v":"Frankreich"},{"$f":"Daten!B18","v":16},null,0,0,0,0,{"$f":"Daten!C18","v":"Frankreich"},{"$f":"Daten!B18","v":16},null,0,0,0,0]
[null,null,null,null,null,null,null,null,null,null,null,null,null,null,null,null,null,null,null,null,null,null,null,null,null,null,null,null,null,null,null,null,null,null,null,null,null,null,null,null,null,null,null,null,null,null,null,null,null,null,null,null,null,null,null,null,null,null,null,null,null,null,null,null,null,null,null,null,null,null,null,null,null,null,null,null,null,null,null,null,null,null,null,null,null,null,null,null,null,null,null,null,null,null,null,null,null,{"$f":"Daten!C19","v":"Rumänien"},{"$f":"Daten!B19","v":17},null,0,0,0,0,{"$f":"Daten!C19","v":"Rumänien"},{"$f":"Daten!B19","v":17},null,0,0,0,0]
[null,null,null,null,null,null,null,null,null,null,null,null,null,null,null,null,null,null,null,null,null,null,null,null,null,null,null,null,null,null,null,null,null,null,null,null,null,null,null,null,null,null,null,null,null,null,null,null,null,null,null,null,null,null,null,null,null,null,null,null,null,null,null,null,null,null,null,null,null,null,null,null,null,null,null,null,null,null,null,null,null,null,null,null,null,null,null,null,null,null,null,null,null,null,null,null,null,{"$f":"Daten!C20","v":"Ukraine"},{"$f":"Daten!B20","v":18},null,0,0,0,0,{"$f":"Daten!C20","v":"Ukraine"},{"$f":"Daten!B20","v":18},null,0,0,0,0]
[null,null,null,null,null,null,null,null,null,null,null,null,null,null,null,null,null,null,null,null,null,null,null,null,null,null,null,null,null,null,null,null,null,null,null,null,null,null,null,null,null,null,null,null,null,null,null,null,null,null,null,null,null,null,null,null,null,null,null,null,null,null,null,null,null,null,null,null,null,null,null,null,null,null,null,null,null,null,null,null,null,null,null,null,null,null,null,null,null,null,null,null,null,null,null,null,null,{"$f":"Daten!C21","v":"Belgien"},{"$f":"Daten!B21","v":19},null,0,0,0,0,{"$f":"Daten!C21","v":"Belgien"},{"$f":"Daten!B21","v":19},null,0,0,0,0]
[null,null,null,null,null,null,null,null,null,null,null,null,null,null,null,null,null,null,null,null,null,null,null,null,null,null,null,null,null,null,null,null,null,null,null,null,null,null,null,null,null,null,null,null,null,null,null,null,null,null,null,null,null,null,null,null,null,null,null,null,null,null,null,null,null,null,null,null,null,null,null,null,null,null,null,null,null,null,null,null,null,null,null,null,null,null,null,null,null,null,null,null,null,null,null,null,null,{"$f":"Daten!C22","v":"Slowakei"},{"$f":"Daten!B22","v":20},null,0,0,0,0,{"$f":"Daten!C22","v":"Slowakei"},{"$f":"Daten!B22","v":20},null,0,0,0,0]
[null,null,null,null,null,null,null,null,null,null,null,null,null,null,null,null,null,null,null,null,null,null,null,null,null,null,null,null,null,null,null,null,null,null,null,null,null,null,null,null,null,null,null,null,null,null,null,null,null,null,null,null,null,null,null,null,null,null,null,null,null,null,null,null,null,null,null,null,null,null,null,null,null,null,null,null,null,null,null,null,null,null,null,null,null,null,null,null,null,null,null,null,null,null,null,null,null,{"$f":"Daten!C23","v":"Türkei"},{"$f":"Daten!B23","v":21},null,0,0,0,0,{"$f":"Daten!C23","v":"Türkei"},{"$f":"Daten!B23","v":21},null,0,0,0,0]
[null,null,null,null,null,null,null,null,null,null,null,null,null,null,null,null,null,null,null,null,null,null,null,null,null,null,null,null,null,null,null,null,null,null,null,null,null,null,null,null,null,null,null,null,null,null,null,null,null,null,null,null,null,null,null,null,null,null,null,null,null,null,null,null,null,null,null,null,null,null,null,null,null,null,null,null,null,null,null,null,null,null,null,null,null,null,null,null,null,null,null,null,null,null,null,null,null,{"$f":"Daten!C24","v":"Georgien"},{"$f":"Daten!B24","v":22},null,0,0,0,0,{"$f":"Daten!C24","v":"Georgien"},{"$f":"Daten!B24","v":22},null,0,0,0,0]
[null,null,null,null,null,null,null,null,null,null,null,null,null,null,null,null,null,null,null,null,null,null,null,null,null,null,null,null,null,null,null,null,null,null,null,null,null,null,null,null,null,null,null,null,null,null,null,null,null,null,null,null,null,null,null,null,null,null,null,null,null,null,null,null,null,null,null,null,null,null,null,null,null,null,null,null,null,null,null,null,null,null,null,null,null,null,null,null,null,null,null,null,null,null,null,null,null,{"$f":"Daten!C25","v":"Portugal"},{"$f":"Daten!B25","v":23},null,0,0,0,0,{"$f":"Daten!C25","v":"Portugal"},{"$f":"Daten!B25","v":23},null,0,0,0,0]
[null,null,null,null,null,null,null,null,null,null,null,null,null,null,null,null,null,null,null,null,null,null,null,null,null,null,null,null,null,null,null,null,null,null,null,null,null,null,null,null,null,null,null,null,null,null,null,null,null,null,null,null,null,null,null,null,null,null,null,null,null,null,null,null,null,null,null,null,null,null,null,null,null,null,null,null,null,null,null,null,null,null,null,null,null,null,null,null,null,null,null,null,null,null,null,null,null,{"$f":"Daten!C26","v":"Tschechien"},{"$f":"Daten!B26","v":24},null,0,0,0,0,{"$f":"Daten!C26","v":"Tschechien"},{"$f":"Daten!B26","v":24},null,0,0,0,0]
[null,null,null,null,null,null,null,null,null,null,null,null,null,null,null,null,null,null,null,null,null,null,null,null,null,null,null,null,null,null,null,null,null,null,null,null,null,null,null,null,null,null,null,null,null,null,null,null,null,null,null,null,null,null,null,null,null,null,null,null,null,null,null,null,null,null,null,null,null,null,null,null,null,null,null,null,null,null,null,null,null,null,null,null,null,null,null,null,null,null,null,null,null,null,null,null,null,{"$f":"Daten!C27","v":0},{"$f":"Daten!B27","v":25},null,0,0,0,0,{"$f":"Daten!C27","v":0},{"$f":"Daten!B27","v":25},null,0,0,0,0]
[null,null,null,null,null,null,null,null,null,null,null,null,null,null,null,null,null,null,null,null,null,null,null,null,null,null,null,null,null,null,null,null,null,null,null,null,null,null,null,null,null,null,null,null,null,null,null,null,null,null,null,null,null,null,null,null,null,null,null,null,null,null,null,null,null,null,null,null,null,null,null,null,null,null,null,null,null,null,null,null,null,null,null,null,null,null,null,null,null,null,null,null,null,null,null,null,null,{"$f":"Daten!C28","v":0},{"$f":"Daten!B28","v":26},null,0,0,0,0,{"$f":"Daten!C28","v":0},{"$f":"Daten!B28","v":26},null,0,0,0,0]
[null,null,null,null,null,null,null,null,null,null,null,null,null,null,null,null,null,null,null,null,null,null,null,null,null,null,null,null,null,null,null,null,null,null,null,null,null,null,null,null,null,null,null,null,null,null,null,null,null,null,null,null,null,null,null,null,null,null,null,null,null,null,null,null,null,null,null,null,null,null,null,null,null,null,null,null,null,null,null,null,null,null,null,null,null,null,null,null,null,null,null,null,null,null,null,null,null,{"$f":"Daten!C29","v":0},{"$f":"Daten!B29","v":27},null,0,0,0,0,{"$f":"Daten!C29","v":0},{"$f":"Daten!B29","v":27},null,0,0,0,0]
[null,null,null,null,null,null,null,null,null,null,null,null,null,null,null,null,null,null,null,null,null,null,null,null,null,null,null,null,null,null,null,null,null,null,null,null,null,null,null,null,null,null,null,null,null,null,null,null,null,null,null,null,null,null,null,null,null,null,null,null,null,null,null,null,null,null,null,null,null,null,null,null,null,null,null,null,null,null,null,null,null,null,null,null,null,null,null,null,null,null,null,null,null,null,null,null,null,{"$f":"Daten!C30","v":0},{"$f":"Daten!B30","v":28},null,0,0,0,0,{"$f":"Daten!C30","v":0},{"$f":"Daten!B30","v":28},null,0,0,0,0]
[null,null,null,null,null,null,null,null,null,null,null,null,null,null,null,null,null,null,null,null,null,null,null,null,null,null,null,null,null,null,null,null,null,null,null,null,null,null,null,null,null,null,null,null,null,null,null,null,null,null,null,null,null,null,null,null,null,null,null,null,null,null,null,null,null,null,null,null,null,null,null,null,null,null,null,null,null,null,null,null,null,null,null,null,null,null,null,null,null,null,null,null,null,null,null,null,null,{"$f":"Daten!C31","v":0},{"$f":"Daten!B31","v":29},null,0,0,0,0,{"$f":"Daten!C31","v":0},{"$f":"Daten!B31","v":29},null,0,0,0,0]
[null,null,null,null,null,null,null,null,null,null,null,null,null,null,null,null,null,null,null,null,null,null,null,null,null,null,null,null,null,null,null,null,null,null,null,null,null,null,null,null,null,null,null,null,null,null,null,null,null,null,null,null,null,null,null,null,null,null,null,null,null,null,null,null,null,null,null,null,null,null,null,null,null,null,null,null,null,null,null,null,null,null,null,null,null,null,null,null,null,null,null,null,null,null,null,null,null,{"$f":"Daten!C32","v":0},{"$f":"Daten!B32","v":30},null,0,0,0,0,{"$f":"Daten!C32","v":0},{"$f":"Daten!B32","v":30},null,0,0,0,0]
[null,null,null,null,null,null,null,null,null,null,null,null,null,null,null,null,null,null,null,null,null,null,null,null,null,null,null,null,null,null,null,null,null,null,null,null,null,null,null,null,null,null,null,null,null,null,null,null,null,null,null,null,null,null,null,null,null,null,null,null,null,null,null,null,null,null,null,null,null,null,null,null,null,null,null,null,null,null,null,null,null,null,null,null,null,null,null,null,null,null,null,null,null,null,null,null,null,{"$f":"Daten!C33","v":0},{"$f":"Daten!B33","v":31},null,0,0,0,0,{"$f":"Daten!C33","v":0},{"$f":"Daten!B33","v":31},null,0,0,0,0]
[null,null,null,null,null,null,null,null,null,null,null,null,null,null,null,null,null,null,null,null,null,null,null,null,null,null,null,null,null,null,null,null,null,null,null,null,null,null,null,null,null,null,null,null,null,null,null,null,null,null,null,null,null,null,null,null,null,null,null,null,null,null,null,null,null,null,null,null,null,null,null,null,null,null,null,null,null,null,null,null,null,null,null,null,null,null,null,null,null,null,null,null,null,null,null,null,null,{"$f":"Daten!C34","v":0},{"$f":"Daten!B34","v":32},null,0,0,0,0,{"$f":"Daten!C34","v":0},{"$f":"Daten!B34","v":32},null,0,0,0,0]
[]
[null,null,null,null,null,null,null,null,null,null,null,null,null,null,null,null,null,null,null,null,null,null,null,null,null,null,null,null,null,null,null,null,null,null,null,null,null,null,null,null,null,null,null,null,null,null,null,null,null,null,null,null,null,null,null,null,null,null,null,null,null,null,null,null,null,null,null,null,null,null,null,null,null,null,null,null,null,null,null,null,null,null,null,null,null,null,null,null,null,null,null,null,null,null,null,null,null,{"$f":"Daten!C3","v":"Deutschland"},{"$f":"Daten!B3","v":1},null,{"$f":"IF($CC$83=CT143,CU143,0)","v":0},{"$f":"IF($CD$83=CT143,CU143,0)","v":0}]
[null,null,null,null,null,null,null,"2024-07-14T23:59:00",null,null,null,null,null,null,null,null,null,null,null,null,null,null,null,null,null,null,null,null,null,null,null,null,null,null,null,null,null,null,null,null,null,null,null,null,null,null,null,null,null,null,null,null,null,null,null,null,null,null,null,null,null,null,null,null,null,null,null,null,null,null,null,null,null,null,null,null,null,null,null,null,null,null,null,null,null,null,null,null,null,null,null,null,null,null,null,null,null,{"$f":"Daten!C4","v":"Schottland"},{"$f":"Daten!B4","v":2},null,{"$f":"IF($CC$83=CT144,CU144,0)","v":0},{"$f":"IF($CD$83=CT144,CU144,0)","v":0}]
[null,null,null,null,null,null,null,"2024-06-14T21:00:00",null,null,null,null,null,null,null,null,null,null,null,null,null,null,null,null,null,null,null,null,null,null,null,null,null,null,null,null,null,null,null,null,null,null,null,null,null,null,null,null,null,null,null,null,null,null,null,null,null,null,null,null,null,null,null,null,null,null,null,null,null,null,null,null,null,null,null,null,null,null,null,null,null,null,null,null,null,null,null,null,null,null,null,null,null,null,null,null,null,{"$f":"Daten!C5","v":"Ungarn"},{"$f":"Daten!B5","v":3},null,0,0]
[null,null,null,null,null,null,null,{"$f":"NOW()","v":"2024-06-20T11:55:14.080"},null,null,null,null,null,null,null,null,null,null,null,null,null,null,null,null,null,null,null,null,null,null,null,null,null,null,null,null,null,null,null,null,null,null,null,null,null,null,null,null,null,null,null,null,null,null,null,null,null,null,null,null,null,null,null,null,null,null,null,null,null,null,null,null,null,null,null,null,null,null,null,null,null,null,null,null,null,null,null,null,null,null,null,null,null,null,null,null,null,{"$f":"Daten!C6","v":"Schweiz"},{"$f":"Daten!B6","v":4},null,0,0]
[null,null,null,null,null,null,null,null,null,null,null,null,null,null,null,null,null,null,null,null,null,null,null,null,null,null,null,null,null,null,null,null,null,null,null,null,null,null,null,null,null,null,null,null,null,null,null,null,null,null,null,null,null,null,null,null,null,null,null,null,null,null,null,null,null,null,null,null,null,null,null,null,null,null,null,null,null,null,null,null,null,null,null,null,null,null,null,null,null,null,null,null,null,null,null,null,null,{"$f":"Daten!C7","v":"Spanien"},{"$f":"Daten!B7","v":5},null,0,0]
[null,null,null,null,null,null,null,null,null,null,null,null,null,null,null,null,null,null,null,null,null,null,null,null,null,null,null,null,null,null,null,null,null,null,null,null,null,null,null,null,null,null,null,null,null,null,null,null,null,null,null,null,null,null,null,null,null,null,null,null,null,null,null,null,null,null,null,null,null,null,null,null,null,null,null,null,null,null,null,null,null,null,null,null,null,null,null,null,null,null,null,null,null,null,null,null,null,{"$f":"Daten!C8","v":"Kroatien"},{"$f":"Daten!B8","v":6},null,0,0]
[null,null,null,null,null,null,null,null,null,null,null,null,null,null,null,null,null,null,null,null,null,null,null,null,null,null,null,null,null,null,null,null,null,null,null,null,null,null,null,null,null,null,null,null,null,null,null,null,null,null,null,null,null,null,null,null,null,null,null,null,null,null,null,null,null,null,null,null,null,null,null,null,null,null,null,null,null,null,null,null,null,null,null,null,null,null,null,null,null,null,null,null,null,null,null,null,null,{"$f":"Daten!C9","v":"Italien"},{"$f":"Daten!B9","v":7},null,0,0]
[null,null,null,null,null,null,null,null,null,null,null,null,null,null,null,null,null,null,null,null,null,null,null,null,null,null,null,null,null,null,null,null,null,null,null,null,null,null,null,null,null,null,null,null,null,null,null,null,null,null,null,null,null,null,null,null,null,null,null,null,null,null,null,null,null,null,null,null,null,null,null,null,null,null,null,null,null,null,null,null,null,null,null,null,null,null,null,null,null,null,null,null,null,null,null,null,null,{"$f":"Daten!C10","v":"Albanien"},{"$f":"Daten!B10","v":8},null,0,0]
[null,null,null,null,null,null,null,null,null,null,null,null,null,null,null,null,null,null,null,null,null,null,null,null,null,null,null,null,null,null,null,null,null,null,null,null,null,null,null,null,null,null,null,null,null,null,null,null,null,null,null,null,null,null,null,null,null,null,null,null,null,null,null,null,null,null,null,null,null,null,null,null,null,null,null,null,null,null,null,null,null,null,null,null,null,null,null,null,null,null,null,null,null,null,null,null,null,{"$f":"Daten!C11","v":"Slowenien"},{"$f":"Daten!B11","v":9},null,0,0]
[null,null,null,null,null,null,null,null,null,null,null,null,null,null,null,null,null,null,null,null,null,null,null,null,null,null,null,null,null,null,null,null,null,null,null,null,null,null,null,null,null,null,null,null,null,null,null,null,null,null,null,null,null,null,null,null,null,null,null,null,null,null,null,null,null,null,null,null,null,null,null,null,null,null,null,null,null,null,null,null,null,null,null,null,null,null,null,null,null,null,null,null,null,null,null,null,null,{"$f":"Daten!C12","v":"Dänemark"},{"$f":"Daten!B12","v":10},null,0,0]
[null,null,null,null,null,null,null,null,null,null,null,null,null,null,null,null,null,null,null,null,null,null,null,null,null,null,null,null,null,null,null,null,null,null,null,null,null,null,null,null,null,null,null,null,null,null,null,null,null,null,null,null,null,null,null,null,null,null,null,null,null,null,null,null,null,null,null,null,null,null,null,null,null,null,null,null,null,null,null,null,null,null,null,null,null,null,null,null,null,null,null,null,null,null,null,null,null,{"$f":"Daten!C13","v":"Serbien"},{"$f":"Daten!B13","v":11},null,0,0]
[null,null,null,null,null,null,null,null,null,null,null,null,null,null,null,null,null,null,null,null,null,null,null,null,null,null,null,null,null,null,null,null,null,null,null,null,null,null,null,null,null,null,null,null,null,null,null,null,null,null,null,null,null,null,null,null,null,null,null,null,null,null,null,null,null,null,null,null,null,null,null,null,null,null,null,null,null,null,null,null,null,null,null,null,null,null,null,null,null,null,null,null,null,null,null,null,null,{"$f":"Daten!C14","v":"England"},{"$f":"Daten!B14","v":12},null,0,0]
[null,null,null,null,null,null,null,null,null,null,null,null,null,null,null,null,null,null,null,null,null,null,null,null,null,null,null,null,null,null,null,null,null,null,null,null,null,null,null,null,null,null,null,null,null,null,null,null,null,null,null,null,null,null,null,null,null,null,null,null,null,null,null,null,null,null,null,null,null,null,null,null,null,null,null,null,null,null,null,null,null,null,null,null,null,null,null,null,null,null,null,null,null,null,null,null,null,{"$f":"Daten!C15","v":"Polen"},{"$f":"Daten!B15","v":13},null,0,0]
[null,null,null,null,null,null,null,null,null,null,null,null,null,null,null,null,null,null,null,null,null,null,null,null,null,null,null,null,null,null,null,null,null,null,null,null,null,null,null,null,null,null,null,null,null,null,null,null,null,null,null,null,null,null,null,null,null,null,null,null,null,null,null,null,null,null,null,null,null,null,null,null,null,null,null,null,null,null,null,null,null,null,null,null,null,null,null,null,null,null,null,null,null,null,null,null,null,{"$f":"Daten!C16","v":"Niederlande"},{"$f":"Daten!B16","v":14},null,0,0]
[null,null,null,null,null,null,null,null,null,null,null,null,null,null,null,null,null,null,null,null,null,null,null,null,null,null,null,null,null,null,null,null,null,null,null,null,null,null,null,null,null,null,null,null,null,null,null,null,null,null,null,null,null,null,null,null,null,null,null,null,null,null,null,null,null,null,null,null,null,null,null,null,null,null,null,null,null,null,null,null,null,null,null,null,null,null,null,null,null,null,null,null,null,null,null,null,null,{"$f":"Daten!C17","v":"Österreich"},{"$f":"Daten!B17","v":15},null,0,0]
[null,null,null,null,null,null,null,null,null,null,null,null,null,null,null,null,null,null,null,null,null,null,null,null,null,null,null,null,null,null,null,null,null,null,null,null,null,null,null,null,null,null,null,null,null,null,null,null,null,null,null,null,null,null,null,null,null,null,null,null,null,null,null,null,null,null,null,null,null,null,null,null,null,null,null,null,null,null,null,null,null,null,null,null,null,null,null,null,null,null,null,null,null,null,null,null,null,{"$f":"Daten!C18","v":"Frankreich"},{"$f":"Daten!B18","v":16},null,0,0]
[null,null,null,null,null,null,null,null,null,null,null,null,null,null,null,null,null,null,null,null,null,null,null,null,null,null,null,null,null,null,null,null,null,null,null,null,null,null,null,null,null,null,null,null,null,null,null,null,null,null,null,null,null,null,null,null,null,null,null,null,null,null,null,null,null,null,null,null,null,null,null,null,null,null,null,null,null,null,null,null,null,null,null,null,null,null,null,null,null,null,null,null,null,null,null,null,null,{"$f":"Daten!C19","v":"Rumänien"},{"$f":"Daten!B19","v":17},null,0,0]
[null,null,null,null,null,null,null,null,null,null,null,null,null,null,null,null,null,null,null,null,null,null,null,null,null,null,null,null,null,null,null,null,null,null,null,null,null,null,null,null,null,null,null,null,null,null,null,null,null,null,null,null,null,null,null,null,null,null,null,null,null,null,null,null,null,null,null,null,null,null,null,null,null,null,null,null,null,null,null,null,null,null,null,null,null,null,null,null,null,null,null,null,null,null,null,null,null,{"$f":"Daten!C20","v":"Ukraine"},{"$f":"Daten!B20","v":18},null,0,0]
[null,null,null,null,null,null,null,null,null,null,null,null,null,null,null,null,null,null,null,null,null,null,null,null,null,null,null,null,null,null,null,null,null,null,null,null,null,null,null,null,null,null,null,null,null,null,null,null,null,null,null,null,null,null,null,null,null,null,null,null,null,null,null,null,null,null,null,null,null,null,null,null,null,null,null,null,null,null,null,null,null,null,null,null,null,null,null,null,null,null,null,null,null,null,null,null,null,{"$f":"Daten!C21","v":"Belgien"},{"$f":"Daten!B21","v":19},null,0,0]
[null,null,null,null,null,null,null,null,null,null,null,null,null,null,null,null,null,null,null,null,null,null,null,null,null,null,null,null,null,null,null,null,null,null,null,null,null,null,null,null,null,null,null,null,null,null,null,null,null,null,null,null,null,null,null,null,null,null,null,null,null,null,null,null,null,null,null,null,null,null,null,null,null,null,null,null,null,null,null,null,null,null,null,null,null,null,null,null,null,null,null,null,null,null,null,null,null,{"$f":"Daten!C22","v":"Slowakei"},{"$f":"Daten!B22","v":20},null,0,0]
[null,null,null,null,null,null,null,null,null,null,null,null,null,null,null,null,null,null,null,null,null,null,null,null,null,null,null,null,null,null,null,null,null,null,null,null,null,null,null,null,null,null,null,null,null,null,null,null,null,null,null,null,null,null,null,null,null,null,null,null,null,null,null,null,null,null,null,null,null,null,null,null,null,null,null,null,null,null,null,null,null,null,null,null,null,null,null,null,null,null,null,null,null,null,null,null,null,{"$f":"Daten!C23","v":"Türkei"},{"$f":"Daten!B23","v":21},null,0,0]
[null,null,null,null,null,null,null,null,null,null,null,null,null,null,null,null,null,null,null,null,null,null,null,null,null,null,null,null,null,null,null,null,null,null,null,null,null,null,null,null,null,null,null,null,null,null,null,null,null,null,null,null,null,null,null,null,null,null,null,null,null,null,null,null,null,null,null,null,null,null,null,null,null,null,null,null,null,null,null,null,null,null,null,null,null,null,null,null,null,null,null,null,null,null,null,null,null,{"$f":"Daten!C24","v":"Georgien"},{"$f":"Daten!B24","v":22},null,0,0]
[null,null,null,null,null,null,null,null,null,null,null,null,null,null,null,null,null,null,null,null,null,null,null,null,null,null,null,null,null,null,null,null,null,null,null,null,null,null,null,null,null,null,null,null,null,null,null,null,null,null,null,null,null,null,null,null,null,null,null,null,null,null,null,null,null,null,null,null,null,null,null,null,null,null,null,null,null,null,null,null,null,null,null,null,null,null,null,null,null,null,null,null,null,null,null,null,null,{"$f":"Daten!C25","v":"Portugal"},{"$f":"Daten!B25","v":23},null,0,0]
[null,null,null,null,null,null,null,null,null,null,null,null,null,null,null,null,null,null,null,null,null,null,null,null,null,null,null,null,null,null,null,null,null,null,null,null,null,null,null,null,null,null,null,null,null,null,null,null,null,null,null,null,null,null,null,null,null,null,null,null,null,null,null,null,null,null,null,null,null,null,null,null,null,null,null,null,null,null,null,null,null,null,null,null,null,null,null,null,null,null,null,null,null,null,null,null,null,{"$f":"Daten!C26","v":"Tschechien"},{"$f":"Daten!B26","v":24},null,0,0]
[null,null,null,null,null,null,null,null,null,null,null,null,null,null,null,null,null,null,null,null,null,null,null,null,null,null,null,null,null,null,null,null,null,null,null,null,null,null,null,null,null,null,null,null,null,null,null,null,null,null,null,null,null,null,null,null,null,null,null,null,null,null,null,null,null,null,null,null,null,null,null,null,null,null,null,null,null,null,null,null,null,null,null,null,null,null,null,null,null,null,null,null,null,null,null,null,null,{"$f":"Daten!C27","v":0},{"$f":"Daten!B27","v":25},null,0,0]
[null,null,null,null,null,null,null,null,null,null,null,null,null,null,null,null,null,null,null,null,null,null,null,null,null,null,null,null,null,null,null,null,null,null,null,null,null,null,null,null,null,null,null,null,null,null,null,null,null,null,null,null,null,null,null,null,null,null,null,null,null,null,null,null,null,null,null,null,null,null,null,null,null,null,null,null,null,null,null,null,null,null,null,null,null,null,null,null,null,null,null,null,null,null,null,null,null,{"$f":"Daten!C28","v":0},{"$f":"Daten!B28","v":26},null,0,0]
[null,null,null,null,null,null,null,null,null,null,null,null,null,null,null,null,null,null,null,null,null,null,null,null,null,null,null,null,null,null,null,null,null,null,null,null,null,null,null,null,null,null,null,null,null,null,null,null,null,null,null,null,null,null,null,null,null,null,null,null,null,null,null,null,null,null,null,null,null,null,null,null,null,null,null,null,null,null,null,null,null,null,null,null,null,null,null,null,null,null,null,null,null,null,null,null,null,{"$f":"Daten!C29","v":0},{"$f":"Daten!B29","v":27},null,0,0]
[null,null,null,null,null,null,null,null,null,null,null,null,null,null,null,null,null,null,null,null,null,null,null,null,null,null,null,null,null,null,null,null,null,null,null,null,null,null,null,null,null,null,null,null,null,null,null,null,null,null,null,null,null,null,null,null,null,null,null,null,null,null,null,null,null,null,null,null,null,null,null,null,null,null,null,null,null,null,null,null,null,null,null,null,null,null,null,null,null,null,null,null,null,null,null,null,null,{"$f":"Daten!C30","v":0},{"$f":"Daten!B30","v":28},null,0,0]
[null,null,null,null,null,null,null,null,null,null,null,null,null,null,null,null,null,null,null,null,null,null,null,null,null,null,null,null,null,null,null,null,null,null,null,null,null,null,null,null,null,null,null,null,null,null,null,null,null,null,null,null,null,null,null,null,null,null,null,null,null,null,null,null,null,null,null,null,null,null,null,null,null,null,null,null,null,null,null,null,null,null,null,null,null,null,null,null,null,null,null,null,null,null,null,null,null,{"$f":"Daten!C31","v":0},{"$f":"Daten!B31","v":29},null,0,0]
[null,null,null,null,null,null,null,null,null,null,null,null,null,null,null,null,null,null,null,null,null,null,null,null,null,null,null,null,null,null,null,null,null,null,null,null,null,null,null,null,null,null,null,null,null,null,null,null,null,null,null,null,null,null,null,null,null,null,null,null,null,null,null,null,null,null,null,null,null,null,null,null,null,null,null,null,null,null,null,null,null,null,null,null,null,null,null,null,null,null,null,null,null,null,null,null,null,{"$f":"Daten!C32","v":0},{"$f":"Daten!B32","v":30},null,0,0]
[null,null,null,null,null,null,null,null,null,null,null,null,null,null,null,null,null,null,null,null,null,null,null,null,null,null,null,null,null,null,null,null,null,null,null,null,null,null,null,null,null,null,null,null,null,null,null,null,null,null,null,null,null,null,null,null,null,null,null,null,null,null,null,null,null,null,null,null,null,null,null,null,null,null,null,null,null,null,null,null,null,null,null,null,null,null,null,null,null,null,null,null,null,null,null,null,null,{"$f":"Daten!C33","v":0},{"$f":"Daten!B33","v":31},null,0,0]
[null,null,null,null,null,null,null,null,null,null,null,null,null,null,null,null,null,null,null,null,null,null,null,null,null,null,null,null,null,null,null,null,null,null,null,null,null,null,null,null,null,null,null,null,null,null,null,null,null,null,null,null,null,null,null,null,null,null,null,null,null,null,null,null,null,null,null,null,null,null,null,null,null,null,null,null,null,null,null,null,null,null,null,null,null,null,null,null,null,null,null,null,null,null,null,null,null,{"$f":"Daten!C34","v":0},{"$f":"Daten!B34","v":32},null,0,0]
[null,null,null,null,null,null,null,null,null,null,null,null,null,null,null,null,null,null,null,null,null,null,null,null,null,null,null,null,null,null,null,null,null,null,null,null,null,null,null,null,null,null,null,null,null,null,null,null,null,null,null,null,null,null,null,null,null,null,null,null,null,null,null,null,null,null,null,null,null,null,null,null,null,null,null,null,null,null,null,null,null,null,null,null,null,null,null,null,null,null,null,null,null,null,null,null,null,{"$f":"Daten!C3","v":"Deutschland"},{"$f":"Daten!B3","v":1},null,{"$f":"IF($CC$84=CT175,CU175,0)","v":0},{"$f":"IF($CD$84=CT175,CU175,0)","v":0}]
[null,null,null,null,null,null,null,null,null,null,null,null,null,null,null,null,null,null,null,null,null,null,null,null,null,null,null,null,null,null,null,null,null,null,null,null,null,null,null,null,null,null,null,null,null,null,null,null,null,null,null,null,null,null,null,null,null,null,null,null,null,null,null,null,null,null,null,null,null,null,null,null,null,null,null,null,null,null,null,null,null,null,null,null,null,null,null,null,null,null,null,null,null,null,null,null,null,{"$f":"Daten!C4","v":"Schottland"},{"$f":"Daten!B4","v":2},null,{"$f":"IF($CC$84=CT176,CU176,0)","v":0},{"$f":"IF($CD$84=CT176,CU176,0)","v":0}]
[null,null,null,null,null,null,null,null,null,null,null,null,null,null,null,null,null,null,null,null,null,null,null,null,null,null,null,null,null,null,null,null,null,null,null,null,null,null,null,null,null,null,null,null,null,null,null,null,null,null,null,null,null,null,null,null,null,null,null,null,null,null,null,null,null,null,null,null,null,null,null,null,null,null,null,null,null,null,null,null,null,null,null,null,null,null,null,null,null,null,null,null,null,null,null,null,null,{"$f":"Daten!C5","v":"Ungarn"},{"$f":"Daten!B5","v":3},null,0,0]
[null,null,null,null,null,null,null,null,null,null,null,null,null,null,null,null,null,null,null,null,null,null,null,null,null,null,null,null,null,null,null,null,null,null,null,null,null,null,null,null,null,null,null,null,null,null,null,null,null,null,null,null,null,null,null,null,null,null,null,null,null,null,null,null,null,null,null,null,null,null,null,null,null,null,null,null,null,null,null,null,null,null,null,null,null,null,null,null,null,null,null,null,null,null,null,null,null,{"$f":"Daten!C6","v":"Schweiz"},{"$f":"Daten!B6","v":4},null,0,0]
[null,null,null,null,null,null,null,null,null,null,null,null,null,null,null,null,null,null,null,null,null,null,null,null,null,null,null,null,null,null,null,null,null,null,null,null,null,null,null,null,null,null,null,null,null,null,null,null,null,null,null,null,null,null,null,null,null,null,null,null,null,null,null,null,null,null,null,null,null,null,null,null,null,null,null,null,null,null,null,null,null,null,null,null,null,null,null,null,null,null,null,null,null,null,null,null,null,{"$f":"Daten!C7","v":"Spanien"},{"$f":"Daten!B7","v":5},null,0,0]
[null,null,null,null,null,null,null,null,null,null,null,null,null,null,null,null,null,null,null,null,null,null,null,null,null,null,null,null,null,null,null,null,null,null,null,null,null,null,null,null,null,null,null,null,null,null,null,null,null,null,null,null,null,null,null,null,null,null,null,null,null,null,null,null,null,null,null,null,null,null,null,null,null,null,null,null,null,null,null,null,null,null,null,null,null,null,null,null,null,null,null,null,null,null,null,null,null,{"$f":"Daten!C8","v":"Kroatien"},{"$f":"Daten!B8","v":6},null,0,0]
[null,null,null,null,null,null,null,null,null,null,null,null,null,null,null,null,null,null,null,null,null,null,null,null,null,null,null,null,null,null,null,null,null,null,null,null,null,null,null,null,null,null,null,null,null,null,null,null,null,null,null,null,null,null,null,null,null,null,null,null,null,null,null,null,null,null,null,null,null,null,null,null,null,null,null,null,null,null,null,null,null,null,null,null,null,null,null,null,null,null,null,null,null,null,null,null,null,{"$f":"Daten!C9","v":"Italien"},{"$f":"Daten!B9","v":7},null,0,0]
[null,null,null,null,null,null,null,null,null,null,null,null,null,null,null,null,null,null,null,null,null,null,null,null,null,null,null,null,null,null,null,null,null,null,null,null,null,null,null,null,null,null,null,null,null,null,null,null,null,null,null,null,null,null,null,null,null,null,null,null,null,null,null,null,null,null,null,null,null,null,null,null,null,null,null,null,null,null,null,null,null,null,null,null,null,null,null,null,null,null,null,null,null,null,null,null,null,{"$f":"Daten!C10","v":"Albanien"},{"$f":"Daten!B10","v":8},null,0,0]
[null,null,null,null,null,null,null,null,null,null,null,null,null,null,null,null,null,null,null,null,null,null,null,null,null,null,null,null,null,null,null,null,null,null,null,null,null,null,null,null,null,null,null,null,null,null,null,null,null,null,null,null,null,null,null,null,null,null,null,null,null,null,null,null,null,null,null,null,null,null,null,null,null,null,null,null,null,null,null,null,null,null,null,null,null,null,null,null,null,null,null,null,null,null,null,null,null,{"$f":"Daten!C11","v":"Slowenien"},{"$f":"Daten!B11","v":9},null,0,0]
[null,null,null,null,null,null,null,null,null,null,null,null,null,null,null,null,null,null,null,null,null,null,null,null,null,null,null,null,null,null,null,null,null,null,null,null,null,null,null,null,null,null,null,null,null,null,null,null,null,null,null,null,null,null,null,null,null,null,null,null,null,null,null,null,null,null,null,null,null,null,null,null,null,null,null,null,null,null,null,null,null,null,null,null,null,null,null,null,null,null,null,null,null,null,null,null,null,{"$f":"Daten!C12","v":"Dänemark"},{"$f":"Daten!B12","v":10},null,0,0]
[null,null,null,null,null,null,null,null,null,null,null,null,null,null,null,null,null,null,null,null,null,null,null,null,null,null,null,null,null,null,null,null,null,null,null,null,null,null,null,null,null,null,null,null,null,null,null,null,null,null,null,null,null,null,null,null,null,null,null,null,null,null,null,null,null,null,null,null,null,null,null,null,null,null,null,null,null,null,null,null,null,null,null,null,null,null,null,null,null,null,null,null,null,null,null,null,null,{"$f":"Daten!C13","v":"Serbien"},{"$f":"Daten!B13","v":11},null,0,0]
[null,null,null,null,null,null,null,null,null,null,null,null,null,null,null,null,null,null,null,null,null,null,null,null,null,null,null,null,null,null,null,null,null,null,null,null,null,null,null,null,null,null,null,null,null,null,null,null,null,null,null,null,null,null,null,null,null,null,null,null,null,null,null,null,null,null,null,null,null,null,null,null,null,null,null,null,null,null,null,null,null,null,null,null,null,null,null,null,null,null,null,null,null,null,null,null,null,{"$f":"Daten!C14","v":"England"},{"$f":"Daten!B14","v":12},null,0,0]
[null,null,null,null,null,null,null,null,null,null,null,null,null,null,null,null,null,null,null,null,null,null,null,null,null,null,null,null,null,null,null,null,null,null,null,null,null,null,null,null,null,null,null,null,null,null,null,null,null,null,null,null,null,null,null,null,null,null,null,null,null,null,null,null,null,null,null,null,null,null,null,null,null,null,null,null,null,null,null,null,null,null,null,null,null,null,null,null,null,null,null,null,null,null,null,null,null,{"$f":"Daten!C15","v":"Polen"},{"$f":"Daten!B15","v":13},null,0,0]
[null,null,null,null,null,null,null,null,null,null,null,null,null,null,null,null,null,null,null,null,null,null,null,null,null,null,null,null,null,null,null,null,null,null,null,null,null,null,null,null,null,null,null,null,null,null,null,null,null,null,null,null,null,null,null,null,null,null,null,null,null,null,null,null,null,null,null,null,null,null,null,null,null,null,null,null,null,null,null,null,null,null,null,null,null,null,null,null,null,null,null,null,null,null,null,null,null,{"$f":"Daten!C16","v":"Niederlande"},{"$f":"Daten!B16","v":14},null,0,0]
[null,null,null,null,null,null,null,null,null,null,null,null,null,null,null,null,null,null,null,null,null,null,null,null,null,null,null,null,null,null,null,null,null,null,null,null,null,null,null,null,null,null,null,null,null,null,null,null,null,null,null,null,null,null,null,null,null,null,null,null,null,null,null,null,null,null,null,null,null,null,null,null,null,null,null,null,null,null,null,null,null,null,null,null,null,null,null,null,null,null,null,null,null,null,null,null,null,{"$f":"Daten!C17","v":"Österreich"},{"$f":"Daten!B17","v":15},null,0,0]
[null,null,null,null,null,null,null,null,null,null,null,null,null,null,null,null,null,null,null,null,null,null,null,null,null,null,null,null,null,null,null,null,null,null,null,null,null,null,null,null,null,null,null,null,null,null,null,null,null,null,null,null,null,null,null,null,null,null,null,null,null,null,null,null,null,null,null,null,null,null,null,null,null,null,null,null,null,null,null,null,null,null,null,null,null,null,null,null,null,null,null,null,null,null,null,null,null,{"$f":"Daten!C18","v":"Frankreich"},{"$f":"Daten!B18","v":16},null,0,0]
[null,null,null,null,null,null,null,null,null,null,null,null,null,null,null,null,null,null,null,null,null,null,null,null,null,null,null,null,null,null,null,null,null,null,null,null,null,null,null,null,null,null,null,null,null,null,null,null,null,null,null,null,null,null,null,null,null,null,null,null,null,null,null,null,null,null,null,null,null,null,null,null,null,null,null,null,null,null,null,null,null,null,null,null,null,null,null,null,null,null,null,null,null,null,null,null,null,{"$f":"Daten!C19","v":"Rumänien"},{"$f":"Daten!B19","v":17},null,0,0]
[null,null,null,null,null,null,null,null,null,null,null,null,null,null,null,null,null,null,null,null,null,null,null,null,null,null,null,null,null,null,null,null,null,null,null,null,null,null,null,null,null,null,null,null,null,null,null,null,null,null,null,null,null,null,null,null,null,null,null,null,null,null,null,null,null,null,null,null,null,null,null,null,null,null,null,null,null,null,null,null,null,null,null,null,null,null,null,null,null,null,null,null,null,null,null,null,null,{"$f":"Daten!C20","v":"Ukraine"},{"$f":"Daten!B20","v":18},null,0,0]
[null,null,null,null,null,null,null,null,null,null,null,null,null,null,null,null,null,null,null,null,null,null,null,null,null,null,null,null,null,null,null,null,null,null,null,null,null,null,null,null,null,null,null,null,null,null,null,null,null,null,null,null,null,null,null,null,null,null,null,null,null,null,null,null,null,null,null,null,null,null,null,null,null,null,null,null,null,null,null,null,null,null,null,null,null,null,null,null,null,null,null,null,null,null,null,null,null,{"$f":"Daten!C21","v":"Belgien"},{"$f":"Daten!B21","v":19},null,0,0]
[null,null,null,null,null,null,null,null,null,null,null,null,null,null,null,null,null,null,null,null,null,null,null,null,null,null,null,null,null,null,null,null,null,null,null,null,null,null,null,null,null,null,null,null,null,null,null,null,null,null,null,null,null,null,null,null,null,null,null,null,null,null,null,null,null,null,null,null,null,null,null,null,null,null,null,null,null,null,null,null,null,null,null,null,null,null,null,null,null,null,null,null,null,null,null,null,null,{"$f":"Daten!C22","v":"Slowakei"},{"$f":"Daten!B22","v":20},null,0,0]
[null,null,null,null,null,null,null,null,null,null,null,null,null,null,null,null,null,null,null,null,null,null,null,null,null,null,null,null,null,null,null,null,null,null,null,null,null,null,null,null,null,null,null,null,null,null,null,null,null,null,null,null,null,null,null,null,null,null,null,null,null,null,null,null,null,null,null,null,null,null,null,null,null,null,null,null,null,null,null,null,null,null,null,null,null,null,null,null,null,null,null,null,null,null,null,null,null,{"$f":"Daten!C23","v":"Türkei"},{"$f":"Daten!B23","v":21},null,0,0]
[null,null,null,null,null,null,null,null,null,null,null,null,null,null,null,null,null,null,null,null,null,null,null,null,null,null,null,null,null,null,null,null,null,null,null,null,null,null,null,null,null,null,null,null,null,null,null,null,null,null,null,null,null,null,null,null,null,null,null,null,null,null,null,null,null,null,null,null,null,null,null,null,null,null,null,null,null,null,null,null,null,null,null,null,null,null,null,null,null,null,null,null,null,null,null,null,null,{"$f":"Daten!C24","v":"Georgien"},{"$f":"Daten!B24","v":22},null,0,0]
[null,null,null,null,null,null,null,null,null,null,null,null,null,null,null,null,null,null,null,null,null,null,null,null,null,null,null,null,null,null,null,null,null,null,null,null,null,null,null,null,null,null,null,null,null,null,null,null,null,null,null,null,null,null,null,null,null,null,null,null,null,null,null,null,null,null,null,null,null,null,null,null,null,null,null,null,null,null,null,null,null,null,null,null,null,null,null,null,null,null,null,null,null,null,null,null,null,{"$f":"Daten!C25","v":"Portugal"},{"$f":"Daten!B25","v":23},null,0,0]
[null,null,null,null,null,null,null,null,null,null,null,null,null,null,null,null,null,null,null,null,null,null,null,null,null,null,null,null,null,null,null,null,null,null,null,null,null,null,null,null,null,null,null,null,null,null,null,null,null,null,null,null,null,null,null,null,null,null,null,null,null,null,null,null,null,null,null,null,null,null,null,null,null,null,null,null,null,null,null,null,null,null,null,null,null,null,null,null,null,null,null,null,null,null,null,null,null,{"$f":"Daten!C26","v":"Tschechien"},{"$f":"Daten!B26","v":24},null,0,0]
[null,null,null,null,null,null,null,null,null,null,null,null,null,null,null,null,null,null,null,null,null,null,null,null,null,null,null,null,null,null,null,null,null,null,null,null,null,null,null,null,null,null,null,null,null,null,null,null,null,null,null,null,null,null,null,null,null,null,null,null,null,null,null,null,null,null,null,null,null,null,null,null,null,null,null,null,null,null,null,null,null,null,null,null,null,null,null,null,null,null,null,null,null,null,null,null,null,{"$f":"Daten!C27","v":0},{"$f":"Daten!B27","v":25},null,0,0]
[null,null,null,null,null,null,null,null,null,null,null,null,null,null,null,null,null,null,null,null,null,null,null,null,null,null,null,null,null,null,null,null,null,null,null,null,null,null,null,null,null,null,null,null,null,null,null,null,null,null,null,null,null,null,null,null,null,null,null,null,null,null,null,null,null,null,null,null,null,null,null,null,null,null,null,null,null,null,null,null,null,null,null,null,null,null,null,null,null,null,null,null,null,null,null,null,null,{"$f":"Daten!C28","v":0},{"$f":"Daten!B28","v":26},null,0,0]
[null,null,null,null,null,null,null,null,null,null,null,null,null,null,null,null,null,null,null,null,null,null,null,null,null,null,null,null,null,null,null,null,null,null,null,null,null,null,null,null,null,null,null,null,null,null,null,null,null,null,null,null,null,null,null,null,null,null,null,null,null,null,null,null,null,null,null,null,null,null,null,null,null,null,null,null,null,null,null,null,null,null,null,null,null,null,null,null,null,null,null,null,null,null,null,null,null,{"$f":"Daten!C29","v":0},{"$f":"Daten!B29","v":27},null,0,0]
[null,null,null,null,null,null,null,null,null,null,null,null,null,null,null,null,null,null,null,null,null,null,null,null,null,null,null,null,null,null,null,null,null,null,null,null,null,null,null,null,null,null,null,null,null,null,null,null,null,null,null,null,null,null,null,null,null,null,null,null,null,null,null,null,null,null,null,null,null,null,null,null,null,null,null,null,null,null,null,null,null,null,null,null,null,null,null,null,null,null,null,null,null,null,null,null,null,{"$f":"Daten!C30","v":0},{"$f":"Daten!B30","v":28},null,0,0]
[null,null,null,null,null,null,null,null,null,null,null,null,null,null,null,null,null,null,null,null,null,null,null,null,null,null,null,null,null,null,null,null,null,null,null,null,null,null,null,null,null,null,null,null,null,null,null,null,null,null,null,null,null,null,null,null,null,null,null,null,null,null,null,null,null,null,null,null,null,null,null,null,null,null,null,null,null,null,null,null,null,null,null,null,null,null,null,null,null,null,null,null,null,null,null,null,null,{"$f":"Daten!C31","v":0},{"$f":"Daten!B31","v":29},null,0,0]
[null,null,null,null,null,null,null,null,null,null,null,null,null,null,null,null,null,null,null,null,null,null,null,null,null,null,null,null,null,null,null,null,null,null,null,null,null,null,null,null,null,null,null,null,null,null,null,null,null,null,null,null,null,null,null,null,null,null,null,null,null,null,null,null,null,null,null,null,null,null,null,null,null,null,null,null,null,null,null,null,null,null,null,null,null,null,null,null,null,null,null,null,null,null,null,null,null,{"$f":"Daten!C32","v":0},{"$f":"Daten!B32","v":30},null,0,0]
[null,null,null,null,null,null,null,null,null,null,null,null,null,null,null,null,null,null,null,null,null,null,null,null,null,null,null,null,null,null,null,null,null,null,null,null,null,null,null,null,null,null,null,null,null,null,null,null,null,null,null,null,null,null,null,null,null,null,null,null,null,null,null,null,null,null,null,null,null,null,null,null,null,null,null,null,null,null,null,null,null,null,null,null,null,null,null,null,null,null,null,null,null,null,null,null,null,{"$f":"Daten!C33","v":0},{"$f":"Daten!B33","v":31},null,0,0]
[null,null,null,null,null,null,null,null,null,null,null,null,null,null,null,null,null,null,null,null,null,null,null,null,null,null,null,null,null,null,null,null,null,null,null,null,null,null,null,null,null,null,null,null,null,null,null,null,null,null,null,null,null,null,null,null,null,null,null,null,null,null,null,null,null,null,null,null,null,null,null,null,null,null,null,null,null,null,null,null,null,null,null,null,null,null,null,null,null,null,null,null,null,null,null,null,null,{"$f":"Daten!C34","v":0},{"$f":"Daten!B34","v":32},null,0,0]
[]
[null,null,null,null,null,null,null,null,null,null,null,null,null,null,null,null,null,null,null,null,null,null,null,null,null,null,null,null,null,null,null,null,null,null,null,null,null,null,null,null,null,null,null,null,null,null,null,null,null,null,null,null,null,null,null,null,null,null,null,null,null,null,null,null,null,null,null,null,null,null,null,null,null,null,null,null,null,null,null,null,null,null,null,null,null,null,null,null,null,null,null,null,null,null,null,null,null,{"$f":"Daten!C3","v":"Deutschland"},{"$f":"Daten!B3","v":1},null,{"$f":"IF($CC$86=CT208,CU208,0)","v":0},{"$f":"IF($CD$86=CT208,CU208,0)","v":0}]
[null,null,null,null,null,null,null,null,null,null,null,null,null,null,null,null,null,null,null,null,null,null,null,null,null,null,null,null,null,null,null,null,null,null,null,null,null,null,null,null,null,null,null,null,null,null,null,null,null,null,null,null,null,null,null,null,null,null,null,null,null,null,null,null,null,null,null,null,null,null,null,null,null,null,null,null,null,null,null,null,null,null,null,null,null,null,null,null,null,null,null,null,null,null,null,null,null,{"$f":"Daten!C4","v":"Schottland"},{"$f":"Daten!B4","v":2},null,{"$f":"IF($CC$86=CT209,CU209,0)","v":0},{"$f":"IF($CD$86=CT209,CU209,0)","v":0}]
[null,null,null,null,null,null,null,null,null,null,null,null,null,null,null,null,null,null,null,null,null,null,null,null,null,null,null,null,null,null,null,null,null,null,null,null,null,null,null,null,null,null,null,null,null,null,null,null,null,null,null,null,null,null,null,null,null,null,null,null,null,null,null,null,null,null,null,null,null,null,null,null,null,null,null,null,null,null,null,null,null,null,null,null,null,null,null,null,null,null,null,null,null,null,null,null,null,{"$f":"Daten!C5","v":"Ungarn"},{"$f":"Daten!B5","v":3},null,0,0]
[null,null,null,null,null,null,null,null,null,null,null,null,null,null,null,null,null,null,null,null,null,null,null,null,null,null,null,null,null,null,null,null,null,null,null,null,null,null,null,null,null,null,null,null,null,null,null,null,null,null,null,null,null,null,null,null,null,null,null,null,null,null,null,null,null,null,null,null,null,null,null,null,null,null,null,null,null,null,null,null,null,null,null,null,null,null,null,null,null,null,null,null,null,null,null,null,null,{"$f":"Daten!C6","v":"Schweiz"},{"$f":"Daten!B6","v":4},null,0,0]
[null,null,null,null,null,null,null,null,null,null,null,null,null,null,null,null,null,null,null,null,null,null,null,null,null,null,null,null,null,null,null,null,null,null,null,null,null,null,null,null,null,null,null,null,null,null,null,null,null,null,null,null,null,null,null,null,null,null,null,null,null,null,null,null,null,null,null,null,null,null,null,null,null,null,null,null,null,null,null,null,null,null,null,null,null,null,null,null,null,null,null,null,null,null,null,null,null,{"$f":"Daten!C7","v":"Spanien"},{"$f":"Daten!B7","v":5},null,0,0]
[null,null,null,null,null,null,null,null,null,null,null,null,null,null,null,null,null,null,null,null,null,null,null,null,null,null,null,null,null,null,null,null,null,null,null,null,null,null,null,null,null,null,null,null,null,null,null,null,null,null,null,null,null,null,null,null,null,null,null,null,null,null,null,null,null,null,null,null,null,null,null,null,null,null,null,null,null,null,null,null,null,null,null,null,null,null,null,null,null,null,null,null,null,null,null,null,null,{"$f":"Daten!C8","v":"Kroatien"},{"$f":"Daten!B8","v":6},null,0,0]
[null,null,null,null,null,null,null,null,null,null,null,null,null,null,null,null,null,null,null,null,null,null,null,null,null,null,null,null,null,null,null,null,null,null,null,null,null,null,null,null,null,null,null,null,null,null,null,null,null,null,null,null,null,null,null,null,null,null,null,null,null,null,null,null,null,null,null,null,null,null,null,null,null,null,null,null,null,null,null,null,null,null,null,null,null,null,null,null,null,null,null,null,null,null,null,null,null,{"$f":"Daten!C9","v":"Italien"},{"$f":"Daten!B9","v":7},null,0,0]
[null,null,null,null,null,null,null,null,null,null,null,null,null,null,null,null,null,null,null,null,null,null,null,null,null,null,null,null,null,null,null,null,null,null,null,null,null,null,null,null,null,null,null,null,null,null,null,null,null,null,null,null,null,null,null,null,null,null,null,null,null,null,null,null,null,null,null,null,null,null,null,null,null,null,null,null,null,null,null,null,null,null,null,null,null,null,null,null,null,null,null,null,null,null,null,null,null,{"$f":"Daten!C10","v":"Albanien"},{"$f":"Daten!B10","v":8},null,0,0]
[null,null,null,null,null,null,null,null,null,null,null,null,null,null,null,null,null,null,null,null,null,null,null,null,null,null,null,null,null,null,null,null,null,null,null,null,null,null,null,null,null,null,null,null,null,null,null,null,null,null,null,null,null,null,null,null,null,null,null,null,null,null,null,null,null,null,null,null,null,null,null,null,null,null,null,null,null,null,null,null,null,null,null,null,null,null,null,null,null,null,null,null,null,null,null,null,null,{"$f":"Daten!C11","v":"Slowenien"},{"$f":"Daten!B11","v":9},null,0,0]
[null,null,null,null,null,null,null,null,null,null,null,null,null,null,null,null,null,null,null,null,null,null,null,null,null,null,null,null,null,null,null,null,null,null,null,null,null,null,null,null,null,null,null,null,null,null,null,null,null,null,null,null,null,null,null,null,null,null,null,null,null,null,null,null,null,null,null,null,null,null,null,null,null,null,null,null,null,null,null,null,null,null,null,null,null,null,null,null,null,null,null,null,null,null,null,null,null,{"$f":"Daten!C12","v":"Dänemark"},{"$f":"Daten!B12","v":10},null,0,0]
[null,null,null,null,null,null,null,null,null,null,null,null,null,null,null,null,null,null,null,null,null,null,null,null,null,null,null,null,null,null,null,null,null,null,null,null,null,null,null,null,null,null,null,null,null,null,null,null,null,null,null,null,null,null,null,null,null,null,null,null,null,null,null,null,null,null,null,null,null,null,null,null,null,null,null,null,null,null,null,null,null,null,null,null,null,null,null,null,null,null,null,null,null,null,null,null,null,{"$f":"Daten!C13","v":"Serbien"},{"$f":"Daten!B13","v":11},null,0,0]
[null,null,null,null,null,null,null,null,null,null,null,null,null,null,null,null,null,null,null,null,null,null,null,null,null,null,null,null,null,null,null,null,null,null,null,null,null,null,null,null,null,null,null,null,null,null,null,null,null,null,null,null,null,null,null,null,null,null,null,null,null,null,null,null,null,null,null,null,null,null,null,null,null,null,null,null,null,null,null,null,null,null,null,null,null,null,null,null,null,null,null,null,null,null,null,null,null,{"$f":"Daten!C14","v":"England"},{"$f":"Daten!B14","v":12},null,0,0]
[null,null,null,null,null,null,null,null,null,null,null,null,null,null,null,null,null,null,null,null,null,null,null,null,null,null,null,null,null,null,null,null,null,null,null,null,null,null,null,null,null,null,null,null,null,null,null,null,null,null,null,null,null,null,null,null,null,null,null,null,null,null,null,null,null,null,null,null,null,null,null,null,null,null,null,null,null,null,null,null,null,null,null,null,null,null,null,null,null,null,null,null,null,null,null,null,null,{"$f":"Daten!C15","v":"Polen"},{"$f":"Daten!B15","v":13},null,0,0]
[null,null,null,null,null,null,null,null,null,null,null,null,null,null,null,null,null,null,null,null,null,null,null,null,null,null,null,null,null,null,null,null,null,null,null,null,null,null,null,null,null,null,null,null,null,null,null,null,null,null,null,null,null,null,null,null,null,null,null,null,null,null,null,null,null,null,null,null,null,null,null,null,null,null,null,null,null,null,null,null,null,null,null,null,null,null,null,null,null,null,null,null,null,null,null,null,null,{"$f":"Daten!C16","v":"Niederlande"},{"$f":"Daten!B16","v":14},null,0,0]
[null,null,null,null,null,null,null,null,null,null,null,null,null,null,null,null,null,null,null,null,null,null,null,null,null,null,null,null,null,null,null,null,null,null,null,null,null,null,null,null,null,null,null,null,null,null,null,null,null,null,null,null,null,null,null,null,null,null,null,null,null,null,null,null,null,null,null,null,null,null,null,null,null,null,null,null,null,null,null,null,null,null,null,null,null,null,null,null,null,null,null,null,null,null,null,null,null,{"$f":"Daten!C17","v":"Österreich"},{"$f":"Daten!B17","v":15},null,0,0]
[null,null,null,null,null,null,null,null,null,null,null,null,null,null,null,null,null,null,null,null,null,null,null,null,null,null,null,null,null,null,null,null,null,null,null,null,null,null,null,null,null,null,null,null,null,null,null,null,null,null,null,null,null,null,null,null,null,null,null,null,null,null,null,null,null,null,null,null,null,null,null,null,null,null,null,null,null,null,null,null,null,null,null,null,null,null,null,null,null,null,null,null,null,null,null,null,null,{"$f":"Daten!C18","v":"Frankreich"},{"$f":"Daten!B18","v":16},null,0,0]
[null,null,null,null,null,null,null,null,null,null,null,null,null,null,null,null,null,null,null,null,null,null,null,null,null,null,null,null,null,null,null,null,null,null,null,null,null,null,null,null,null,null,null,null,null,null,null,null,null,null,null,null,null,null,null,null,null,null,null,null,null,null,null,null,null,null,null,null,null,null,null,null,null,null,null,null,null,null,null,null,null,null,null,null,null,null,null,null,null,null,null,null,null,null,null,null,null,{"$f":"Daten!C19","v":"Rumänien"},{"$f":"Daten!B19","v":17},null,0,0]
[null,null,null,null,null,null,null,null,null,null,null,null,null,null,null,null,null,null,null,null,null,null,null,null,null,null,null,null,null,null,null,null,null,null,null,null,null,null,null,null,null,null,null,null,null,null,null,null,null,null,null,null,null,null,null,null,null,null,null,null,null,null,null,null,null,null,null,null,null,null,null,null,null,null,null,null,null,null,null,null,null,null,null,null,null,null,null,null,null,null,null,null,null,null,null,null,null,{"$f":"Daten!C20","v":"Ukraine"},{"$f":"Daten!B20","v":18},null,0,0]
[null,null,null,null,null,null,null,null,null,null,null,null,null,null,null,null,null,null,null,null,null,null,null,null,null,null,null,null,null,null,null,null,null,null,null,null,null,null,null,null,null,null,null,null,null,null,null,null,null,null,null,null,null,null,null,null,null,null,null,null,null,null,null,null,null,null,null,null,null,null,null,null,null,null,null,null,null,null,null,null,null,null,null,null,null,null,null,null,null,null,null,null,null,null,null,null,null,{"$f":"Daten!C21","v":"Belgien"},{"$f":"Daten!B21","v":19},null,0,0]
[null,null,null,null,null,null,null,null,null,null,null,null,null,null,null,null,null,null,null,null,null,null,null,null,null,null,null,null,null,null,null,null,null,null,null,null,null,null,null,null,null,null,null,null,null,null,null,null,null,null,null,null,null,null,null,null,null,null,null,null,null,null,null,null,null,null,null,null,null,null,null,null,null,null,null,null,null,null,null,null,null,null,null,null,null,null,null,null,null,null,null,null,null,null,null,null,null,{"$f":"Daten!C22","v":"Slowakei"},{"$f":"Daten!B22","v":20},null,0,0]
[null,null,null,null,null,null,null,null,null,null,null,null,null,null,null,null,null,null,null,null,null,null,null,null,null,null,null,null,null,null,null,null,null,null,null,null,null,null,null,null,null,null,null,null,null,null,null,null,null,null,null,null,null,null,null,null,null,null,null,null,null,null,null,null,null,null,null,null,null,null,null,null,null,null,null,null,null,null,null,null,null,null,null,null,null,null,null,null,null,null,null,null,null,null,null,null,null,{"$f":"Daten!C23","v":"Türkei"},{"$f":"Daten!B23","v":21},null,0,0]
[null,null,null,null,null,null,null,null,null,null,null,null,null,null,null,null,null,null,null,null,null,null,null,null,null,null,null,null,null,null,null,null,null,null,null,null,null,null,null,null,null,null,null,null,null,null,null,null,null,null,null,null,null,null,null,null,null,null,null,null,null,null,null,null,null,null,null,null,null,null,null,null,null,null,null,null,null,null,null,null,null,null,null,null,null,null,null,null,null,null,null,null,null,null,null,null,null,{"$f":"Daten!C24","v":"Georgien"},{"$f":"Daten!B24","v":22},null,0,0]
[null,null,null,null,null,null,null,null,null,null,null,null,null,null,null,null,null,null,null,null,null,null,null,null,null,null,null,null,null,null,null,null,null,null,null,null,null,null,null,null,null,null,null,null,null,null,null,null,null,null,null,null,null,null,null,null,null,null,null,null,null,null,null,null,null,null,null,null,null,null,null,null,null,null,null,null,null,null,null,null,null,null,null,null,null,null,null,null,null,null,null,null,null,null,null,null,null,{"$f":"Daten!C25","v":"Portugal"},{"$f":"Daten!B25","v":23},null,0,0]
[null,null,null,null,null,null,null,null,null,null,null,null,null,null,null,null,null,null,null,null,null,null,null,null,null,null,null,null,null,null,null,null,null,null,null,null,null,null,null,null,null,null,null,null,null,null,null,null,null,null,null,null,null,null,null,null,null,null,null,null,null,null,null,null,null,null,null,null,null,null,null,null,null,null,null,null,null,null,null,null,null,null,null,null,null,null,null,null,null,null,null,null,null,null,null,null,null,{"$f":"Daten!C26","v":"Tschechien"},{"$f":"Daten!B26","v":24},null,0,0]
[null,null,null,null,null,null,null,null,null,null,null,null,null,null,null,null,null,null,null,null,null,null,null,null,null,null,null,null,null,null,null,null,null,null,null,null,null,null,null,null,null,null,null,null,null,null,null,null,null,null,null,null,null,null,null,null,null,null,null,null,null,null,null,null,null,null,null,null,null,null,null,null,null,null,null,null,null,null,null,null,null,null,null,null,null,null,null,null,null,null,null,null,null,null,null,null,null,{"$f":"Daten!C27","v":0},{"$f":"Daten!B27","v":25},null,0,0]
[null,null,null,null,null,null,null,null,null,null,null,null,null,null,null,null,null,null,null,null,null,null,null,null,null,null,null,null,null,null,null,null,null,null,null,null,null,null,null,null,null,null,null,null,null,null,null,null,null,null,null,null,null,null,null,null,null,null,null,null,null,null,null,null,null,null,null,null,null,null,null,null,null,null,null,null,null,null,null,null,null,null,null,null,null,null,null,null,null,null,null,null,null,null,null,null,null,{"$f":"Daten!C28","v":0},{"$f":"Daten!B28","v":26},null,0,0]
[null,null,null,null,null,null,null,null,null,null,null,null,null,null,null,null,null,null,null,null,null,null,null,null,null,null,null,null,null,null,null,null,null,null,null,null,null,null,null,null,null,null,null,null,null,null,null,null,null,null,null,null,null,null,null,null,null,null,null,null,null,null,null,null,null,null,null,null,null,null,null,null,null,null,null,null,null,null,null,null,null,null,null,null,null,null,null,null,null,null,null,null,null,null,null,null,null,{"$f":"Daten!C29","v":0},{"$f":"Daten!B29","v":27},null,0,0]
[null,null,null,null,null,null,null,null,null,null,null,null,null,null,null,null,null,null,null,null,null,null,null,null,null,null,null,null,null,null,null,null,null,null,null,null,null,null,null,null,null,null,null,null,null,null,null,null,null,null,null,null,null,null,null,null,null,null,null,null,null,null,null,null,null,null,null,null,null,null,null,null,null,null,null,null,null,null,null,null,null,null,null,null,null,null,null,null,null,null,null,null,null,null,null,null,null,{"$f":"Daten!C30","v":0},{"$f":"Daten!B30","v":28},null,0,0]
[null,null,null,null,null,null,null,null,null,null,null,null,null,null,null,null,null,null,null,null,null,null,null,null,null,null,null,null,null,null,null,null,null,null,null,null,null,null,null,null,null,null,null,null,null,null,null,null,null,null,null,null,null,null,null,null,null,null,null,null,null,null,null,null,null,null,null,null,null,null,null,null,null,null,null,null,null,null,null,null,null,null,null,null,null,null,null,null,null,null,null,null,null,null,null,null,null,{"$f":"Daten!C31","v":0},{"$f":"Daten!B31","v":29},null,0,0]
[null,null,null,null,null,null,null,null,null,null,null,null,null,null,null,null,null,null,null,null,null,null,null,null,null,null,null,null,null,null,null,null,null,null,null,null,null,null,null,null,null,null,null,null,null,null,null,null,null,null,null,null,null,null,null,null,null,null,null,null,null,null,null,null,null,null,null,null,null,null,null,null,null,null,null,null,null,null,null,null,null,null,null,null,null,null,null,null,null,null,null,null,null,null,null,null,null,{"$f":"Daten!C32","v":0},{"$f":"Daten!B32","v":30},null,0,0]
[null,null,null,null,null,null,null,null,null,null,null,null,null,null,null,null,null,null,null,null,null,null,null,null,null,null,null,null,null,null,null,null,null,null,null,null,null,null,null,null,null,null,null,null,null,null,null,null,null,null,null,null,null,null,null,null,null,null,null,null,null,null,null,null,null,null,null,null,null,null,null,null,null,null,null,null,null,null,null,null,null,null,null,null,null,null,null,null,null,null,null,null,null,null,null,null,null,{"$f":"Daten!C33","v":0},{"$f":"Daten!B33","v":31},null,0,0]
[null,null,null,null,null,null,null,null,null,null,null,null,null,null,null,null,null,null,null,null,null,null,null,null,null,null,null,null,null,null,null,null,null,null,null,null,null,null,null,null,null,null,null,null,null,null,null,null,null,null,null,null,null,null,null,null,null,null,null,null,null,null,null,null,null,null,null,null,null,null,null,null,null,null,null,null,null,null,null,null,null,null,null,null,null,null,null,null,null,null,null,null,null,null,null,null,null,{"$f":"Daten!C34","v":0},{"$f":"Daten!B34","v":32},null,0,0]
[]
[null,null,null,null,null,null,null,null,null,null,null,null,null,null,null,null,null,null,null,null,null,null,null,null,null,null,null,null,null,null,null,null,null,null,null,null,null,null,null,null,null,null,null,null,null,null,null,null,null,null,null,null,null,null,null,null,null,null,null,null,null,null,null,null,null,null,null,null,null,null,null,null,null,null,null,null,null,null,null,null,null,null,null,null,null,null,null,null,null,null,null,null,null,null,null,null,null,{"$f":"Daten!C3","v":"Deutschland"},{"$f":"Daten!B3","v":1},null,{"$f":"IF($CC$88=CT241,CU241,0)","v":0},{"$f":"IF($CD$88=CT241,CU241,0)","v":0}]
[null,null,null,null,null,null,null,null,null,null,null,null,null,null,null,null,null,null,null,null,null,null,null,null,null,null,null,null,null,null,null,null,null,null,null,null,null,null,null,null,null,null,null,null,null,null,null,null,null,null,null,null,null,null,null,null,null,null,null,null,null,null,null,null,null,null,null,null,null,null,null,null,null,null,null,null,null,null,null,null,null,null,null,null,null,null,null,null,null,null,null,null,null,null,null,null,null,{"$f":"Daten!C4","v":"Schottland"},{"$f":"Daten!B4","v":2},null,{"$f":"IF($CC$88=CT242,CU242,0)","v":0},{"$f":"IF($CD$88=CT242,CU242,0)","v":0}]
[null,null,null,null,null,null,null,null,null,null,null,null,null,null,null,null,null,null,null,null,null,null,null,null,null,null,null,null,null,null,null,null,null,null,null,null,null,null,null,null,null,null,null,null,null,null,null,null,null,null,null,null,null,null,null,null,null,null,null,null,null,null,null,null,null,null,null,null,null,null,null,null,null,null,null,null,null,null,null,null,null,null,null,null,null,null,null,null,null,null,null,null,null,null,null,null,null,{"$f":"Daten!C5","v":"Ungarn"},{"$f":"Daten!B5","v":3},null,0,0]
[null,null,null,null,null,null,null,null,null,null,null,null,null,null,null,null,null,null,null,null,null,null,null,null,null,null,null,null,null,null,null,null,null,null,null,null,null,null,null,null,null,null,null,null,null,null,null,null,null,null,null,null,null,null,null,null,null,null,null,null,null,null,null,null,null,null,null,null,null,null,null,null,null,null,null,null,null,null,null,null,null,null,null,null,null,null,null,null,null,null,null,null,null,null,null,null,null,{"$f":"Daten!C6","v":"Schweiz"},{"$f":"Daten!B6","v":4},null,0,0]
[null,null,null,null,null,null,null,null,null,null,null,null,null,null,null,null,null,null,null,null,null,null,null,null,null,null,null,null,null,null,null,null,null,null,null,null,null,null,null,null,null,null,null,null,null,null,null,null,null,null,null,null,null,null,null,null,null,null,null,null,null,null,null,null,null,null,null,null,null,null,null,null,null,null,null,null,null,null,null,null,null,null,null,null,null,null,null,null,null,null,null,null,null,null,null,null,null,{"$f":"Daten!C7","v":"Spanien"},{"$f":"Daten!B7","v":5},null,0,0]
[null,null,null,null,null,null,null,null,null,null,null,null,null,null,null,null,null,null,null,null,null,null,null,null,null,null,null,null,null,null,null,null,null,null,null,null,null,null,null,null,null,null,null,null,null,null,null,null,null,null,null,null,null,null,null,null,null,null,null,null,null,null,null,null,null,null,null,null,null,null,null,null,null,null,null,null,null,null,null,null,null,null,null,null,null,null,null,null,null,null,null,null,null,null,null,null,null,{"$f":"Daten!C8","v":"Kroatien"},{"$f":"Daten!B8","v":6},null,0,0]
[null,null,null,null,null,null,null,null,null,null,null,null,null,null,null,null,null,null,null,null,null,null,null,null,null,null,null,null,null,null,null,null,null,null,null,null,null,null,null,null,null,null,null,null,null,null,null,null,null,null,null,null,null,null,null,null,null,null,null,null,null,null,null,null,null,null,null,null,null,null,null,null,null,null,null,null,null,null,null,null,null,null,null,null,null,null,null,null,null,null,null,null,null,null,null,null,null,{"$f":"Daten!C9","v":"Italien"},{"$f":"Daten!B9","v":7},null,0,0]
[null,null,null,null,null,null,null,null,null,null,null,null,null,null,null,null,null,null,null,null,null,null,null,null,null,null,null,null,null,null,null,null,null,null,null,null,null,null,null,null,null,null,null,null,null,null,null,null,null,null,null,null,null,null,null,null,null,null,null,null,null,null,null,null,null,null,null,null,null,null,null,null,null,null,null,null,null,null,null,null,null,null,null,null,null,null,null,null,null,null,null,null,null,null,null,null,null,{"$f":"Daten!C10","v":"Albanien"},{"$f":"Daten!B10","v":8},null,0,0]
[null,null,null,null,null,null,null,null,null,null,null,null,null,null,null,null,null,null,null,null,null,null,null,null,null,null,null,null,null,null,null,null,null,null,null,null,null,null,null,null,null,null,null,null,null,null,null,null,null,null,null,null,null,null,null,null,null,null,null,null,null,null,null,null,null,null,null,null,null,null,null,null,null,null,null,null,null,null,null,null,null,null,null,null,null,null,null,null,null,null,null,null,null,null,null,null,null,{"$f":"Daten!C11","v":"Slowenien"},{"$f":"Daten!B11","v":9},null,0,0]
[null,null,null,null,null,null,null,null,null,null,null,null,null,null,null,null,null,null,null,null,null,null,null,null,null,null,null,null,null,null,null,null,null,null,null,null,null,null,null,null,null,null,null,null,null,null,null,null,null,null,null,null,null,null,null,null,null,null,null,null,null,null,null,null,null,null,null,null,null,null,null,null,null,null,null,null,null,null,null,null,null,null,null,null,null,null,null,null,null,null,null,null,null,null,null,null,null,{"$f":"Daten!C12","v":"Dänemark"},{"$f":"Daten!B12","v":10},null,0,0]
[null,null,null,null,null,null,null,null,null,null,null,null,null,null,null,null,null,null,null,null,null,null,null,null,null,null,null,null,null,null,null,null,null,null,null,null,null,null,null,null,null,null,null,null,null,null,null,null,null,null,null,null,null,null,null,null,null,null,null,null,null,null,null,null,null,null,null,null,null,null,null,null,null,null,null,null,null,null,null,null,null,null,null,null,null,null,null,null,null,null,null,null,null,null,null,null,null,{"$f":"Daten!C13","v":"Serbien"},{"$f":"Daten!B13","v":11},null,0,0]
[null,null,null,null,null,null,null,null,null,null,null,null,null,null,null,null,null,null,null,null,null,null,null,null,null,null,null,null,null,null,null,null,null,null,null,null,null,null,null,null,null,null,null,null,null,null,null,null,null,null,null,null,null,null,null,null,null,null,null,null,null,null,null,null,null,null,null,null,null,null,null,null,null,null,null,null,null,null,null,null,null,null,null,null,null,null,null,null,null,null,null,null,null,null,null,null,null,{"$f":"Daten!C14","v":"England"},{"$f":"Daten!B14","v":12},null,0,0]
[null,null,null,null,null,null,null,null,null,null,null,null,null,null,null,null,null,null,null,null,null,null,null,null,null,null,null,null,null,null,null,null,null,null,null,null,null,null,null,null,null,null,null,null,null,null,null,null,null,null,null,null,null,null,null,null,null,null,null,null,null,null,null,null,null,null,null,null,null,null,null,null,null,null,null,null,null,null,null,null,null,null,null,null,null,null,null,null,null,null,null,null,null,null,null,null,null,{"$f":"Daten!C15","v":"Polen"},{"$f":"Daten!B15","v":13},null,0,0]
[null,null,null,null,null,null,null,null,null,null,null,null,null,null,null,null,null,null,null,null,null,null,null,null,null,null,null,null,null,null,null,null,null,null,null,null,null,null,null,null,null,null,null,null,null,null,null,null,null,null,null,null,null,null,null,null,null,null,null,null,null,null,null,null,null,null,null,null,null,null,null,null,null,null,null,null,null,null,null,null,null,null,null,null,null,null,null,null,null,null,null,null,null,null,null,null,null,{"$f":"Daten!C16","v":"Niederlande"},{"$f":"Daten!B16","v":14},null,0,0]
[null,null,null,null,null,null,null,null,null,null,null,null,null,null,null,null,null,null,null,null,null,null,null,null,null,null,null,null,null,null,null,null,null,null,null,null,null,null,null,null,null,null,null,null,null,null,null,null,null,null,null,null,null,null,null,null,null,null,null,null,null,null,null,null,null,null,null,null,null,null,null,null,null,null,null,null,null,null,null,null,null,null,null,null,null,null,null,null,null,null,null,null,null,null,null,null,null,{"$f":"Daten!C17","v":"Österreich"},{"$f":"Daten!B17","v":15},null,0,0]
[null,null,null,null,null,null,null,null,null,null,null,null,null,null,null,null,null,null,null,null,null,null,null,null,null,null,null,null,null,null,null,null,null,null,null,null,null,null,null,null,null,null,null,null,null,null,null,null,null,null,null,null,null,null,null,null,null,null,null,null,null,null,null,null,null,null,null,null,null,null,null,null,null,null,null,null,null,null,null,null,null,null,null,null,null,null,null,null,null,null,null,null,null,null,null,null,null,{"$f":"Daten!C18","v":"Frankreich"},{"$f":"Daten!B18","v":16},null,0,0]
[null,null,null,null,null,null,null,null,null,null,null,null,null,null,null,null,null,null,null,null,null,null,null,null,null,null,null,null,null,null,null,null,null,null,null,null,null,null,null,null,null,null,null,null,null,null,null,null,null,null,null,null,null,null,null,null,null,null,null,null,null,null,null,null,null,null,null,null,null,null,null,null,null,null,null,null,null,null,null,null,null,null,null,null,null,null,null,null,null,null,null,null,null,null,null,null,null,{"$f":"Daten!C19","v":"Rumänien"},{"$f":"Daten!B19","v":17},null,0,0]
[null,null,null,null,null,null,null,null,null,null,null,null,null,null,null,null,null,null,null,null,null,null,null,null,null,null,null,null,null,null,null,null,null,null,null,null,null,null,null,null,null,null,null,null,null,null,null,null,null,null,null,null,null,null,null,null,null,null,null,null,null,null,null,null,null,null,null,null,null,null,null,null,null,null,null,null,null,null,null,null,null,null,null,null,null,null,null,null,null,null,null,null,null,null,null,null,null,{"$f":"Daten!C20","v":"Ukraine"},{"$f":"Daten!B20","v":18},null,0,0]
[null,null,null,null,null,null,null,null,null,null,null,null,null,null,null,null,null,null,null,null,null,null,null,null,null,null,null,null,null,null,null,null,null,null,null,null,null,null,null,null,null,null,null,null,null,null,null,null,null,null,null,null,null,null,null,null,null,null,null,null,null,null,null,null,null,null,null,null,null,null,null,null,null,null,null,null,null,null,null,null,null,null,null,null,null,null,null,null,null,null,null,null,null,null,null,null,null,{"$f":"Daten!C21","v":"Belgien"},{"$f":"Daten!B21","v":19},null,0,0]
[null,null,null,null,null,null,null,null,null,null,null,null,null,null,null,null,null,null,null,null,null,null,null,null,null,null,null,null,null,null,null,null,null,null,null,null,null,null,null,null,null,null,null,null,null,null,null,null,null,null,null,null,null,null,null,null,null,null,null,null,null,null,null,null,null,null,null,null,null,null,null,null,null,null,null,null,null,null,null,null,null,null,null,null,null,null,null,null,null,null,null,null,null,null,null,null,null,{"$f":"Daten!C22","v":"Slowakei"},{"$f":"Daten!B22","v":20},null,0,0]
[null,null,null,null,null,null,null,null,null,null,null,null,null,null,null,null,null,null,null,null,null,null,null,null,null,null,null,null,null,null,null,null,null,null,null,null,null,null,null,null,null,null,null,null,null,null,null,null,null,null,null,null,null,null,null,null,null,null,null,null,null,null,null,null,null,null,null,null,null,null,null,null,null,null,null,null,null,null,null,null,null,null,null,null,null,null,null,null,null,null,null,null,null,null,null,null,null,{"$f":"Daten!C23","v":"Türkei"},{"$f":"Daten!B23","v":21},null,0,0]
[null,null,null,null,null,null,null,null,null,null,null,null,null,null,null,null,null,null,null,null,null,null,null,null,null,null,null,null,null,null,null,null,null,null,null,null,null,null,null,null,null,null,null,null,null,null,null,null,null,null,null,null,null,null,null,null,null,null,null,null,null,null,null,null,null,null,null,null,null,null,null,null,null,null,null,null,null,null,null,null,null,null,null,null,null,null,null,null,null,null,null,null,null,null,null,null,null,{"$f":"Daten!C24","v":"Georgien"},{"$f":"Daten!B24","v":22},null,0,0]
[null,null,null,null,null,null,null,null,null,null,null,null,null,null,null,null,null,null,null,null,null,null,null,null,null,null,null,null,null,null,null,null,null,null,null,null,null,null,null,null,null,null,null,null,null,null,null,null,null,null,null,null,null,null,null,null,null,null,null,null,null,null,null,null,null,null,null,null,null,null,null,null,null,null,null,null,null,null,null,null,null,null,null,null,null,null,null,null,null,null,null,null,null,null,null,null,null,{"$f":"Daten!C25","v":"Portugal"},{"$f":"Daten!B25","v":23},null,0,0]
[null,null,null,null,null,null,null,null,null,null,null,null,null,null,null,null,null,null,null,null,null,null,null,null,null,null,null,null,null,null,null,null,null,null,null,null,null,null,null,null,null,null,null,null,null,null,null,null,null,null,null,null,null,null,null,null,null,null,null,null,null,null,null,null,null,null,null,null,null,null,null,null,null,null,null,null,null,null,null,null,null,null,null,null,null,null,null,null,null,null,null,null,null,null,null,null,null,{"$f":"Daten!C26","v":"Tschechien"},{"$f":"Daten!B26","v":24},null,0,0]
[null,null,null,null,null,null,null,null,null,null,null,null,null,null,null,null,null,null,null,null,null,null,null,null,null,null,null,null,null,null,null,null,null,null,null,null,null,null,null,null,null,null,null,null,null,null,null,null,null,null,null,null,null,null,null,null,null,null,null,null,null,null,null,null,null,null,null,null,null,null,null,null,null,null,null,null,null,null,null,null,null,null,null,null,null,null,null,null,null,null,null,null,null,null,null,null,null,{"$f":"Daten!C27","v":0},{"$f":"Daten!B27","v":25},null,0,0]
[null,null,null,null,null,null,null,null,null,null,null,null,null,null,null,null,null,null,null,null,null,null,null,null,null,null,null,null,null,null,null,null,null,null,null,null,null,null,null,null,null,null,null,null,null,null,null,null,null,null,null,null,null,null,null,null,null,null,null,null,null,null,null,null,null,null,null,null,null,null,null,null,null,null,null,null,null,null,null,null,null,null,null,null,null,null,null,null,null,null,null,null,null,null,null,null,null,{"$f":"Daten!C28","v":0},{"$f":"Daten!B28","v":26},null,0,0]
[null,null,null,null,null,null,null,null,null,null,null,null,null,null,null,null,null,null,null,null,null,null,null,null,null,null,null,null,null,null,null,null,null,null,null,null,null,null,null,null,null,null,null,null,null,null,null,null,null,null,null,null,null,null,null,null,null,null,null,null,null,null,null,null,null,null,null,null,null,null,null,null,null,null,null,null,null,null,null,null,null,null,null,null,null,null,null,null,null,null,null,null,null,null,null,null,null,{"$f":"Daten!C29","v":0},{"$f":"Daten!B29","v":27},null,0,0]
[null,null,null,null,null,null,null,null,null,null,null,null,null,null,null,null,null,null,null,null,null,null,null,null,null,null,null,null,null,null,null,null,null,null,null,null,null,null,null,null,null,null,null,null,null,null,null,null,null,null,null,null,null,null,null,null,null,null,null,null,null,null,null,null,null,null,null,null,null,null,null,null,null,null,null,null,null,null,null,null,null,null,null,null,null,null,null,null,null,null,null,null,null,null,null,null,null,{"$f":"Daten!C30","v":0},{"$f":"Daten!B30","v":28},null,0,0]
[null,null,null,null,null,null,null,null,null,null,null,null,null,null,null,null,null,null,null,null,null,null,null,null,null,null,null,null,null,null,null,null,null,null,null,null,null,null,null,null,null,null,null,null,null,null,null,null,null,null,null,null,null,null,null,null,null,null,null,null,null,null,null,null,null,null,null,null,null,null,null,null,null,null,null,null,null,null,null,null,null,null,null,null,null,null,null,null,null,null,null,null,null,null,null,null,null,{"$f":"Daten!C31","v":0},{"$f":"Daten!B31","v":29},null,0,0]
[null,null,null,null,null,null,null,null,null,null,null,null,null,null,null,null,null,null,null,null,null,null,null,null,null,null,null,null,null,null,null,null,null,null,null,null,null,null,null,null,null,null,null,null,null,null,null,null,null,null,null,null,null,null,null,null,null,null,null,null,null,null,null,null,null,null,null,null,null,null,null,null,null,null,null,null,null,null,null,null,null,null,null,null,null,null,null,null,null,null,null,null,null,null,null,null,null,{"$f":"Daten!C32","v":0},{"$f":"Daten!B32","v":30},null,0,0]
[null,null,null,null,null,null,null,null,null,null,null,null,null,null,null,null,null,null,null,null,null,null,null,null,null,null,null,null,null,null,null,null,null,null,null,null,null,null,null,null,null,null,null,null,null,null,null,null,null,null,null,null,null,null,null,null,null,null,null,null,null,null,null,null,null,null,null,null,null,null,null,null,null,null,null,null,null,null,null,null,null,null,null,null,null,null,null,null,null,null,null,null,null,null,null,null,null,{"$f":"Daten!C33","v":0},{"$f":"Daten!B33","v":31},null,0,0]
[null,null,null,null,null,null,null,null,null,null,null,null,null,null,null,null,null,null,null,null,null,null,null,null,null,null,null,null,null,null,null,null,null,null,null,null,null,null,null,null,null,null,null,null,null,null,null,null,null,null,null,null,null,null,null,null,null,null,null,null,null,null,null,null,null,null,null,null,null,null,null,null,null,null,null,null,null,null,null,null,null,null,null,null,null,null,null,null,null,null,null,null,null,null,null,null,null,{"$f":"Daten!C34","v":0},{"$f":"Daten!B34","v":32},null,0,0]
[null,null,null,null,null,null,null,null,null,null,null,null,null,null,null,null,null,null,null,null,null,null,null,null,null,null,null,null,null,null,null,null,null,null,null,null,null,null,null,null,null,null,null,null,null,null,null,null,null,null,null,null,null,null,null,null,null,null,null,null,null,null,null,null,null,null,null,null,null,null,null,null,null,null,null,null,null,null,null,null,null,null,null,null,null,null,null,null,null,null,null,null,null,null,null,null,null,null,null,null,{"$f":"SUM(CW110:CW272)","v":0},{"$f":"SUM(CX110:CX272)","v":0},{"$f":"SUM(CY110:CY272)","v":0},{"$f":"SUM(CZ110:CZ272)","v":0},null,null,null,{"$f":"SUM(DD110:DD272)","v":0},{"$f":"SUM(DE110:DE272)","v":0},{"$f":"SUM(DF110:DF272)","v":0},{"$f":"SUM(DG110:DG272)","v":0}]
[null,null,null,null,null,null,null,null,null,null,null,null,null,null,null,null,null,null,null,null,null,null,null,null,null,null,null,null,null,null,null,null,null,null,null,null,null,null,null,null,null,null,null,null,null,null,null,null,null,null,null,null,null,null,null,null,null,null,null,null,null,null,null,null,null,null,null,null,null,null,null,null,null,null,null,null,null,null,null,null,null,null,null,null,null,null,null,null,null,null,null,null,null,null,null,null,null,null,null,null,{"$f":"IF((CW74+CW109+CW273)>32,\"x\",CW74+CW109+CW273)","v":9},{"$f":"IF((CX74+CX109+CX273)>32,\"x\",CX74+CX109+CX273)","v":11},{"$f":"IF((CY74+CY109+CY273)>32,\"x\",CY74+CY109+CY273)","v":12},{"$f":"IF((CZ74+CZ109+CZ273)>32,\"x\",CZ74+CZ109+CZ273)","v":10},null,null,null,{"$f":"IF((DS74+DD273)>32,\"x\",DS74+DD273)","v":5},{"$f":"IF((DT74+DE273)>32,\"x\",DT74+DE273)","v":7},{"$f":"IF((DU74+DF273)>32,\"x\",DU74+DF273)","v":0},{"$f":"IF((DV74+DG273)>32,\"x\",DV74+DG273)","v":0},null,null,null,{"$f":"SUM(DK74:DK272)","v":0},{"$f":"SUM(DL57:DL272)","v":0},{"$f":"SUM(DM57:DM272)","v":0},{"$f":"SUM(DN57:DN272)","v":0},null,null,null,null,{"$f":"SUM(DS57:DS272)","v":5},{"$f":"SUM(DT57:DT272)","v":7},{"$f":"SUM(DU57:DU272)","v":0},{"$f":"SUM(DV57:DV272)","v":0},null,null,null,{"$f":"SUM(DZ57:DZ272)","v":5},{"$f":"SUM(EA57:EA272)","v":7},{"$f":"SUM(EB57:EB272)","v":0},{"$f":"SUM(EC57:EC272)","v":0},null,null,null,{"$f":"SUM(EG57:EG272)","v":0},{"$f":"SUM(EH57:EH272)","v":0},{"$f":"SUM(EI57:EI272)","v":0},{"$f":"SUM(EJ57:EJ272)","v":0}]
[null,null,null,null,null,null,null,null,null,null,null,null,null,null,null,null,null,null,null,null,null,null,null,null,null,null,null,null,null,null,null,null,null,null,null,null,null,null,null,null,null,null,null,null,null,null,null,null,null,null,null,null,null,null,null,null,null,null,null,null,null,null,null,null,null,null,null,null,null,null,null,null,null,null,null,null,null,null,null,null,null,null,null,null,null,null,null,null,null,null,null,null,null,null,null,null,null,null,null,null,{"$f":"VLOOKUP(CW274,Daten!B1:C34,2)","v":"Slowenien"}]

{"sheet":"Daten","index":1,"n_rows":35,"n_cols":9,"rows_kept":35,"cut":false,"hidden":false,"merged":[]}
[]
[null,"Lfd-Nr.","Land:","Punkte",null,null,null,null,"  Gruppe"]
[null,1,"Deutschland",{"$f":"Spielplan!CC11","v":0}]
[null,2,"Schottland",{"$f":"Spielplan!CC12","v":0},null,null,null,null,"Gruppe A"]
[null,3,"Ungarn",{"$f":"Spielplan!CC13","v":0}]
[null,4,"Schweiz",{"$f":"Spielplan!CC14","v":0}]
[null,5,"Spanien",{"$f":"Spielplan!CL11","v":0}]
[null,6,"Kroatien",{"$f":"Spielplan!CL12","v":0},null,null,null,null,"Gruppe B"]
[null,7,"Italien",{"$f":"Spielplan!CL13","v":0}]
[null,8,"Albanien",{"$f":"Spielplan!CL14","v":0}]
[null,9,"Slowenien",{"$f":"Spielplan!CU11","v":0}]
[null,10,"Dänemark",{"$f":"Spielplan!CU12","v":0},null,null,null,null,"Gruppe C"]
[null,11,"Serbien",{"$f":"Spielplan!CU13","v":0}]
[null,12,"England",{"$f":"Spielplan!CU14","v":0}]
[null,13,"Polen",{"$f":"Spielplan!DD11","v":0}]
[null,14,"Niederlande",{"$f":"Spielplan!DD12","v":0},null,null,null,null,"Gruppe D"]
[null,15,"Österreich",{"$f":"Spielplan!DD13","v":0}]
[null,16,"Frankreich",{"$f":"Spielplan!DD14","v":0}]
[null,17,"Rumänien",{"$f":"Spielplan!DM11","v":0}]
[null,18,"Ukraine",{"$f":"Spielplan!DM12","v":0},null,null,null,null,"Gruppe E"]
[null,19,"Belgien",{"$f":"Spielplan!DM13","v":0}]
[null,20,"Slowakei",{"$f":"Spielplan!DM14","v":0}]
[null,21,"Türkei",{"$f":"Spielplan!DV11","v":0}]
[null,22,"Georgien",{"$f":"Spielplan!DV12","v":0},null,null,null,null,"Gruppe F"]
[null,23,"Portugal",{"$f":"Spielplan!DV13","v":0}]
[null,24,"Tschechien",{"$f":"Spielplan!DV14","v":0}]
[null,25,null,{"$f":"Spielplan!EE11","v":0}]
[null,26,null,{"$f":"Spielplan!EE12","v":0},null,null,null,null,"Gruppe G"]
[null,27,null,{"$f":"Spielplan!EE13","v":0}]
[null,28,null,{"$f":"Spielplan!EE14","v":0}]
[null,29,null,{"$f":"Spielplan!EN11","v":0}]
[null,30,null,{"$f":"Spielplan!EN12","v":0},null,null,null,null,"Gruppe H"]
[null,31,null,{"$f":"Spielplan!EN13","v":0}]
[null,32,null,{"$f":"Spielplan!EN14","v":0}]
[null,33]

{"sheet":"Info","index":2,"n_rows":47,"n_cols":8,"rows_kept":47,"cut":false,"hidden":false,"merged":[]}
[]
[]
[null,null,"Fussball-WM 2010"]
[]
[]
[null,null,"von Heinrich - Bernhard Münzebrock, Vördenerstr. 7, "]
[null,null,"49434 Neuenkirchen-Vörden, Tel. Nr.: 05493/5688"]
[null,null,"E-mail:HBM49434@T-online.de"]
[]
[null,null,"Dieses WM 2010 - Berechnungsmodell darf bis auf Widerruf verwendet aber nicht kopiert"]
[null,null,"oder verkauft werden. "]
[]
[]
[null,null,"Ausfüllanleitung:"]
[]
[null,null,"Diese Mappe soll Ihnen bei der WM 2010 hilfreich sein. Ihre Aufgabe besteht nur darin,"]
[null,null,"die Ergebnise einzutragen. Beachten Sie dabei, dass nur die rot umrahmten Bereiche Eingabe-"]
[null,null,"felder sind. Alle anderen Felder sind mit Formeln belegt und für die Eingabe gesperrt. "]
[null,null,"Das Blatt Daten: Alle wichtigen Grunddaten sind in diesem Blatt vorhanden!!. Auch hier gilt: Alle "]
[null,null,"rot eingerahmten Bereiche sind Eingabefelder. Bitte seien Sie bei der Änderung oder beim Neuan-"]
[null,null,"legen der Datensätze sehr vorsichtig und gewissenhaft. ",null,null,null,null," Den Rest erledigt ihr Computer!."]
[null,null,"Achtung: Falls der Computer eine Partie im Achtelfinale falsch errechnet, haben Sie die Möglichkeit,"]
[null,null,"durch manuele Eingabe der Länder (links neben der Achtelfinaltabelle), die Partie zu ändern."]
[]
[]
[null,null,"Datenausdruck:"]
[]
[null,null,"Sie können aus dieser Arbeitsmappe einzelne Bereiche-  oder auch alle   Blätter ausdrucken."]
[null,null,"Um einen einzelnen Bereich auszudrucken, gehen Sie in das entsprechende Blatt."]
[null,null,"Dann drücken Sie auf den Link „Datei“ und klicken auf „Seitenansicht“. Jetzt nocheinmal ein Klick"]
[null,null,"auf den Link „Datei“ und auf „Drucken“. Unter Druckbereich finden Sie zwei Kästchen. Sie wählen"]
[null,null,"das Kästchen neben „Seiten“ und geben die entsprechenden Seitennummer(n) für Ihren gewählten"]
[null,null,"Bereich an. Noch ein Klick auf  „OK“, und er Druck erfolgt (wenn Sie Papier eingelegt haben)."]
[]
[null,null,"Alle Blätter der Arbeitsmappe ausdrucken ist ganz einfach. Sie gehen mit der Maus auf den Link „Datei“"]
[null,null,"und wählen „Drucken“. Jetzt noch ein Klick auf „OK“ und schon kann der Druck beginnen."]
[]
[]
[]
[]
[null,null,"H.B.M."]
[]
[]
[]
[]
[null,null,"PS: Wenn Ihnen diese Arbeitsmappe gefällt, und Ihnen hilfreich ist, bitte ich um eine kleine Spende"]
[null,null,"an o. g. Adresse. Bei Fragen und Anregungen, schreiben Sie mir, oder rufen mich an."]